Workbook

Sheet Menu
B1: Budgeting model - September 2024
B2: =IF(B3="","Enter project name &/or address ↓","") -> Enter project name &/or address ↓
B4: General settings
B5: Budget year | C5: 2025/26
B7: Budget inputs
B8: Units and core rents | D8: Includes occupancy & bad debt assumptions for HB-eligible rents & charges
B9: Property costs | D9: Entries required to calculate the "cost rent"
B10: Staff team | D10: Includes analysis of salary costs
B11: Out-of-hours | D11: Costs not included on the salaries page. Charged either to care & support or enhanced mngmnt
B12: Enhanced management | D12: Non-staff costs can be added after salaries have been allocated to this heading.
B13: Care support & supervision | D13: Non-staff costs & funding sources to be added (this is the default salary allocation)
B14: Services | D14: Includes occupancy & bad debt assumptions for HB-ineligible charges
B15: Council tax | D15: Details of council tax, where included in rents and charges
B16: Food/ catering | D16: Entries required if food is provided.
B17: CPI assumptions | D17: Used to calculate standard deductions for meals from 2025 & formula rents
B19: Outputs
B20: Budget summary | D20: Overall budget based on the budget input entries
B21: Rents and charges | D21: Schedule aof rents and charges based on the budget inputs
C52: ='F1'!N35 -> 2024/25
C53: ='F1'!N36 -> 2025/26
C54: ='F1'!N37 -> 2026/27
C55: ='F1'!N38 -> 2027/28

Sheet M1 (hidden)
B4: =IF(Menu!B3<>"",Menu!B3,"") -> 
B6: Unit details | C6: FIRST UNIT TYPE | F6: SECOND UNIT TYPE | I6: THIRD UNIT TYPE
B8: Number of units
B10: Budget occupancy level | C10: 96 | D10: % | F10: 96 | G10: % | I10: 96 | J10: %
B12: Unit size | C12: Bedsit/room | F12: 1-bed | I12: 1-bed
B13: Unit type | C13: Supported | F13: Supported | I13: Supported
B14: Core rent setting method | C14: Cost rent* | F14: Cost rent* | I14: Cost rent* | O14: =IF(OR(C14=$E$128,C14=""),"C",IF(C14=$E$130,"S",IF(C14=$E$129,IF(C19="DRC*","D","M")))) -> C | R14: =IF(OR(F14=$E$128,F14=""),"C",IF(F14=$E$130,"S",IF(F14=$E$129,IF(F19="DRC*","D","M")))) -> C | U14: =IF(OR(I14=$E$128,I14=""),"C",IF(I14=$E$130,"S",IF(I14=$E$129,IF(I19="DRC*","D","M")))) -> C
C15: =IF(C14=$E$128,"* The core rent covers costs",IF(C14="","Cost rent by default","")) -> * The core rent covers costs | F15: =IF(F14=$E$128,"* The core rent covers costs",IF(F14="","Cost rent by default","")) -> * The core rent covers costs | I15: =IF(I14=$E$128,"* The core rent covers costs",IF(I14="","Cost rent by default","")) -> * The core rent covers costs
B16: Cost rent (from property page) | C16: =Prop!M43 -> 0 | F16: =Prop!O43 -> 0 | I16: =Prop!Q43 -> 0
B17: =IF(OR(C14=$E$130,F14=$E$130,I14=$E$130),"Specify the core rent for this unit type","") -> 
B18: =IF(OR(C$14=$E$129,F$14=$E$129,I$14=$E$129),"Formula rent","") ->  | D18: =IF(C14=$E129,'F1'!$K14,0) -> 0 | G18: =IF(F14=$E129,'F2'!$K14,0) -> 0 | J18: =IF(I14=$E129,'F3'!$K14,0) -> 0
B19: =IF(OR(C$14=$E$129,F$14=$E$129,I$14=$E$129),"Formula rent method (manual or DRC)","") ->  | C19: Manual entry | F19: Manual entry | I19: Manual entry
C20: =IF(AND(C14=$E$129,C19="DRC*"),"* Depreciated replacement cost",IF(AND(C14=$E$129,C19=""),"Manual (by default)","")) ->  | F20: =IF(AND(F14=$E$129,F19="DRC*"),"* Depreciated replacement cost",IF(AND(F14=$E$129,F19=""),"Manual (by default)","")) ->  | I20: =IF(AND(I14=$E$129,I19="DRC*"),"* Depreciated replacement cost",IF(AND(I14=$E$129,I19=""),"Manual (by default)","")) -> 
B21: =IF(OR(AND(C14=$E$129,OR(C19="Manual entry",C19="")),AND(F14=$E$129,OR(F19="Manual entry",F19="")),AND(I14=$E$129,OR(I19="Manual entry",I19=""))),"Enter the 1999 unit valuation (EUV)","") -> 
B22: =IF(OR(C$14=$E$129,F$14=$E$129,I$14=$E$129),"Apply flexibility to formula rent ?","") ->  | C22: Yes | F22: Yes | I22: Yes
B24: =IF(OR(C$14=$E$129,F$14=$E$129,I$14=$E$129),"Select the area (for 1999 manual earnings data)","") ->  | C24: Greater London | H24: =IF(R24=1,"This applies to all formula rent calculations","") ->  | O24: =IF(C14=$E$129,1,0) -> 0 | P24: =IF(F14=$E$129,1,0) -> 0 | Q24: =IF(I14=$E$129,1,0) -> 0 | R24: =IF(SUM(O24:Q24)>0,1,0) -> 0
B26: =IF(OR(AND(C$19="DRC*",C$14=$E$129),AND(F$19="DRC*",F$14=$E$129),AND(I$19="DRC*",I$14=$E$129)),"Floor area of the unit (m²) **","") -> 
B27: =IF(OR(AND(C$19="DRC*",C$14=$E$129),AND(F$19="DRC*",F$14=$E$129),AND(I$19="DRC*",I$14=$E$129)),"Plot area including curtilage (m²)","") -> 
B28: =IF(OR(AND(C$19="DRC*",C$14=$E$129),AND(F$19="DRC*",F$14=$E$129),AND(I$19="DRC*",I$14=$E$129)),"Total number of units on the site","") ->  | C28: =SUM(C8,F8,I8) -> 0 | F28: =SUM(C8,F8,I8) -> 0 | I28: =SUM(C8,F8,I8) -> 0
B29: =IF(OR(AND(C$19="DRC*",C$14=$E$129),AND(F$19="DRC*",F$14=$E$129),AND(I$19="DRC*",I$14=$E$129)),"Was a new lift installed ?","") ->  | C29: No | F29: No | I29: No
B30: =IF(OR(AND(C$19="DRC*",C$14=$E$129),AND(F$19="DRC*",F$14=$E$129),AND(I$19="DRC*",I$14=$E$129)),"Were adaptations made for wheelchair access ?","") ->  | C30: No | F30: No | I30: No
B31: =IF(OR(AND(C$19="DRC*",C$14=$E$129),AND(F$19="DRC*",F$14=$E$129),AND(I$19="DRC*",I$14=$E$129)),"Are kitchens more than 10 years old ?","") ->  | C31: No | F31: Yes | I31: No
B32: =IF(OR(AND(C$19="DRC*",C$14=$E$129),AND(F$19="DRC*",F$14=$E$129),AND(I$19="DRC*",I$14=$E$129)),"Are bathrooms more than 15 years old ?","") ->  | C32: No | F32: Yes | I32: No
B34: =IF(OR(AND(C$19="DRC*",C$14=$E$129),AND(F$19="DRC*",F$14=$E$129),AND(I$19="DRC*",I$14=$E$129)),"Select the area (for DRC land values)","") ->  | C34: Lambeth | H34: =IF(R34=1,"This applies to all DRC valuations","") ->  | O34: =IF(AND(C14=$E$129,C19="DRC*"),1,0) -> 0 | P34: =IF(AND(F14=$E$129,F19="DRC*"),1,0) -> 0 | Q34: =IF(AND(I14=$E$129,I19="DRC*"),1,0) -> 0 | R34: =IF(SUM(O34:Q34)>0,1,0) -> 0
B38: Effective rent | C38: =IF(C14=$E$128,C16,IF(C14=$E$129,D18,IF(C14=$E$130,C17,0))) -> 0 | F38: =IF(F14=$E$128,F16,IF(F14=$E$129,G18,IF(F14=$E$130,F17,0))) -> 0 | I38: =IF(I14=$E$128,I16,IF(I14=$E$129,J18,IF(I14=$E$130,I17,0))) -> 0
B80: Manual earnings
B81: Avon | C81: 321.2
B82: Bedfordshire | C82: 343.7
B83: Berkshire | C83: 345.4
B84: Buckinghamshire | C84: 328.3
B85: Cambridgeshire | C85: 330.1
B86: Cheshire | C86: 322
B87: Cleveland | C87: 338.4
B88: Cornwall | C88: 255.5
B89: Cumbria | C89: 323.7
B90: Derbyshire | C90: 321.1
B91: Devon | C91: 278
B92: Dorset | C92: 293.9
B93: Durham | C93: 289.7
B94: East Sussex | C94: 281.5
B95: Essex | C95: 325.9
B96: Gloucestershire | C96: 308
B97: Greater London | C97: 354.1
B98: Greater Manchester | C98: 307.3
B99: Hampshire | C99: 328.7
B100: Hereford & Worcs | C100: 289.6
B101: Hertfordshire | C101: 343.7
B102: Humberside | C102: 318.4
B103: Isle of Wight | C103: 288.5
B104: Kent | C104: 316.4
B105: Lancashire | C105: 302.7
B106: Leicestershire | C106: 303.1
B107: Lincolnshire | C107: 286.7
B108: Merseyside | C108: 324.9
B109: Norfolk | C109: 302.5
B110: North Yorkshire | C110: 299.6
B111: Northamptonshire | C111: 328.5
B112: Northumberland | C112: 276.1
B113: Nottinghamshire | C113: 298
B114: Oxfordshire | C114: 323.8
B115: Shropshire | C115: 295.4
B116: Somerset | C116: 299.7
B117: South Yorkshire | C117: 299.1
B118: Staffordshire | C118: 296.2
B119: Suffolk | C119: 304.3
B120: Surrey | C120: 333.2
B121: Tyne & Wear | C121: 307.9
B122: Warwickshire | C122: 326.1
B123: West Midlands | C123: 320.6
B124: West Sussex | C124: 332.5
B125: West Yorkshire | C125: 302.7
B126: Wiltshire | C126: 313.9
B128: Bedsit/room | C128: 0.8 | E128: Cost rent*
B129: 1-bed | C129: 0.9 | E129: Formula rent
B130: 2-bed | C130: 1 | E130: Specific core rent
B131: 3-bed | C131: 1.1
B132: 4-bed | C132: 1.2
B133: 5-bed | C133: 1.3
B134: 6-bed | C134: 1.4
B136: General needs | C136: 5
B137: Supported | C137: 10
B138: Refuge or almshouse | C138: 10
B140: Adur | C140: C | D140: 800 | E140: 750
B141: Allerdale | C141: D | D141: 250 | E141: 197
B142: Alnwick | C142: D | D142: 430 | E142: 310
B143: Amber Valley | C143: E | D143: 520 | E143: 450
B144: Arun | C144: C | D144: 1125 | E144: 1110
B145: Ashfield | C145: E | D145: 350 | E145: 300
B146: Ashford | C146: C | D146: 1020 | E146: 925
B147: Aylesbury Vale | C147: C | D147: 1600 | E147: 1600
B148: Babergh | C148: D | D148: 350 | E148: 335
B149: Barking and Dagenham | C149: B | D149: 1385 | E149: 1600
B150: Barnet | C150: A | D150: 3800 | E150: 3500
B151: Barnsley | C151: D | D151: 550 | E151: 375
B152: Barrow-in-Furness | C152: C | D152: 425 | E152: 375
B153: Basildon | C153: C | D153: 1025 | E153: 988
B154: Basingstoke and Deane | C154: B | D154: 1720 | E154: 1720
B155: Bassetlaw | C155: D | D155: 400 | E155: 300
B156: Bath and North East Somerset | C156: C | D156: 1500 | E156: 1400
B157: Berwick-upon-Tweed | C157: D | D157: 370 | E157: 245
B158: Bexley | C158: B | D158: 2000 | E158: 1600
B159: Birmingham | C159: C | D159: 890 | E159: 890
B160: Blaby | C160: D | D160: 750 | E160: 700
B161: Blackburn | C161: D | D161: 470 | E161: 325
B162: Blackpool | C162: D | D162: 750 | E162: 675
B163: Blyth Valley | C163: D | D163: 245 | E163: 200
B164: Bolsover | C164: E | D164: 325 | E164: 250
B165: Bolton | C165: D | D165: 550 | E165: 500
B166: Boston | C166: E | D166: 270 | E166: 185
B167: Bournemouth | C167: C | D167: 1600 | E167: 1500
B168: Bracknell Forest | C168: B | D168: 2000 | E168: 2000
B169: Bradford | C169: D | D169: 600 | E169: 525
B170: Braintree | C170: D | D170: 800 | E170: 750
B171: Breckland | C171: E | D171: 325 | E171: 275
B172: Brent | C172: A | D172: 2300 | E172: 3000
B173: Brentwood | C173: B | D173: 1555 | E173: 1400
B174: Bridgnorth | C174: D | D174: 750 | E174: 715
B175: Brighton and Hove | C175: C | D175: 1200 | E175: 1000
B176: Bristol | C176: C | D176: 1350 | E176: 1350
B177: Broadland | C177: D | D177: 325 | E177: 275
B178: Bromley | C178: B | D178: 2000 | E178: 2470
B179: Bromsgrove | C179: C | D179: 1235 | E179: 1350
B180: Broxbourne | C180: B | D180: 2200 | E180: 2000
B181: Broxtowe | C181: D | D181: 680 | E181: 625
B182: Burnley | C182: D | D182: 470 | E182: 310
B183: Bury | C183: D | D183: 550 | E183: 500
B184: Calderdale | C184: D | D184: 550 | E184: 450
B185: Cambridge | C185: B | D185: 1480 | E185: 2200
B186: Camden | C186: A | D186: 9000 | E186: 5500
B187: Cannock Chase | C187: D | D187: 900 | E187: 950
B188: Canterbury | C188: C | D188: 1850 | E188: 1350
B189: Caradon | C189: D | D189: 200 | E189: 220
B190: Carlisle | C190: D | D190: 360 | E190: 270
B191: Carrick | C191: D | D191: 400 | E191: 350
B192: Castle Morpeth | C192: D | D192: 450 | E192: 370
B193: Castle Point | C193: C | D193: 1200 | E193: 1300
B194: Charnwood | C194: D | D194: 800 | E194: 800
B195: Chelmsford | C195: C | D195: 1280 | E195: 1225
B196: Cheltenham | C196: C | D196: 1500 | E196: 1500
B197: Cherwell | C197: C | D197: 1000 | E197: 900
B198: Chester | C198: C | D198: 645 | E198: 825
B199: Chesterfield | C199: D | D199: 495 | E199: 325
B200: Chester-le-Street | C200: D | D200: 494 | E200: 494
B201: Chichester | C201: C | D201: 1850 | E201: 1750
B202: Chiltern | C202: B | D202: 2500 | E202: 2500
B203: Chorley | C203: D | D203: 775 | E203: 625
B204: Christchurch | C204: C | D204: 1600 | E204: 1500
B205: City of London | C205: A | D205: 20500 | E205: 20500
B206: City of Westminster | C206: A | D206: 20500 | E206: 20500
B207: Colchester | C207: C | D207: 900 | E207: 900
B208: Congleton | C208: D | D208: 540 | E208: 500
B209: Copeland | C209: D | D209: 200 | E209: 150
B210: Corby | C210: D | D210: 350 | E210: 350
B211: Cotswold | C211: C | D211: 1350 | E211: 1350
B212: Coventry | C212: D | D212: 950 | E212: 850
B213: Craven | C213: D | D213: 525 | E213: 500
B214: Crawley | C214: B | D214: 1200 | E214: 1200
B215: Crewe and Nantwich | C215: D | D215: 350 | E215: 300
B216: Croydon | C216: B | D216: 2000 | E216: 2000
B217: Dacorum | C217: B | D217: 1900 | E217: 2250
B218: Darlington | C218: D | D218: 500 | E218: 500
B219: Dartford | C219: C | D219: 1100 | E219: 1100
B220: Daventry | C220: D | D220: 740 | E220: 740
B221: Derby | C221: E | D221: 600 | E221: 550
B222: Derbyshire Dales | C222: D | D222: 550 | E222: 490
B223: Derwentside | C223: D | D223: 315 | E223: 275
B224: Doncaster | C224: D | D224: 625 | E224: 425
B225: Dover | C225: C | D225: 700 | E225: 450
B226: Dudley | C226: D | D226: 950 | E226: 1000
B227: Durham | C227: C | D227: 650 | E227: 600
B228: Ealing | C228: A | D228: 3100 | E228: 3200
B229: Easington | C229: D | D229: 350 | E229: 215
B230: East Cambridgeshire | C230: D | D230: 615 | E230: 565
B231: East Devon | C231: C | D231: 893 | E231: 819
B232: East Dorset | C232: C | D232: 1400 | E232: 1300
B233: East Hampshire | C233: B | D233: 1500 | E233: 1500
B234: East Hertfordshire | C234: B | D234: 1400 | E234: 1350
B235: East Lindsey | C235: E | D235: 410 | E235: 250
B236: East Northamptonshire | C236: D | D236: 570 | E236: 570
B237: East Riding | C237: D | D237: 610 | E237: 550
B238: East Staffordshire | C238: D | D238: 700 | E238: 475
B239: Eastbourne | C239: C | D239: 875 | E239: 750
B240: Eastleigh | C240: C | D240: 1440 | E240: 1250
B241: Eden | C241: D | D241: 320 | E241: 270
B242: Ellesmere Port and Neston | C242: D | D242: 360 | E242: 350
B243: Elmbridge | C243: B | D243: 1800 | E243: 1500
B244: Enfield | C244: B | D244: 3000 | E244: 2800
B245: Epping Forest | C245: B | D245: 1600 | E245: 1480
B246: Epsom and Ewell | C246: B | D246: 1450 | E246: 1400
B247: Erewash | C247: D | D247: 540 | E247: 460
B248: Exeter | C248: D | D248: 1103 | E248: 987
B249: Fareham | C249: C | D249: 1400 | E249: 1200
B250: Fenland | C250: E | D250: 225 | E250: 210
B251: Forest Heath | C251: D | D251: 320 | E251: 300
B252: Forest of Dean | C252: D | D252: 740 | E252: 740
B253: Fylde | C253: C | D253: 800 | E253: 750
B254: Gateshead | C254: D | D254: 500 | E254: 450
B255: Gedling | C255: D | D255: 675 | E255: 600
B256: Gloucester | C256: D | D256: 1100 | E256: 1100
B257: Gosport | C257: C | D257: 1025 | E257: 1000
... 241 more rows

Sheet Food (hidden)
B2: =IF(Menu!B3<>"",Menu!B3,"") -> 
F3: Unit | H3: Unit | J3: Unit
B4: FOOD / CATERING | F4: type 1 | H4: type 2 | J4: type 3
D5: Total | F5: ='M1'!C12 -> Bedsit/room | H5: ='M1'!F12 -> 1-bed | J5: ='M1'!I12 -> 1-bed
B6: Number of units | D6: =SUM(F6:J6) -> 0 | F6: ='M1'!C8 -> 0 | H6: ='M1'!F8 -> 0 | J6: ='M1'!I8 -> 0
B7: Budgeted occupancy (see units page) | F7: =IF(F6>0,'M1'!C10,0) -> 0 | G7: % | H7: =IF(H6>0,'M1'!F10,0) -> 0 | I7: % | J7: =IF(J6>0,'M1'!I10,0) -> 0 | K7: %
B8: Budgeted bad debts (HB-ineligible) - see services page | F8: =Services!F10 -> 5 | G8: % | H8: =Services!H10 -> 5 | I8: % | J8: =Services!J10 -> 5 | K8: %
B9: Budgeted bad debts (HB-eligible) - see services page | F9: =Services!F9 -> 2 | G9: % | H9: =Services!H9 -> 2 | I9: % | J9: =Services!J9 -> 2 | K9: %
D10: =IF(D11="","Drop-down selection ↓","") -> 
B11: Charging method (applies to all types) | D11: Standard deductions
B12: Meals provided (for each unit type) | L12: =IF(AND(OR(F12="",F12="None"),OR(H12="",H12="None"),OR(J12="",J12="None")),"B","") -> B
B13: Standard HB deductions (HB ineligible food charges) | D13: =Menu!C5 -> 2025/26 | F13: =IF(F6=0,0,IF(F12=$F$151,0,IF(AND($D11=$F$156,F12<>"",Menu!$C$5<>""),VLOOKUP($D13,Ass!$B$22:$F$25,HLOOKUP(F12,Ass!$D$19:$F$21,ROWS(Ass!$D$19:$D$21),FALSE),FALSE),0))) -> 0 | H13: =IF(H6=0,0,IF(H12=$F$151,0,IF(AND($D11=$F$156,H12<>"",Menu!$C$5<>""),VLOOKUP($D13,Ass!$B$22:$F$25,HLOOKUP(H12,Ass!$D$19:$F$21,ROWS(Ass!$D$19:$D$21),FALSE),FALSE),0))) -> 0 | J13: =IF(J6=0,0,IF(J12=$F$151,0,IF(AND($D11=$F$156,J12<>"",Menu!$C$5<>""),VLOOKUP($D13,Ass!$B$22:$F$25,HLOOKUP(J12,Ass!$D$19:$F$21,ROWS(Ass!$D$19:$D$21),FALSE),FALSE),0))) -> 0
B16: Food expenditure budget
B17: Salaries - catering staff | D17: =Salaries!H31 -> 0 | F17: =IF($D$11=$F$158,0,IF(AND($D$11=$F$156,$D$114<>0),$D17*F$114/$D$114,IF(AND($D$11=$F$157,$D$93<>0),$D17*F$93/$D$93,0))) -> 0 | H17: =IF($D$11=$F$158,0,IF(AND($D$11=$F$156,$D$114<>0),$D17*H$114/$D$114,IF(AND($D$11=$F$157,$D$93<>0),$D17*H$93/$D$93,0))) -> 0 | J17: =IF($D$11=$F$158,0,IF(AND($D$11=$F$156,$D$114<>0),$D17*J$114/$D$114,IF(AND($D$11=$F$157,$D$93<>0),$D17*J$93/$D$93,0))) -> 0
B18: Provisions / food supplies / other costs | F18: =IF(AND($D11=$F157,OR(F12="",F12="None")),0,IF($D$11=$F$158,0,IF(AND($D$11=$F$156,$D$114<>0),$D18*F$114/$D$114,IF(AND($D$11=$F$157,$D$93<>0),$D18*F$93/$D$93,0)))) -> 0 | H18: =IF(AND($D11=$F157,OR(H12="",H12="None")),0,IF($D$11=$F$158,0,IF(AND($D$11=$F$156,$D$114<>0),$D18*H$114/$D$114,IF(AND($D$11=$F$157,$D$93<>0),$D18*H$93/$D$93,0)))) -> 0 | J18: =IF(AND($D11=$F157,OR(J12="",J12="None")),0,IF($D$11=$F$158,0,IF(AND($D$11=$F$156,$D$114<>0),$D18*J$114/$D$114,IF(AND($D$11=$F$157,$D$93<>0),$D18*J$93/$D$93,0)))) -> 0 | N18: =F156 -> Standard deductions
B19: =IF(D19>0,"Other costs (balance of ineligible charge income)","") ->  | D19: =SUM(F19:J19) -> 0 | F19: =IF(F63>SUM(F17:F18),F63-SUM(F17:F18),0) -> 0 | H19: =IF(H63>SUM(H17:H18),H63-SUM(H17:H18),0) -> 0 | J19: =IF(J63>SUM(J17:J18),J63-SUM(J17:J18),0) -> 0 | N19: =F157 -> All ineligibe
B20: Total food & catering costs | D20: =SUM(D17:D19) -> 0 | F20: =SUM(F17:F19) -> 0 | H20: =SUM(H17:H19) -> 0 | J20: =SUM(J17:J19) -> 0 | N20: Separate funding
B22: Income for food / catering
B23: Separate funding / invoicing for food | D23: =IF(OR($D$11=$F$158,AND($F$12="",$H$12="",$J$12="")),D20,0) -> 0
B24: Ineligible charges (net of voids & bad debts) | D24: =SUM(F24:J24) -> 0 | F24: =IF($D$11=$F$157,F20,IF($D$11=$F$156,F63,0)) -> 0 | H24: =IF($D$11=$F$157,H20,IF($D$11=$F$156,H63,0)) -> 0 | J24: =IF($D$11=$F$157,J20,IF($D$11=$F$156,J63,0)) -> 0
B25: HB eligible charges (net of voids and bad debts) | D25: =SUM(F25:J25) -> 0 | F25: =IF(AND($D$11=$F$156,F24<SUM(F17:F18)),SUM(F17:F18)-F24,0) -> 0 | H25: =IF(AND($D$11=$F$156,H24<SUM(H17:H18)),SUM(H17:H18)-H24,0) -> 0 | J25: =IF(AND($D$11=$F$156,J24<SUM(J17:J18)),SUM(J17:J18)-J24,0) -> 0
D26: =SUM(D23:D25) -> 0 | F26: =SUM(F23:F25) -> 0 | H26: =SUM(H23:H25) -> 0 | J26: =SUM(J23:J25) -> 0
B28: HB ineligible charges
B29: Units | F29: =F6 -> 0 | H29: =H6 -> 0 | J29: =J6 -> 0
B30: Standard ineligible charges | F30: =IF($D$11=$F$156,F13,0) -> 0 | H30: =IF($D$11=$F$156,H13,0) -> 0 | J30: =IF($D$11=$F$156,J13,0) -> 0
B31: Ineligible charges (non-standard) | F31: =IF(AND(F$6<>0,F$7-F$8<>0,$D$11=$F$157),F$24/F$6/52*100/(F$7-F$8),0) -> 0 | H31: =IF(AND(H6<>0,H7-H8<>0,$D$11=$F$157),H24/H6/52*100/(H7-H8),0) -> 0 | J31: =IF(AND(J6<>0,J7-J8<>0,$D$11=$F$157),J24/J6/52*100/(J7-J8),0) -> 0
B32: Gross ineligible charges | F32: =F29*SUM(F30:F31)*52 -> 0 | H32: =H29*SUM(H30:H31)*52 -> 0 | J32: =J29*SUM(J30:J31)*52 -> 0
B33: Less voids | F33: =-F32*(100-F$7)/100 -> 0 | H33: =-H32*(100-H7)/100 -> 0 | J33: =-J32*(100-J7)/100 -> 0
B34: bad debts | F34: =-F32*F$8/100 -> 0 | H34: =-H32*H8/100 -> 0 | J34: =-J32*J8/100 -> 0
F35: =SUM(F32:F34) -> 0 | H35: =SUM(H32:H34) -> 0 | J35: =SUM(J32:J34) -> 0
B37: HB eligible charges | F37: =IF(AND(F$6<>0,F$7-F$8<>0),F25/F$6/52*100/(F$7-F$9),0) -> 0 | H37: =IF(AND(H$6<>0,H$7-H$8<>0),H25/H$6/52*100/(H$7-H$9),0) -> 0 | J37: =IF(AND(J$6<>0,J$7-J$8<>0),J25/J$6/52*100/(J$7-J$9),0) -> 0
B38: Gross ineligible charges | F38: =F37*F29*52 -> 0 | H38: =H37*H29*52 -> 0 | J38: =J37*J29*52 -> 0
B39: Less voids | F39: =-F38*(100-F$7)/100 -> 0 | H39: =-H38*(100-H$7)/100 -> 0 | J39: =-J38*(100-J$7)/100 -> 0
B40: bad debts | F40: =-F38*F$9/100 -> 0 | H40: =-H38*H$9/100 -> 0 | J40: =-J38*J$9/100 -> 0
F41: =SUM(F38:F40) -> 0 | H41: =SUM(H38:H40) -> 0 | J41: =SUM(J38:J40) -> 0
B44: Separate funding | D44: =D23 -> 0
B45: Ineligible | D45: =D24 -> 0
B46: Eligible | D46: 0
B48: Salaries
B49: Separate funding | D49: =IF(SUM($D$44:$D$46)<>0,$D$17*D44/SUM($D$44:$D$46),0) -> 0
B50: Ineligible | D50: =IF(SUM($D$44:$D$46)<>0,$D$17*D45/SUM($D$44:$D$46),0) -> 0
B51: Eligible | D51: 0
B53: Other
B54: Separate funding | D54: =IF(SUM($D$44:$D$46)<>0,SUM($D$18:$D$19)*D44/SUM($D$44:$D$46),0) -> 0
B55: Ineligible | D55: =IF(SUM($D$44:$D$46)<>0,SUM($D$18:$D$19)*D45/SUM($D$44:$D$46),0) -> 0
B56: Eligible | D56: 0
B63: Standard deductions | F63: =IF($D$11=$F$156,F$13*F$6*52*(F$7-F$8)/100,0) -> 0 | H63: =IF($D$11=$F$156,H$13*H$6*52*(H$7-H$8)/100,0) -> 0 | J63: =IF($D$11=$F$156,J$13*J$6*52*(J$7-J$8)/100,0) -> 0
B66: All ineligible / no meals
A67: =IF(AND(D$11=$F$157,OR(F$12="",F$12=$F$151),OR(H$12="",H$12=$F$151),OR(J$12="",J$12=$F$151)),1,0) -> 0 | B67: No meals | D67: =SUM(F67:J67) -> 0 | F67: =F$6 -> 0 | H67: =H$6 -> 0 | J67: =J$6 -> 0
A68: =IF(AND(COUNTIF($F$152:$F$154,F$12)=1,COUNTIF($F$152:$F$154,H$12)=0,COUNTIF($F$152:$F$154,J$12)=0),1,0) -> 0 | B68: Meals 1 only | D68: =SUM(F68:J68) -> 0 | F68: =F$6 -> 0
A69: =IF(AND(COUNTIF($F$152:$F$154,F$12)=0,COUNTIF($F$152:$F$154,H$12)=1,COUNTIF($F$152:$F$154,J$12)=0),1,0) -> 0 | B69: Meals 2 only | D69: =SUM(F69:J69) -> 0 | H69: =H$6 -> 0
A70: =IF(AND(COUNTIF($F$152:$F$154,F$12)=0,COUNTIF($F$152:$F$154,H$12)=0,COUNTIF($F$152:$F$154,J$12)=1),1,0) -> 0 | B70: Meals 3 only | D70: 0 | J70: =J6 -> 0
A71: =IF(AND(COUNTIF($F$152:$F$154,F$12)=1,COUNTIF($F$152:$F$154,H$12)=1,COUNTIF($F$152:$F$154,J$12)=0),1,0) -> 0 | B71: Meals 1 & 2 | D71: 0 | F71: =F6 -> 0 | H71: =H6 -> 0
A72: =IF(AND(COUNTIF($F$152:$F$154,F$12)=1,COUNTIF($F$152:$F$154,H$12)=0,COUNTIF($F$152:$F$154,J$12)=1),1,0) -> 0 | B72: Meals 1 & 3 | D72: 0 | F72: =F6 -> 0 | J72: =J6 -> 0
A73: =IF(AND(COUNTIF($F$152:$F$154,F$12)=0,COUNTIF($F$152:$F$154,H$12)=1,COUNTIF($F$152:$F$154,J$12)=1),1,0) -> 0 | B73: Meals 2 & 3 | D73: 0 | H73: =H6 -> 0 | J73: =J6 -> 0
A74: =IF(AND(COUNTIF($F$152:$F$154,F$12)=1,COUNTIF($F$152:$F$154,H$12)=1,COUNTIF($F$152:$F$154,J$12)=1),1,0) -> 0 | B74: All meals | D74: 0 | F74: =F6 -> 0 | H74: =H6 -> 0 | J74: =J6 -> 0
B75: Weighting
A76: =IF(AND(D$11=$F$157,OR(F$12="",F$12=$F$151),OR(H$12="",H$12=$F$151),OR(J$12="",J$12=$F$151)),1,0) -> 0 | B76: No meals | D76: =SUM(F76:J76) -> 3 | F76: 1 | H76: 1 | J76: 1
A77: =IF(AND(COUNTIF($F$152:$F$154,F$12)=1,COUNTIF($F$152:$F$154,H$12)=0,COUNTIF($F$152:$F$154,J$12)=0),1,0) -> 0 | B77: Meals 1 only | D77: =SUM(F77:J77) -> 1 | F77: 1
A78: =IF(AND(COUNTIF($F$152:$F$154,F$12)=0,COUNTIF($F$152:$F$154,H$12)=1,COUNTIF($F$152:$F$154,J$12)=0),1,0) -> 0 | B78: Meals 2 only | D78: =SUM(F78:J78) -> 1 | H78: 1
A79: =IF(AND(COUNTIF($F$152:$F$154,F$12)=0,COUNTIF($F$152:$F$154,H$12)=0,COUNTIF($F$152:$F$154,J$12)=1),1,0) -> 0 | B79: Meals 3 only | D79: 1 | J79: 1
A80: =IF(AND(COUNTIF($F$152:$F$154,F$12)=1,COUNTIF($F$152:$F$154,H$12)=1,COUNTIF($F$152:$F$154,J$12)=0),1,0) -> 0 | B80: Meals 1 & 2 | D80: 0 | F80: =IF($A71>0,HLOOKUP(F$12,Ass!$D$19:$F$27,ROWS(Ass!$D$19:$D$27),FALSE),0) -> 0 | H80: =IF($A71>0,HLOOKUP(H$12,Ass!$D$19:$F$27,ROWS(Ass!$D$19:$D$27),FALSE),0) -> 0
A81: =IF(AND(COUNTIF($F$152:$F$154,F$12)=1,COUNTIF($F$152:$F$154,H$12)=0,COUNTIF($F$152:$F$154,J$12)=1),1,0) -> 0 | B81: Meals 1 & 3 | D81: 0 | F81: =IF($A72>0,HLOOKUP(F$12,Ass!$D$19:$F$27,ROWS(Ass!$D$19:$D$27),FALSE),0) -> 0 | J81: =IF($A72>0,HLOOKUP(J$12,Ass!$D$19:$F$27,ROWS(Ass!$D$19:$D$27),FALSE),0) -> 0
A82: =IF(AND(COUNTIF($F$152:$F$154,F$12)=0,COUNTIF($F$152:$F$154,H$12)=1,COUNTIF($F$152:$F$154,J$12)=1),1,0) -> 0 | B82: Meals 2 & 3 | D82: 0 | H82: =IF($A73>0,HLOOKUP(H$12,Ass!$D$19:$F$27,ROWS(Ass!$D$19:$D$27),FALSE),0) -> 0 | J82: =IF($A73>0,HLOOKUP(J$12,Ass!$D$19:$F$27,ROWS(Ass!$D$19:$D$27),FALSE),0) -> 0
A83: =IF(AND(COUNTIF($F$152:$F$154,F$12)=1,COUNTIF($F$152:$F$154,H$12)=1,COUNTIF($F$152:$F$154,J$12)=1),1,0) -> 0 | B83: All meals | D83: 0 | F83: =IF($A74>0,HLOOKUP(F$12,Ass!$D$19:$F$27,ROWS(Ass!$D$19:$D$27),FALSE),0) -> 0 | H83: =IF($A74>0,HLOOKUP(H$12,Ass!$D$19:$F$27,ROWS(Ass!$D$19:$D$27),FALSE),0) -> 0 | J83: =IF($A74>0,HLOOKUP(J$12,Ass!$D$19:$F$27,ROWS(Ass!$D$19:$D$27),FALSE),0) -> 0
B84: Weighting x units
A85: =IF(AND(D$11=$F$157,OR(F$12="",F$12=$F$151),OR(H$12="",H$12=$F$151),OR(J$12="",J$12=$F$151)),1,0) -> 0 | B85: No meals | D85: =SUM(F85:J85) -> 0 | F85: =IF($A85=1,F67*F76,0) -> 0 | H85: =IF($A85=1,H67*H76,0) -> 0 | J85: =IF($A85=1,J67*J76,0) -> 0
A86: =IF(AND(COUNTIF($F$152:$F$154,F$12)=1,COUNTIF($F$152:$F$154,H$12)=0,COUNTIF($F$152:$F$154,J$12)=0),1,0) -> 0 | B86: Meals 1 only | D86: 0 | F86: =IF($A86=1,F68*F77,0) -> 0 | H86: =IF($A86=1,H68*H77,0) -> 0 | J86: =IF($A86=1,J68*J77,0) -> 0
A87: =IF(AND(COUNTIF($F$152:$F$154,F$12)=0,COUNTIF($F$152:$F$154,H$12)=1,COUNTIF($F$152:$F$154,J$12)=0),1,0) -> 0 | B87: Meals 2 only | D87: 0 | F87: 0 | H87: 0 | J87: 0
A88: =IF(AND(COUNTIF($F$152:$F$154,F$12)=0,COUNTIF($F$152:$F$154,H$12)=0,COUNTIF($F$152:$F$154,J$12)=1),1,0) -> 0 | B88: Meals 3 only | D88: 0 | F88: 0 | H88: 0 | J88: 0
A89: =IF(AND(COUNTIF($F$152:$F$154,F$12)=1,COUNTIF($F$152:$F$154,H$12)=1,COUNTIF($F$152:$F$154,J$12)=0),1,0) -> 0 | B89: Meals 1 & 2 | D89: 0 | F89: 0 | H89: 0 | J89: 0
A90: =IF(AND(COUNTIF($F$152:$F$154,F$12)=1,COUNTIF($F$152:$F$154,H$12)=0,COUNTIF($F$152:$F$154,J$12)=1),1,0) -> 0 | B90: Meals 1 & 3 | D90: 0 | F90: 0 | H90: 0 | J90: 0
A91: =IF(AND(COUNTIF($F$152:$F$154,F$12)=0,COUNTIF($F$152:$F$154,H$12)=1,COUNTIF($F$152:$F$154,J$12)=1),1,0) -> 0 | B91: Meals 2 & 3 | D91: 0 | F91: 0 | H91: 0 | J91: 0
A92: =IF(AND(COUNTIF($F$152:$F$154,F$12)=1,COUNTIF($F$152:$F$154,H$12)=1,COUNTIF($F$152:$F$154,J$12)=1),1,0) -> 0 | B92: All meals | D92: 0 | F92: 0 | H92: 0 | J92: 0
D93: =SUM(D85:D92) -> 0 | F93: =SUM(F85:F92) -> 0 | H93: =SUM(H85:H92) -> 0 | J93: =SUM(J85:J92) -> 0
B95: Standard deductions
A96: =IF(AND(D$11=$F$157,OR(F$12="",F$12=$F$151),OR(H$12="",H$12=$F$151),OR(J$12="",J$12=$F$151)),1,0) -> 0 | B96: No meals | D96: =SUM(F96:J96) -> 0 | F96: 0 | H96: 0 | J96: 0
A97: =IF(AND(COUNTIF($F$152:$F$154,F$12)=1,COUNTIF($F$152:$F$154,H$12)=0,COUNTIF($F$152:$F$154,J$12)=0),1,0) -> 0 | B97: Meals 1 only | D97: =SUM(F97:J97) -> 0 | F97: =F$13 -> 0
A98: =IF(AND(COUNTIF($F$152:$F$154,F$12)=0,COUNTIF($F$152:$F$154,H$12)=1,COUNTIF($F$152:$F$154,J$12)=0),1,0) -> 0 | B98: Meals 2 only | D98: =SUM(F98:J98) -> 0 | H98: =H$13 -> 0
A99: =IF(AND(COUNTIF($F$152:$F$154,F$12)=0,COUNTIF($F$152:$F$154,H$12)=0,COUNTIF($F$152:$F$154,J$12)=1),1,0) -> 0 | B99: Meals 3 only | D99: 0 | J99: =J$13 -> 0
A100: =IF(AND(COUNTIF($F$152:$F$154,F$12)=1,COUNTIF($F$152:$F$154,H$12)=1,COUNTIF($F$152:$F$154,J$12)=0),1,0) -> 0 | B100: Meals 1 & 2 | D100: 0 | F100: =F$13 -> 0 | H100: =H$13 -> 0
A101: =IF(AND(COUNTIF($F$152:$F$154,F$12)=1,COUNTIF($F$152:$F$154,H$12)=0,COUNTIF($F$152:$F$154,J$12)=1),1,0) -> 0 | B101: Meals 1 & 3 | D101: 0 | F101: =F$13 -> 0 | J101: =J$13 -> 0
A102: =IF(AND(COUNTIF($F$152:$F$154,F$12)=0,COUNTIF($F$152:$F$154,H$12)=1,COUNTIF($F$152:$F$154,J$12)=1),1,0) -> 0 | B102: Meals 2 & 3 | D102: 0 | H102: =H$13 -> 0 | J102: =J$13 -> 0
A103: =IF(AND(COUNTIF($F$152:$F$154,F$12)=1,COUNTIF($F$152:$F$154,H$12)=1,COUNTIF($F$152:$F$154,J$12)=1),1,0) -> 0 | B103: All meals | D103: 0 | F103: =F$13 -> 0 | H103: =H$13 -> 0 | J103: =J$13 -> 0
A106: =IF(AND(D$11=$F$157,OR(F$12="",F$12=$F$151),OR(H$12="",H$12=$F$151),OR(J$12="",J$12=$F$151)),1,0) -> 0 | B106: No meals | D106: =SUM(F106:J106) -> 0 | F106: =IF($A106=1,F$6*F96,0) -> 0 | H106: =IF($A106=1,H$6*H96,0) -> 0 | J106: =IF($A106=1,J$6*J96,0) -> 0
A107: =IF(AND(COUNTIF($F$152:$F$154,F$12)=1,COUNTIF($F$152:$F$154,H$12)=0,COUNTIF($F$152:$F$154,J$12)=0),1,0) -> 0 | B107: Meals 1 only | D107: =SUM(F107:J107) -> 0 | F107: =IF($A107=1,F$6*F97,0) -> 0 | H107: =IF($A107=1,H$6*H97,0) -> 0 | J107: =IF($A107=1,J$6*J97,0) -> 0
A108: =IF(AND(COUNTIF($F$152:$F$154,F$12)=0,COUNTIF($F$152:$F$154,H$12)=1,COUNTIF($F$152:$F$154,J$12)=0),1,0) -> 0 | B108: Meals 2 only | D108: 0 | F108: 0 | H108: 0 | J108: 0
A109: =IF(AND(COUNTIF($F$152:$F$154,F$12)=0,COUNTIF($F$152:$F$154,H$12)=0,COUNTIF($F$152:$F$154,J$12)=1),1,0) -> 0 | B109: Meals 3 only | D109: 0 | F109: 0 | H109: 0 | J109: 0
A110: =IF(AND(COUNTIF($F$152:$F$154,F$12)=1,COUNTIF($F$152:$F$154,H$12)=1,COUNTIF($F$152:$F$154,J$12)=0),1,0) -> 0 | B110: Meals 1 & 2 | D110: 0 | F110: 0 | H110: 0 | J110: 0
A111: =IF(AND(COUNTIF($F$152:$F$154,F$12)=1,COUNTIF($F$152:$F$154,H$12)=0,COUNTIF($F$152:$F$154,J$12)=1),1,0) -> 0 | B111: Meals 1 & 3 | D111: 0 | F111: 0 | H111: 0 | J111: 0
A112: =IF(AND(COUNTIF($F$152:$F$154,F$12)=0,COUNTIF($F$152:$F$154,H$12)=1,COUNTIF($F$152:$F$154,J$12)=1),1,0) -> 0 | B112: Meals 2 & 3 | D112: 0 | F112: 0 | H112: 0 | J112: 0
A113: =IF(AND(COUNTIF($F$152:$F$154,F$12)=1,COUNTIF($F$152:$F$154,H$12)=1,COUNTIF($F$152:$F$154,J$12)=1),1,0) -> 0 | B113: All meals | D113: 0 | F113: 0 | H113: 0 | J113: 0
D114: =SUM(D106:D113) -> 0 | F114: =SUM(F106:F113) -> 0 | H114: =SUM(H106:H113) -> 0 | J114: =SUM(J106:J113) -> 0
B144: =F152 -> Breakfast | D144: =Ass!D27 -> 1
B145: =F153 -> 2 meals | D145: =Ass!E27 -> 5.488372093
B146: 3 meals | D146: =Ass!F27 -> 8.220930233
F151: None
F152: =Ass!D19 -> Breakfast
F153: =Ass!E19 -> 2 meals
F154: =Ass!F19 -> 3 meals
F156: Standard deductions
F157: All ineligibe
F158: Separate funding

Sheet Ass (hidden)
B3: =IF(Menu!B3<>"",Menu!B3,"") -> 
B5: WORKING ASSUMPTIONS
B7: Inflation
B8: CPI September 2023 | D8: ='F1'!O35 -> 6.7 | E8: %
B9: CPI September 2024 | D9: 2.2 | E9: %
B10: CPI September 2025 | D10: 2 | E10: %
B11: CPI September 2026 | D11: 2 | E11: %
B13: Formula rent (CPI additions) | F13: Formula rent increases
B14: 2024/25 | C14: From April 2024 | D14: ='F1'!P35 -> 1 | E14: % | F14: =SUM(D14,D8) -> 7.7 | G14: %
B15: 2025/26 | C15: From April 2025 | D15: 1 | E15: % | F15: =SUM(D15,D9) -> 3.2 | G15: %
B16: 2026/27 | C16: From April 2026 | D16: 1 | E16: % | F16: 3 | G16: %
B17: 2027/28 | C17: From April 2027 | D17: 1 | E17: % | F17: 3 | G17: %
B19: HB deductions for meals | D19: Breakfast | E19: 2 meals | F19: 3 meals
D20: 1 | E20: 2 | F20: 3
D21: =COLUMNS($B21:D21) -> 3 | E21: =COLUMNS($B21:E21) -> 4 | F21: =COLUMNS($B21:F21) -> 5
B22: 2024/25 | D22: 4.3 | E22: 23.6 | F22: 35.35
B23: 2025/26 | D23: =ROUND(D22*(100+$D9)/100,2) -> 4.39 | E23: =ROUND(E22*(100+$D9)/100,2) -> 24.12 | F23: 36.13
B24: 2026/27 | D24: =ROUND(D23*(100+$D10)/100,2) -> 4.48 | E24: =ROUND(E23*(100+$D10)/100,2) -> 24.6 | F24: =ROUND(F23*(100+$D10)/100,2) -> 36.85
B25: 2027/28 | D25: =ROUND(D24*(100+$D11)/100,2) -> 4.57 | E25: =ROUND(E24*(100+$D11)/100,2) -> 25.09 | F25: =ROUND(F24*(100+$D11)/100,2) -> 37.59
B27: Relaitive to breakfast only | D27: 1 | E27: =E22/D22 -> 5.488372093 | F27: =F22/D22 -> 8.220930233

Sheet CSS (hidden)
B2: =IF(Menu!B3<>"",Menu!B3,"") -> 
F3: Unit | H3: Unit | J3: Unit
B4: Care / support & supervision | F4: type 1 | H4: type 2 | J4: type 3
D5: Total | F5: ='M1'!C12 -> Bedsit/room | H5: ='M1'!F12 -> 1-bed | J5: ='M1'!I12 -> 1-bed
B6: Number of units | D6: =SUM(F6:J6) -> 0 | F6: ='M1'!C8 -> 0 | H6: ='M1'!F8 -> 0 | J6: ='M1'!I8 -> 0
B7: Budgeted occupancy (see units page) | F7: =IF(F6>0,'M1'!C10,0) -> 0 | G7: % | H7: =IF(H6>0,'M1'!F10,0) -> 0 | I7: % | J7: =IF(J6>0,'M1'!I10,0) -> 0 | K7: %
B8: Budgeted bad debts (HB-ineligible) - see services page | F8: =Services!F10 -> 5 | G8: % | H8: =Services!H10 -> 5 | I8: % | J8: =Services!J10 -> 5 | K8: %
B10: Weekly hours per resident
B11: Adjust weekly hours between units +/- ( %) | G11: =IF(F11<>0,"%","") ->  | I11: =IF(H11<>0,"%","") ->  | K11: =IF(J11<>0,"%","") -> 
B12: Staff-time - weekly hours | D12: =Salaries!I33 -> 0 | F12: =IF($D$66<>0,$D12*F66/$D$66,0) -> 0 | H12: =IF($D$66<>0,$D12*H66/$D$66,0) -> 0 | J12: =IF($D$66<>0,$D12*J66/$D$66,0) -> 0
B13: Weekly hours per resident | D13: =IF(D6<>0,D12/D6,0) -> 0 | F13: =IF(F6<>0,F12/F6,0) -> 0 | H13: =IF(H6<>0,H12/H6,0) -> 0 | J13: =IF(J6<>0,J12/J6,0) -> 0
B15: Care support and supervision budget
B16: Salaries - from salaries page | D16: =Salaries!H33 -> 0 | F16: =IF($D$12<>0,$D16*F$12/$D$12,0) -> 0 | H16: =IF($D$12<>0,$D16*H$12/$D$12,0) -> 0 | J16: =IF($D$12<>0,$D16*J$12/$D$12,0) -> 0
B17: On-call / sleep in - from out of hours cover page | D17: =SUM('Out of hrs'!D8,'Out of hrs'!D13) -> 0 | F17: =IF($D$12<>0,$D17*F$12/$D$12,0) -> 0 | H17: =IF($D$12<>0,$D17*H$12/$D$12,0) -> 0 | J17: =IF($D$12<>0,$D17*J$12/$D$12,0) -> 0
B18: Other care support & supervision expenditure | D18: 0 | F18: =IF($D$12<>0,$D18*F$12/$D$12,0) -> 0 | H18: =IF($D$12<>0,$D18*H$12/$D$12,0) -> 0 | J18: =IF($D$12<>0,$D18*J$12/$D$12,0) -> 0
B19: Other care support & supervision | D19: 0 | F19: 0 | H19: 0 | J19: 0
B20: Central / area team costs | D20: 0 | F20: 0 | H20: 0 | J20: 0
B21: Central overhead charge | D21: 0 | F21: 0 | H21: 0 | J21: 0
B22: Total expenditure | D22: =SUM(D16:D21) -> 0 | F22: =SUM(F16:F21) -> 0 | H22: =SUM(H16:H21) -> 0 | J22: =SUM(J16:J21) -> 0
B25: CARE / SUPPORT & SUPERVISION FUNDING
B27: Contracts for care, support & supervision
D30: =SUM(D28:D29) -> 0
B31: Charitable funding
D35: =SUM(D32:D34) -> 0
B36: Charges to residents (ineligible for HB) - if any | F36: =F4 -> type 1 | H36: =H4 -> type 2 | J36: =J4 -> type 3
B37: Weekly charge | E37: =IF(AND(F37>0,F12=0),"?",IF(F37>0,"£","")) ->  | F37: 0 | G37: =IF(AND(H37>0,H12=0),"?",IF(H37>0,"£","")) ->  | H37: 0 | I37: =IF(AND(J37>0,J12=0),"?",IF(J37>0,"£","")) ->  | J37: 0
B38: Care / support and supervision charges receivable | D38: =SUM(F38,H38,J38) -> 0 | F38: =F37*F6*52 -> 0 | H38: =H37*H6*52 -> 0 | J38: =J37*J6*52 -> 0
B39: Less:
B40: Voids | D40: =SUM(F40,H40,J40) -> 0 | F40: =-F38*(100-F7)/100 -> 0 | H40: =-H38*(100-H7)/100 -> 0 | J40: =-J38*(100-J7)/100 -> 0
B41: Bad debts | D41: 0 | F41: =-F38*F8/100 -> 0 | H41: =-H38*H8/100 -> 0 | J41: =-J38*J8/100 -> 0
B42: Net income from charges | D42: =SUM(D38,D40:D41) -> 0 | F42: =SUM(F38,F40:F41) -> 0 | H42: =SUM(H38,H40:H41) -> 0 | J42: =SUM(J38,J40:J41) -> 0
B44: Cross-subsidy from other activities
D46: 0
D47: =SUM(D45:D46) -> 0
B49: Total income | D49: =SUM(D47,D42,D35,D30) -> 0
B51: =IF(D51>=0,"Surplus",IF(D51<0,"Deficit","")) -> Surplus | D51: =ROUND(D49-D22,0) -> 0
D66: =SUM(F66:J66) -> 0 | F66: =F6*(100+F11)/100 -> 0 | H66: =H6*(100+H11)/100 -> 0 | J66: =J6*(100+J11)/100 -> 0

Sheet Budget1 (hidden)
B3: SUMMARY BUDGET | J3: Care
B4: =IF(Menu!B3<>"",Menu!B3,"") ->  | J4: support &
E5: Core | F5: Council | G5: Enhanced | H5: Communal | I5: HB | J5: Super-
D6: TOTAL | E6: Property | F6: tax | G6: mngmnt | H6: services | I6: ineligible | J6: vision *
B7: INCOME
B8: Core rents receivable | D8: =SUM(E8:J8) -> 0 | E8: =('M1'!C38*'M1'!C8+'M1'!F38*'M1'!F8+'M1'!I38*'M1'!I8)*52 -> 0 | F8: =CT!D14 -> 0
B9: less voids | D9: =SUM(E9:J9) -> 0 | E9: =-'M1'!C8*'M1'!C38*52*(100-'M1'!C10)/100-'M1'!F8*'M1'!F38*52*(100-'M1'!F10)/100-'M1'!I8*'M1'!I38*52*(100-'M1'!I10)/100 -> 0 | F9: =CT!D15 -> 0
D10: =SUM(D8:D9) -> 0 | E10: =SUM(E8:E9) -> 0 | F10: =SUM(F8:F9) -> 0
B12: Service charges receivable | D12: =SUM(E12:J12) -> 0 | G12: =EHM!D30 -> 0 | H12: =Services!D87 -> 0 | I12: =Services!D93 -> 0 | J12: =CSS!D38 -> 0
B13: less voids | D13: =SUM(E13:J13) -> 0 | G13: =EHM!D32 -> 0 | H13: =Services!D89 -> 0 | I13: =Services!D95 -> 0 | J13: =CSS!D40 -> 0
D14: =SUM(D12:D13) -> 0 | G14: =SUM(G12:G13) -> 0 | H14: =SUM(H12:H13) -> 0 | I14: 0 | J14: =SUM(J12:J13) -> 0
B16: Food / catering: excluding service charge income | D16: =SUM(E16:J16) -> 0 | J16: =Food!D23 -> 0
B17: Contract income | D17: 0 | J17: =CSS!D30 -> 0
B18: Charitable income | D18: 0 | J18: =CSS!D35 -> 0
B19: Cross-subsidy | D19: 0 | J19: =CSS!D47 -> 0
B20: Total income | D20: =SUM(D14:D19,D10) -> 0 | E20: =SUM(E14:E19,E10) -> 0 | F20: 0 | G20: 0 | H20: 0 | I20: 0 | J20: 0
B22: EXPENDITURE
B24: Bad debts | D24: =SUM(E24:J24) -> 0 | E24: ='M1'!C8*'M1'!C38*52*(Prop!F8)/100+'M1'!F8*'M1'!F38*52*(Prop!H8)/100+'M1'!I8*'M1'!I38*52*(Prop!J8)/100 -> 0 | F24: =-CT!D16 -> 0 | G24: =-EHM!D33 -> 0 | H24: =-Services!D90 -> 0 | I24: =-Services!D96 -> 0 | J24: =-CSS!D41 -> 0
B26: Services (excluding salaries)
B27: =PROPER(Services!B13) -> Utilities | D27: 0 | H27: =SUM(Services!D14,Services!D16,Services!D18) -> 0 | I27: =SUM(Services!D15,Services!D17,Services!D19) -> 0
B28: =PROPER(Services!B20) -> Cleaning / Grounds Maintenance / Pest Control | D28: 0 | H28: =SUM(Services!D21:D22,Services!D26:D34) -> 0
B29: =PROPER(Services!B35) -> Fire / Health & Safety | D29: 0 | H29: =SUM(Services!D36:D46) -> 0
B30: =PROPER(Services!B47) -> Furniture & Equipment | D30: 0 | H30: =SUM(Services!D48:D57) -> 0
B31: =PROPER(Services!B58) -> Security | D31: 0 | H31: =SUM(Services!D59,Services!D61:D63) -> 0
B32: =PROPER(Services!B64) -> Communal Facilities | D32: 0 | H32: =SUM(Services!D65:D67) -> 0
B33: =PROPER(Services!B68) -> Food / Catering | D33: 0 | H33: =Food!D56 -> 0 | I33: =Food!D55 -> 0 | J33: =Food!D54 -> 0
B35: Property costs
B36: Lease | D36: 0 | E36: =SUM(Prop!D12:D13) -> 0
B37: Loan charges | D37: 0 | E37: =Prop!D16 -> 0
B38: Property insurance | D38: 0 | E38: =Prop!D14 -> 0
B39: Other | D39: 0 | E39: =Prop!D15 -> 0
B40: Repairs and maintenance | D40: 0 | E40: =SUM(Prop!D19:D21,Prop!D24:D28) -> 0
B41: Cyclical maintenance | D41: 0 | E41: =Prop!D22 -> 0
B42: Major repairs | D42: 0 | E42: =Prop!D23 -> 0
B44: Salaries | D44: =SUM(E44:J44) -> 0 | E44: =SUM(Salaries!H26:H27) -> 0 | G44: =SUM(EHM!D16:D17) -> 0 | H44: =SUM(Services!D23:D24,Services!D60)+Food!D51 -> 0 | I44: =Food!D50+Services!D25 -> 0 | J44: =CSS!D16+IF(J16>0,Food!D17,0) -> 0
B45: Administrative expenses | D45: 0 | E45: =SUM(Prop!D38:D42,Prop!D33:D34) -> 0 | G45: =SUM(EHM!D21:D22) -> 0 | H45: =Services!F78+Services!H78+Services!J78 -> 0 | I45: =Services!F79+Services!H79+Services!J79 -> 0 | J45: =SUM(CSS!D20:D21) -> 0
B47: Non-staff costs
B48: Enhanced management | D48: =SUM(E48:J48) -> 0 | G48: =SUM(EHM!D18:D20) -> 0
B49: Care and support | D49: =SUM(E49:J49) -> 0 | J49: =SUM(CSS!D17:D19) -> 0
B50: Council tax | D50: =SUM(E50:J50) -> 0 | E50: =CT!D18 -> 0 | F50: =CT!D17 -> 0
B52: Total expenditure | D52: =SUM(D24:D51) -> 0 | E52: 0 | F52: 0 | G52: 0 | H52: 0 | I52: 0 | J52: 0
B54: Total expenditure | D54: =ROUND(D20-D52,0) -> 0 | E54: 0 | F54: 0 | G54: 0 | H54: 0 | I54: 0 | J54: 0
B56: =IF(SUM('M1'!C8,'M1'!F8,'M1'!I8)=0,"NB non units have been entered, therefore the salaries of staff that would be charged","") -> NB non units have been entered, therefore the salaries of staff that would be charged

Sheet Services (hidden)
M1: =D151 -> 5 | O1: =M1 -> 5 | Q1: =M1 -> 5
B2: =IF(Menu!B3<>"",Menu!B3,"") -> 
F3: ANNUAL BUDGET | M3: WEEKLY CHARGES
B4: SERVICES | F4: Unit | H4: Unit | J4: Unit | M4: Unit | O4: Unit | Q4: Unit
B5: HB eligible services | F5: type 1 | H5: type 2 | J5: type 3 | M5: type 1 | O5: type 2 | Q5: type 3
B6: HB ineligible services | D6: Total | F6: ='M1'!C12 -> Bedsit/room | H6: ='M1'!F12 -> 1-bed | J6: ='M1'!I12 -> 1-bed | M6: =F6 -> Bedsit/room | O6: =H6 -> 1-bed | Q6: =J6 -> 1-bed
B7: Number of units | D7: =SUM(F7:J7) -> 0 | F7: ='M1'!C8 -> 0 | H7: ='M1'!F8 -> 0 | J7: ='M1'!I8 -> 0
B8: Budgeted occupancy (see units page) | F8: =IF(F7>0,'M1'!C10,0) -> 0 | G8: % | H8: =IF(H7>0,'M1'!F10,0) -> 0 | I8: % | J8: =IF(J7>0,'M1'!I10,0) -> 0 | K8: %
B9: Budgeted bad debts (HB eligible charges) | F9: 2 | G9: % | H9: 2 | I9: % | J9: 2 | K9: %
B10: Budgeted bad debts (HB ineligible charges) | F10: 5 | G10: % | H10: 5 | I10: % | J10: 5 | K10: %
B12: Annual budget
B13: UTILITIES
B14: Heat and light (common parts only) | C14: =IF(D14>0,"£","") ->  | D14: =IF(F$7>0,F14,0)+IF(H$7>0,H14,0)+IF(J$7>0,J14,0) -> 0 | E14: =IF(F14>0,"£","") ->  | F14: 0 | G14: =IF(H14>0,"£","") ->  | I14: =IF(J14>0,"£","") ->  | M14: =IF(F$7>0,ROUND(F14/F$7/52*IF(F$8-F$9=0,1,100/(F$8-F$9)),M$1),0) -> 0 | O14: =IF(H$7>0,ROUND(H14/H$7/52*IF(H$8-H$9=0,1,100/(H$8-H$9)),O$1),0) -> 0 | Q14: =IF(J$7>0,ROUND(J14/J$7/52*IF(J$8-J$9=0,1,100/(J$8-J$9)),Q$1),0) -> 0
B15: Heat and light (rooms / flats) | C15: =IF(D15>0,"£","") ->  | D15: =IF(F$7>0,F15,0)+IF(H$7>0,H15,0)+IF(J$7>0,J15,0) -> 0 | E15: =IF(F15>0,"£","") ->  | G15: =IF(H15>0,"£","") ->  | M15: =IF(F$7>0,ROUND(F15/F$7/52*IF(F$8-F$10=0,1,100/(F$8-F$10)),M$1),0) -> 0 | O15: =IF(H$7>0,ROUND(H15/H$7/52*IF(H$8-H$10=0,1,100/(H$8-H$10)),O$1),0) -> 0 | Q15: =IF(J$7>0,ROUND(J15/J$7/52*IF(J$8-J$10=0,1,100/(J$8-J$10)),Q$1),0) -> 0
B16: Water charges (common parts only) | D16: 0 | G16: =IF(H16>0,"£","") ->  | M16: =IF(F$7>0,ROUND(F16/F$7/52*IF(F$8-F$9=0,1,100/(F$8-F$9)),M$1),0) -> 0 | O16: =IF(H$7>0,ROUND(H16/H$7/52*IF(H$8-H$9=0,1,100/(H$8-H$9)),O$1),0) -> 0 | Q16: =IF(J$7>0,ROUND(J16/J$7/52*IF(J$8-J$9=0,1,100/(J$8-J$9)),Q$1),0) -> 0
B17: Water charges (rooms/flats) | D17: 0 | G17: =IF(H17>0,"£","") ->  | M17: =IF(F$7>0,ROUND(F17/F$7/52*IF(F$8-F$10=0,1,100/(F$8-F$10)),M$1),0) -> 0 | O17: =IF(H$7>0,ROUND(H17/H$7/52*IF(H$8-H$10=0,1,100/(H$8-H$10)),O$1),0) -> 0 | Q17: =IF(J$7>0,ROUND(J17/J$7/52*IF(J$8-J$10=0,1,100/(J$8-J$10)),Q$1),0) -> 0
B18: Phone line rental (for use by residents) | D18: 0 | G18: =IF(H18>0,"£","") ->  | M18: 0 | O18: 0 | Q18: 0
B19: Broadband charges | D19: 0 | G19: =IF(H19>0,"£","") ->  | M19: =IF(F$7>0,ROUND(F19/F$7/52*IF(F$8-F$10=0,1,100/(F$8-F$10)),M$1),0) -> 0 | O19: =IF(H$7>0,ROUND(H19/H$7/52*IF(H$8-H$10=0,1,100/(H$8-H$10)),O$1),0) -> 0 | Q19: =IF(J$7>0,ROUND(J19/J$7/52*IF(J$8-J$10=0,1,100/(J$8-J$10)),Q$1),0) -> 0
B20: CLEANING / GROUNDS MAINTENANCE / PEST CONTROL
B21: Cleaning materials | D21: =IF(F$7>0,F21,0)+IF(H$7>0,H21,0)+IF(J$7>0,J21,0) -> 0 | E21: =IF(F21>0,"£","") ->  | M21: 0 | O21: 0 | Q21: 0
B22: Cleaning contracts (common parts) | D22: 0 | M22: 0 | O22: 0 | Q22: 0
B23: Cleaning staff (from salaries schedule) | D23: =IF(F$7>0,F23,0)+IF(H$7>0,H23,0)+IF(J$7>0,J23,0) -> 0 | E23: =IF(F23>0,"£","") ->  | F23: =IF($D$7<>0,Salaries!$AD24*F7/$D$7,0) -> 0 | H23: =IF($D$7<>0,Salaries!$AD24*H7/$D$7,0) -> 0 | J23: =IF($D$7<>0,Salaries!$AD24*J7/$D$7,0) -> 0 | M23: 0 | O23: 0 | Q23: 0
B24: Caretaking (from salaries schedule) | D24: 0 | F24: =IF($D$7<>0,Salaries!$AE24*F7/$D$7,0) -> 0 | H24: =IF($D$7<>0,Salaries!$AE24*H7/$D$7,0) -> 0 | J24: =IF($D$7<>0,Salaries!$AE24*J7/$D$7,0) -> 0 | M24: 0 | O24: 0 | Q24: 0
B25: Salaries - inelig services (exc catering) | C25: =IF(D25>0,"£","") ->  | D25: =IF(F$7>0,F25,0)+IF(H$7>0,H25,0)+IF(J$7>0,J25,0) -> 0 | E25: =IF(F25>0,"£","") ->  | F25: =IF($D$7<>0,Salaries!$AH24*F7/$D$7,0) -> 0 | H25: =IF($D$7<>0,Salaries!$AH24*H7/$D$7,0) -> 0 | J25: =IF($D$7<>0,Salaries!$AH24*J7/$D$7,0) -> 0 | M25: =IF(F$7>0,ROUND(F25/F$7/52*IF(F$8-F$10=0,1,100/(F$8-F$10)),M$1),0) -> 0 | O25: =IF(H$7>0,ROUND(H25/H$7/52*IF(H$8-H$10=0,1,100/(H$8-H$10)),O$1),0) -> 0 | Q25: =IF(J$7>0,ROUND(J25/J$7/52*IF(J$8-J$10=0,1,100/(J$8-J$10)),Q$1),0) -> 0
B26: Window cleaning | D26: =IF(F$7>0,F26,0)+IF(H$7>0,H26,0)+IF(J$7>0,J26,0) -> 0 | E26: =IF(F26>0,"£","") ->  | M26: 0 | O26: 0 | Q26: 0
B27: Deep cleaning | D27: 0 | M27: 0 | O27: 0 | Q27: 0
B28: Gardening (communal) | D28: 0 | M28: 0 | O28: 0 | Q28: 0
B29: Grounds maintenance | D29: 0 | M29: 0 | O29: 0 | Q29: 0
B30: Caretaking | D30: 0 | M30: 0 | O30: 0 | Q30: 0
B31: Rubbish clearance / removal | D31: 0 | M31: 0 | O31: 0 | Q31: 0
B32: Bulk waste disposal | D32: 0 | M32: 0 | O32: 0 | Q32: 0
B33: Sanitary waste removal | D33: 0 | M33: 0 | O33: 0 | Q33: 0
B34: Pest control | D34: 0 | M34: 0 | O34: 0 | Q34: 0
B35: FIRE / HEALTH & SAFETY
B36: Legionella testing & treatment | D36: =IF(F$7>0,F36,0)+IF(H$7>0,H36,0)+IF(J$7>0,J36,0) -> 0 | E36: =IF(F36>0,"£","") ->  | M36: =IF(F$7>0,ROUND(F36/F$7/52*IF(F$8-F$9=0,1,100/(F$8-F$9)),M$1),0) -> 0 | O36: =IF(H$7>0,ROUND(H36/H$7/52*IF(H$8-H$9=0,1,100/(H$8-H$9)),O$1),0) -> 0 | Q36: =IF(J$7>0,ROUND(J36/J$7/52*IF(J$8-J$9=0,1,100/(J$8-J$9)),Q$1),0) -> 0
B37: Portable appliance testing | D37: 0 | M37: 0 | O37: 0 | Q37: 0
B38: Fixed appliance testing | D38: 0 | M38: 0 | O38: 0 | Q38: 0
B39: Smoke alarms | D39: 0 | M39: 0 | O39: 0 | Q39: 0
B40: Fire detection equipment | D40: 0
B41: Provision / replacement / depreciaton | D41: 0 | M41: =IF(F$7>0,ROUND(F41/F$7/52*IF(F$8-F$9=0,1,100/(F$8-F$9)),M$1),0) -> 0 | O41: =IF(H$7>0,ROUND(H41/H$7/52*IF(H$8-H$9=0,1,100/(H$8-H$9)),O$1),0) -> 0 | Q41: =IF(J$7>0,ROUND(J41/J$7/52*IF(J$8-J$9=0,1,100/(J$8-J$9)),Q$1),0) -> 0
B42: Maintenance & servicing | D42: 0 | M42: =IF(F$7>0,ROUND(F42/F$7/52*IF(F$8-F$9=0,1,100/(F$8-F$9)),M$1),0) -> 0 | O42: =IF(H$7>0,ROUND(H42/H$7/52*IF(H$8-H$9=0,1,100/(H$8-H$9)),O$1),0) -> 0 | Q42: =IF(J$7>0,ROUND(J42/J$7/52*IF(J$8-J$9=0,1,100/(J$8-J$9)),Q$1),0) -> 0
B43: Fire fighting equipment | D43: 0
B44: Provision / replacement / depreciaton | D44: 0 | M44: =IF(F$7>0,ROUND(F44/F$7/52*IF(F$8-F$9=0,1,100/(F$8-F$9)),M$1),0) -> 0 | O44: =IF(H$7>0,ROUND(H44/H$7/52*IF(H$8-H$9=0,1,100/(H$8-H$9)),O$1),0) -> 0 | Q44: =IF(J$7>0,ROUND(J44/J$7/52*IF(J$8-J$9=0,1,100/(J$8-J$9)),Q$1),0) -> 0
B45: Maintenance & servicing | D45: 0 | M45: 0 | O45: 0 | Q45: 0
B46: Other health & safety | D46: 0 | M46: 0 | O46: 0 | Q46: 0
B47: FURNITURE & EQUIPMENT
B48: Furniture & equipment (common parts) | D48: =IF(F$7>0,F48,0)+IF(H$7>0,H48,0)+IF(J$7>0,J48,0) -> 0 | E48: =IF(F48>0,"£","") ->  | M48: =IF(F$7>0,ROUND(F48/F$7/52*IF(F$8-F$9=0,1,100/(F$8-F$9)),M$1),0) -> 0 | O48: =IF(H$7>0,ROUND(H48/H$7/52*IF(H$8-H$9=0,1,100/(H$8-H$9)),O$1),0) -> 0 | Q48: =IF(J$7>0,ROUND(J48/J$7/52*IF(J$8-J$9=0,1,100/(J$8-J$9)),Q$1),0) -> 0
B49: Furniture & equipment (residents) | D49: 0 | M49: 0 | O49: 0 | Q49: 0
B50: Kitchen equipment / white goods | D50: 0 | M50: 0 | O50: 0 | Q50: 0
B51: Laundry equipment | D51: 0 | M51: 0 | O51: 0 | Q51: 0
B52: Lift replacement | D52: 0 | M52: 0 | O52: 0 | Q52: 0
B53: Lift servicing / maintenance | D53: 0 | M53: 0 | O53: 0 | Q53: 0
B54: Aerials | D54: 0 | M54: 0 | O54: 0 | Q54: 0
B55: Carpets and curtains | D55: 0 | M55: 0 | O55: 0 | Q55: 0
B56: Renewals and replacements | D56: 0 | M56: 0 | O56: 0 | Q56: 0
B57: Contents insurance | D57: 0 | M57: 0 | O57: 0 | Q57: 0
B58: SECURITY
B59: Security contracts | D59: =IF(F$7>0,F59,0)+IF(H$7>0,H59,0)+IF(J$7>0,J59,0) -> 0 | E59: =IF(F59>0,"£","") ->  | M59: =IF(F$7>0,ROUND(F59/F$7/52*IF(F$8-F$9=0,1,100/(F$8-F$9)),M$1),0) -> 0 | O59: =IF(H$7>0,ROUND(H59/H$7/52*IF(H$8-H$9=0,1,100/(H$8-H$9)),O$1),0) -> 0 | Q59: =IF(J$7>0,ROUND(J59/J$7/52*IF(J$8-J$9=0,1,100/(J$8-J$9)),Q$1),0) -> 0
B60: Security staff (from salaries schedule) | D60: 0 | F60: =IF($D$7<>0,Salaries!$AF24*F7/$D$7,0) -> 0 | H60: =IF($D$7<>0,Salaries!$AF24*H7/$D$7,0) -> 0 | J60: =IF($D$7<>0,Salaries!$AF24*J7/$D$7,0) -> 0 | M60: =IF(F$7>0,ROUND(F60/F$7/52*IF(F$8-F$9=0,1,100/(F$8-F$9)),M$1),0) -> 0 | O60: 0 | Q60: 0
B61: Door entry system | D61: 0 | M61: 0 | O61: 0 | Q61: 0
B62: CCTV | D62: 0 | M62: 0 | O62: 0 | Q62: 0
B63: Other security | D63: 0 | M63: 0 | O63: 0 | Q63: 0
B64: COMMUNAL FACILITIES
B65: Redecoration of communal facilities | D65: =IF(F$7>0,F65,0)+IF(H$7>0,H65,0)+IF(J$7>0,J65,0) -> 0 | E65: =IF(F65>0,"£","") ->  | M65: =IF(F$7>0,ROUND(F65/F$7/52*IF(F$8-F$9=0,1,100/(F$8-F$9)),M$1),0) -> 0 | O65: =IF(H$7>0,ROUND(H65/H$7/52*IF(H$8-H$9=0,1,100/(H$8-H$9)),O$1),0) -> 0 | Q65: =IF(J$7>0,ROUND(J65/J$7/52*IF(J$8-J$9=0,1,100/(J$8-J$9)),Q$1),0) -> 0
B66: Repairs & maint (communal facilities) | D66: 0 | M66: 0 | O66: 0 | Q66: 0
B67: Other | D67: 0 | M67: 0 | O67: 0 | Q67: 0
B68: FOOD / CATERING | C68: Food/ catering page
B69: HB-eligible element | D69: =SUM(F69,H69,J69) -> 0 | F69: =Food!F20 -> 0 | H69: =Food!H20 -> 0 | J69: =Food!J20 -> 0 | M69: =Food!F37 -> 0 | O69: =Food!H37 -> 0 | Q69: =Food!J37 -> 0
B70: HB-ineligible element | M70: =SUM(Food!F30:F31) -> 0 | O70: =SUM(Food!H30:H31) -> 0 | Q70: =SUM(Food!J30:J31) -> 0
B72: SUB-TOTAL DIRECT COSTS | D72: =IF(D7>0,SUM(D69,D65:D67,D59:D63,D48:D57,D44:D46,D41:D42,D36:D39,D21:D34,D14:D19),0) -> 0 | F72: =IF(F7>0,SUM(F69,F65:F67,F59:F63,F48:F57,F44:F46,F41:F42,F36:F39,F21:F34,F14:F19),0) -> 0 | H72: =IF(H7>0,SUM(H69,H65:H67,H59:H63,H48:H57,H44:H46,H41:H42,H36:H39,H21:H34,H14:H19),0) -> 0 | J72: =IF(J7>0,SUM(J69,J65:J67,J59:J63,J48:J57,J44:J46,J41:J42,J36:J39,J21:J34,J14:J19),0) -> 0 | M72: =SUM(M69:M70,M65:M67,M59:M63,M48:M57,M44:M46,M41:M42,M36:M39,M21:M34,M14:M19) -> 0 | O72: =SUM(O69:O70,O65:O67,O59:O63,O48:O57,O44:O46,O41:O42,O36:O39,O21:O34,O14:O19) -> 0 | Q72: =SUM(Q69:Q70,Q65:Q67,Q59:Q63,Q48:Q57,Q44:Q46,Q41:Q42,Q36:Q39,Q21:Q34,Q14:Q19) -> 0
B74: SUB-TOTAL DIRECT COSTS: HB-ELIGIBLE | D74: =SUM(F74,H74,J74) -> 0 | F74: =F69-IF(SUM(Food!F35,Food!F41)<>0,ROUND(Food!F20*Food!F35/SUM(Food!F35,Food!F41),2),0)+SUM(F65:F67,F59:F63,F48:F57,F44:F46,F41:F42,F36:F39,F21:F24,F26:F34,F18,F16,F14) -> 0 | H74: =H69-IF(SUM(Food!H35,Food!H41)<>0,ROUND(Food!H20*Food!H35/SUM(Food!H35,Food!H41),2),0)+SUM(H65:H67,H59:H63,H48:H57,H44:H46,H41:H42,H36:H39,H21:H24,H26:H34,H18,H16,H14) -> 0 | J74: =J69-IF(SUM(Food!J35,Food!J41)<>0,ROUND(Food!J20*Food!J35/SUM(Food!J35,Food!J41),2),0)+SUM(J65:J67,J59:J63,J48:J57,J44:J46,J41:J42,J36:J39,J21:J24,J26:J34,J18,J16,J14) -> 0 | M74: =SUM(M69,M65:M67,M59:M63,M48:M57,M44:M46,M41:M42,M36:M39,M21:M24,M26:M34,M18,M16,M14) -> 0 | O74: =SUM(O69,O65:O67,O59:O63,O48:O57,O44:O46,O41:O42,O36:O39,O21:O24,O26:O34,O18,O16,O14) -> 0 | Q74: =SUM(Q69,Q65:Q67,Q59:Q63,Q48:Q57,Q44:Q46,Q41:Q42,Q36:Q39,Q21:Q24,Q26:Q34,Q18,Q16,Q14) -> 0
B75: SUB-TOTAL DIRECT COSTS: HB INELIGIBLE | D75: 0 | F75: =IF(SUM(Food!F35,Food!F41)<>0,ROUND(Food!F20*Food!F35/SUM(Food!F35,Food!F41),2),0)+SUM(F25,F19,F17,F15) -> 0 | H75: =IF(SUM(Food!H35,Food!H41)<>0,ROUND(Food!H20*Food!H35/SUM(Food!H35,Food!H41),2),0)+SUM(H25,H19,H17,H15) -> 0 | J75: =IF(SUM(Food!J35,Food!J41)<>0,ROUND(Food!J20*Food!J35/SUM(Food!J35,Food!J41),2),0)+SUM(J25,J19,J17,J15) -> 0 | M75: =SUM(M70,M19,M17,M15,M25) -> 0 | O75: =SUM(O70,O19,O17,O15,O25) -> 0 | Q75: =SUM(Q70,Q19,Q17,Q15,Q25) -> 0
D76: =SUM(D74:D75) -> 0 | F76: =SUM(F74:F75) -> 0 | H76: =SUM(H74:H75) -> 0 | J76: =SUM(J74:J75) -> 0 | M76: =SUM(M74:M75) -> 0 | O76: =SUM(O74:O75) -> 0 | Q76: =SUM(Q74:Q75) -> 0
B77: Services admin
B78: HB-eligible | D78: 15 | E78: % | F78: =IF(F7>0,F74*$D78/100,0) -> 0 | H78: =IF(H7>0,H74*$D78/100,0) -> 0 | J78: =IF(J7>0,J74*$D78/100,0) -> 0 | M78: =IF(F$7>0,ROUND(F78/F$7/52*IF(F$8-F$9=0,1,100/(F$8-F$9)),M$1),0) -> 0 | O78: =IF(H$7>0,ROUND(H78/H$7/52*IF(H$8-H$9=0,1,100/(H$8-H$9)),O$1),0) -> 0 | Q78: =IF(J$7>0,ROUND(J78/J$7/52*IF(J$8-J$9=0,1,100/(J$8-J$9)),Q$1),0) -> 0
B79: HB-ineligible (excl food) | D79: 5 | E79: % | F79: =IF(F7>0,SUM(F15,F17,F19,F25)*$D79/100,0) -> 0 | H79: =IF(H7>0,SUM(H15,H17,H19,H25)*$D79/100,0) -> 0 | J79: =IF(J7>0,SUM(J15,J17,J19,J25)*$D79/100,0) -> 0 | M79: =IF(F$7>0,ROUND(F79/F$7/52*IF(F$8-F$10=0,1,100/(F$8-F$10)),M$1),0) -> 0 | O79: =IF(H$7>0,ROUND(H79/H$7/52*IF(H$8-H$10=0,1,100/(H$8-H$10)),O$1),0) -> 0 | Q79: =IF(J$7>0,ROUND(J79/J$7/52*IF(J$8-J$10=0,1,100/(J$8-J$10)),Q$1),0) -> 0
D80: =SUM(F80,H80,J80) -> 0 | F80: =SUM(F78:F79) -> 0 | H80: =SUM(H78:H79) -> 0 | J80: =SUM(J78:J79) -> 0 | M80: =SUM(M78:M79) -> 0 | O80: =SUM(O78:O79) -> 0 | Q80: =SUM(Q78:Q79) -> 0
B81: TOTAL
B82: HB-eligible | D82: =IF(F$7>0,F82,0)+IF(H$7>0,H82,0)+IF(J$7>0,J82,0) -> 0 | F82: =SUM(F78,F74) -> 0 | H82: =SUM(H78,H74) -> 0 | J82: =SUM(J78,J74) -> 0 | M82: =SUM(M74,M78) -> 0 | O82: =SUM(O74,O78) -> 0 | Q82: =SUM(Q74,Q78) -> 0
B83: HB-ineligible (excl food) | D83: 0 | F83: =SUM(F75,F79) -> 0 | H83: =SUM(H75,H79) -> 0 | J83: =SUM(J75,J79) -> 0 | M83: =SUM(M75,M79) -> 0 | O83: =SUM(O75,O79) -> 0 | Q83: =SUM(Q75,Q79) -> 0
D84: =SUM(D82:D83) -> 0 | F84: =SUM(F82:F83) -> 0 | H84: =SUM(H82:H83) -> 0 | J84: =SUM(J82:J83) -> 0 | M84: =SUM(M82:M83) -> 0 | O84: =SUM(O82:O83) -> 0 | Q84: =SUM(Q82:Q83) -> 0
B86: Income reconciliation
B87: HB-eligible charges receivable | D87: =SUM(F87,H87,J87) -> 0 | F87: =F7*M82*52 -> 0 | H87: =H7*O82*52 -> 0 | J87: =J7*Q82*52 -> 0
B88: Less
B89: Voids | D89: =SUM(F89,H89,J89) -> 0 | F89: =-F87*(100-F8)/100 -> 0 | H89: =-H87*(100-H8)/100 -> 0 | J89: =-J87*(100-J8)/100 -> 0
B90: Bad debts | D90: 0 | F90: =-F87*F9/100 -> 0 | H90: =-H87*H9/100 -> 0 | J90: =-J87*J9/100 -> 0
D91: =SUM(D87:D90) -> 0 | F91: =SUM(F87:F90) -> 0 | H91: =SUM(H87:H90) -> 0 | J91: =SUM(J87:J90) -> 0
B93: HB-ineligible charges receivable | D93: =SUM(F93,H93,J93) -> 0 | F93: =F7*M83*52 -> 0 | H93: =H7*O83*52 -> 0 | J93: =J7*Q83*52 -> 0
B94: Less
B95: Voids | D95: =SUM(F95,H95,J95) -> 0 | F95: =-F93*(100-F8)/100 -> 0 | H95: =-H93*(100-H8)/100 -> 0 | J95: =-J93*(100-J8)/100 -> 0
B96: Bad debts | D96: 0 | F96: =-F93*F10/100 -> 0 | H96: =-H93*H10/100 -> 0 | J96: =-J93*J10/100 -> 0
D97: =SUM(D93:D96) -> 0 | F97: =SUM(F93:F96) -> 0 | H97: =SUM(H93:H96) -> 0 | J97: =SUM(J93:J96) -> 0
F100: =ROUND(F91-F82,2) -> 0 | H100: =ROUND(H91-H82,2) -> 0 | J100: =ROUND(J91-J82,2) -> 0
F101: =ROUND(F97-F83,2) -> 0 | H101: =ROUND(H97-H83,2) -> 0 | J101: =ROUND(J97-J83,2) -> 0
B112: Other payment to property owner | C112: £ | D112: =IF(F$7>0,F112,0)+IF(H$7>0,H112,0)+IF(J$7>0,J112,0) -> 0 | E112: £ | F112: =2*5*52 -> 520 | G112: £ | I112: £ | J112: 234 | M112: =IF(F$7>0,ROUND(F112/F$7/52*IF(F$8-F$9=0,1,100/(F$8-F$9)),M$1),0) -> 0 | O112: =IF(H$7>0,ROUND(H112/H$7/52*IF(H$8-H$9=0,1,100/(H$8-H$9)),O$1),0) -> 0 | Q112: =IF(J$7>0,ROUND(J112/J$7/52*IF(J$8-J$9=0,1,100/(J$8-J$9)),Q$1),0) -> 0
B113: Property insurance | C113: £ | D113: 0 | E113: £ | G113: £ | I113: £ | M113: 0 | O113: 0 | Q113: 0
B114: Other estate costs | C114: £ | D114: 0 | E114: £ | G114: £ | I114: £ | M114: 0 | O114: 0 | Q114: 0
B115: Loan charges | C115: £ | D115: 0 | E115: £ | G115: £ | I115: £ | M115: 0 | O115: 0 | Q115: 0
B116: Repairs and maintenance
B117: Routine / response maintenance | C117: £ | D117: =IF(F$7>0,F117,0)+IF(H$7>0,H117,0)+IF(J$7>0,J117,0) -> 0 | E117: £ | F117: 10000 | G117: £ | I117: £ | M117: =IF(F$7>0,ROUND(F117/F$7/52*IF(F$8-F$9=0,1,100/(F$8-F$9)),M$1),0) -> 0 | O117: =IF(H$7>0,ROUND(H117/H$7/52*IF(H$8-H$9=0,1,100/(H$8-H$9)),O$1),0) -> 0 | Q117: =IF(J$7>0,ROUND(J117/J$7/52*IF(J$8-J$9=0,1,100/(J$8-J$9)),Q$1),0) -> 0
B118: Boiler / heating system maintenance | C118: £ | D118: 0 | E118: £ | F118: 1000 | G118: £ | I118: £ | M118: 0 | O118: 0 | Q118: 0
B119: Void maintenance | C119: £ | D119: 0 | E119: £ | F119: 4000 | G119: £ | I119: £ | M119: 0 | O119: 0 | Q119: 0
B120: Cyclical maintenance provision | C120: £ | D120: 0 | E120: £ | F120: 0 | G120: £ | I120: £ | J120: 4567 | M120: 0 | O120: 0 | Q120: 0
B121: Major repairs / dilapidations provision | C121: £ | D121: 0 | E121: £ | F121: 0 | G121: £ | I121: £ | M121: 0 | O121: 0 | Q121: 0
B122: Electrical safety certification | C122: £ | D122: 0 | E122: £ | F122: 0 | G122: £ | I122: £ | M122: 0 | O122: 0 | Q122: 0
B123: Gas safety certification | C123: £ | D123: 0 | E123: £ | F123: 0 | G123: £ | I123: £ | M123: 0 | O123: 0 | Q123: 0
B124: Electrical safety certification | C124: £ | D124: 0 | E124: £ | F124: 0 | G124: £ | I124: £ | M124: 0 | O124: 0 | Q124: 0
B125: Other certifications | C125: £ | D125: 0 | E125: £ | F125: 0 | G125: £ | I125: £ | M125: 0 | O125: 0 | Q125: 0
B126: Other certifications | C126: £ | D126: 0 | E126: £ | F126: 0 | G126: £ | I126: £ | M126: 0 | O126: 0 | Q126: 0
B128: Basic property management
B129: Central / area teams
B130: Rent accounting / arrears control | C130: £ | D130: =IF(F$7>0,F130,0)+IF(H$7>0,H130,0)+IF(J$7>0,J130,0) -> 0 | E130: £ | F130: 2500 | G130: £ | H130: 1234 | I130: £ | M130: =IF(F$7>0,ROUND(F130/F$7/52*IF(F$8-F$9=0,1,100/(F$8-F$9)),M$1),0) -> 0 | O130: =IF(H$7>0,ROUND(H130/H$7/52*IF(H$8-H$9=0,1,100/(H$8-H$9)),O$1),0) -> 0 | Q130: =IF(J$7>0,ROUND(J130/J$7/52*IF(J$8-J$9=0,1,100/(J$8-J$9)),Q$1),0) -> 0
B131: Other core management functions | C131: £ | D131: 0 | E131: £ | F131: 3000 | G131: £ | H131: 3456 | I131: £ | M131: 0 | O131: 0 | Q131: 0
B132: Project team (from staff team page) | C132: £ | D132: =Salaries!H26 -> 0 | E132: £ | F132: =IF($D$7<>0,$D132*F7/$D$7,0) -> 0 | G132: £ | H132: =IF($D$7<>0,$D132*H7/$D$7,0) -> 0 | I132: £ | J132: =IF($D$7<>0,$D132*J7/$D$7,0) -> 0 | M132: 0 | O132: 0 | Q132: 0
B134: Overheads charged to core rent
B135: HR | C135: £ | D135: 500 | E135: £ | F135: =IF($D$7<>0,$D135*F$7/$D$7,0) -> 0 | G135: £ | H135: =IF($D$7<>0,$D135*H$7/$D$7,0) -> 0 | I135: £ | J135: =IF($D$7<>0,$D135*J$7/$D$7,0) -> 0 | M135: =IF(F$7>0,ROUND(F135/F$7/52*IF(F$8-F$9=0,1,100/(F$8-F$9)),M$1),0) -> 0 | O135: =IF(H$7>0,ROUND(H135/H$7/52*IF(H$8-H$9=0,1,100/(H$8-H$9)),O$1),0) -> 0 | Q135: =IF(J$7>0,ROUND(J135/J$7/52*IF(J$8-J$9=0,1,100/(J$8-J$9)),Q$1),0) -> 0
B136: Finance | C136: £ | D136: 1500 | E136: £ | F136: =IF($D$7<>0,$D136*F$7/$D$7,0) -> 0 | G136: £ | H136: 0 | I136: £ | J136: 0 | M136: 0 | O136: 0 | Q136: 0
B137: Directorate | C137: £ | D137: 350 | E137: £ | F137: 0 | G137: £ | H137: 0 | I137: £ | J137: 0 | M137: 0 | O137: 0 | Q137: 0
B138: IT | C138: £ | D138: 1500 | E138: £ | F138: 0 | G138: £ | H138: 0 | I138: £ | J138: 0 | M138: 0 | O138: 0 | Q138: 0
B139: Central office admin | C139: £ | D139: 1500 | E139: £ | F139: 0 | G139: £ | H139: 0 | I139: £ | J139: 0 | M139: 0 | O139: 0 | Q139: 0
B140: Total / cost rent | E140: £ | F140: =IF(F7>0,SUM(F14:F115,F117:F126,F130:F132,F135:F139),0) -> 0 | G140: £ | H140: =IF(H7>0,SUM(H14:H115,H117:H126,H130:H132,H135:H139),0) -> 0 | I140: £ | J140: =IF(J7>0,SUM(J14:J115,J117:J126,J130:J132,J135:J139),0) -> 0 | M140: =SUM(M14:M115,M117:M126,M130:M132,M135:M139) -> 0 | O140: =SUM(O14:O115,O117:O126,O130:O132,O135:O139) -> 0 | Q140: =SUM(Q14:Q115,Q117:Q126,Q130:Q132,Q135:Q139) -> 0
B144: Income
B145: Cost rent receivable | F145: =F7*M140*52 -> 0 | H145: =H7*O140*52 -> 0 | J145: =J7*Q140*52 -> 0
B146: Less voids | F146: =-F145*(100-F8)/100 -> 0 | H146: =-H145*(100-H8)/100 -> 0 | J146: =-J145*(100-J8)/100 -> 0
F147: =SUM(F145:F146) -> 0 | H147: =SUM(H145:H146) -> 0 | J147: =SUM(J145:J146) -> 0
B148: Expenditure
B149: Bad debts | F149: =F145*F9/100 -> 0 | H149: =H145*H9/100 -> 0 | J149: =J145*J9/100 -> 0
B150: Property costs | D150: Charge rounding | F150: =F140 -> 0 | H150: =H140 -> 0 | J150: =J140 -> 0
B151: Rounding (dec points) | D151: 5 | F151: =ROUND(F147-SUM(F149:F150),2) -> 0 | H151: =ROUND(H147-SUM(H149:H150),2) -> 0 | J151: =ROUND(J147-SUM(J149:J150),2) -> 0
F152: =SUM(F149:F151) -> 0 | H152: =SUM(H149:H151) -> 0 | J152: =SUM(J149:J151) -> 0
F154: =ROUND(F147-F152,2) -> 0 | H154: =ROUND(H147-H152,2) -> 0 | J154: =ROUND(J147-J152,2) -> 0

Sheet Out of hrs (hidden)
B2: =IF(Menu!B3<>"",Menu!B3,"") -> 
B4: Out-of-hours cover
B6: On-call
B7: (Not included in salaries)
B8: Charge to care support & supervision
B9: Charge to enhanced management (HB-eligible)
D10: =SUM(D8:D9) -> 0
B11: Sleep-in
B12: (Not included in salaries)
B13: Charge to care support & supervision
B14: Charge to enhanced management (HB-eligible)
D15: =SUM(D13:D14) -> 0
B16: Costs, in addition to items below
B17: Charge to care support & supervision | D17: =SUM(D13,D8) -> 0
B18: Charge to enhanced management (HB-eligible) | D18: =SUM(D9,D14) -> 0
D19: =SUM(D17:D18) -> 0
B21: Security contracts / staff are included in HB-eligible services
B22: Out of hours salaries may also be included as "enhanced management"
B23: Out of hours salaries may also be included in care support & supervision

Sheet Prop (hidden)
M1: =D54 -> 6 | O1: =M1 -> 6 | Q1: =M1 -> 6
B3: =IF(Menu!$B$3<>"",Menu!$B$3,"") ->  | F3: Unit | H3: Unit | J3: Unit | M3: Unit | O3: Unit | Q3: Unit
B4: PROPERTY COST | F4: type 1 | H4: type 2 | J4: type 3 | M4: type 1 | O4: type 2 | Q4: type 3
D5: Total | F5: ='M1'!C12 -> Bedsit/room | H5: ='M1'!F12 -> 1-bed | J5: ='M1'!I12 -> 1-bed
B6: Number of units | D6: =SUM(F6:J6) -> 0 | F6: ='M1'!C8 -> 0 | H6: ='M1'!F8 -> 0 | J6: ='M1'!I8 -> 0
B7: Budgeted occupancy (see units page) | F7: =IF(F6>0,'M1'!C10,0) -> 0 | G7: % | H7: =IF(H6>0,'M1'!F10,0) -> 0 | I7: % | J7: =IF(J6>0,'M1'!I10,0) -> 0 | K7: %
B8: Budgeted bad debts (core rent) | F8: 2 | G8: % | H8: 2 | I8: % | J8: 2 | K8: %
B10: Annual budget
B11: Property costs
B12: Lease charges | C12: £ | D12: =IF(F$6>0,F12,0)+IF(H$6>0,H12,0)+IF(J$6>0,J12,0) -> 0 | E12: £ | G12: £ | I12: £ | M12: =IF(F$6>0,ROUND(F12/F$6/52*IF(F$7-F$8=0,1,100/(F$7-F$8)),M$1),0) -> 0 | O12: =IF(H$6>0,ROUND(H12/H$6/52*IF(H$7-H$8=0,1,100/(H$7-H$8)),O$1),0) -> 0 | Q12: =IF(J$6>0,ROUND(J12/J$6/52*IF(J$7-J$8=0,1,100/(J$7-J$8)),Q$1),0) -> 0
B13: Other payment to property owner | C13: £ | D13: =IF(F$6>0,F13,0)+IF(H$6>0,H13,0)+IF(J$6>0,J13,0) -> 0 | E13: £ | G13: £ | I13: £ | M13: =IF(F$6>0,ROUND(F13/F$6/52*IF(F$7-F$8=0,1,100/(F$7-F$8)),M$1),0) -> 0 | O13: =IF(H$6>0,ROUND(H13/H$6/52*IF(H$7-H$8=0,1,100/(H$7-H$8)),O$1),0) -> 0 | Q13: =IF(J$6>0,ROUND(J13/J$6/52*IF(J$7-J$8=0,1,100/(J$7-J$8)),Q$1),0) -> 0
B14: Property insurance | C14: £ | D14: 0 | E14: £ | G14: £ | I14: £ | M14: 0 | O14: 0 | Q14: 0
B15: Other estate costs | C15: £ | D15: =IF(F$6>0,F15,0)+IF(H$6>0,H15,0)+IF(J$6>0,J15,0) -> 0 | E15: £ | G15: £ | I15: £ | M15: 0 | O15: 0 | Q15: 0
B16: Loan charges | C16: £ | D16: =IF(F$6>0,F16,0)+IF(H$6>0,H16,0)+IF(J$6>0,J16,0) -> 0 | E16: £ | G16: £ | I16: £ | M16: 0 | O16: 0 | Q16: 0
B17: Council tax on void units | C17: £ | D17: 0 | E17: £ | F17: =CT!F18 -> 0 | H17: =CT!H18 -> 0 | J17: =CT!J18 -> 0 | M17: =IF(F$6>0,ROUND(F17/F$6/52*IF(F$7-F$8=0,1,100/(F$7-F$8)),M$1),0) -> 0 | O17: =IF(H$6>0,ROUND(H17/H$6/52*IF(H$7-H$8=0,1,100/(H$7-H$8)),O$1),0) -> 0 | Q17: =IF(J$6>0,ROUND(J17/J$6/52*IF(J$7-J$8=0,1,100/(J$7-J$8)),Q$1),0) -> 0
B18: Repairs and maintenance
B19: Routine / response maintenance | C19: £ | D19: =IF(F$6>0,F19,0)+IF(H$6>0,H19,0)+IF(J$6>0,J19,0) -> 0 | E19: £ | G19: £ | I19: £ | M19: =IF(F$6>0,ROUND(F19/F$6/52*IF(F$7-F$8=0,1,100/(F$7-F$8)),M$1),0) -> 0 | O19: =IF(H$6>0,ROUND(H19/H$6/52*IF(H$7-H$8=0,1,100/(H$7-H$8)),O$1),0) -> 0 | Q19: =IF(J$6>0,ROUND(J19/J$6/52*IF(J$7-J$8=0,1,100/(J$7-J$8)),Q$1),0) -> 0
B20: Boiler / heating system maintenance | C20: £ | D20: =IF(F$6>0,F20,0)+IF(H$6>0,H20,0)+IF(J$6>0,J20,0) -> 0 | E20: £ | G20: £ | I20: £ | M20: 0 | O20: 0 | Q20: 0
B21: Void maintenance | C21: £ | D21: =IF(F$6>0,F21,0)+IF(H$6>0,H21,0)+IF(J$6>0,J21,0) -> 0 | E21: £ | G21: £ | I21: £ | M21: 0 | O21: 0 | Q21: 0
B22: Cyclical maintenance provision | C22: £ | D22: =IF(F$6>0,F22,0)+IF(H$6>0,H22,0)+IF(J$6>0,J22,0) -> 0 | E22: £ | G22: £ | I22: £ | M22: 0 | O22: 0 | Q22: 0
B23: Major repairs / dilapidations provision | C23: £ | D23: 0 | E23: £ | G23: £ | I23: £ | M23: 0 | O23: 0 | Q23: 0
B24: Electrical safety certification | C24: £ | D24: =IF(F$6>0,F24,0)+IF(H$6>0,H24,0)+IF(J$6>0,J24,0) -> 0 | E24: £ | G24: £ | I24: £ | M24: 0 | O24: 0 | Q24: 0
B25: Gas safety certification | C25: £ | D25: 0 | E25: £ | G25: £ | I25: £ | M25: 0 | O25: 0 | Q25: 0
B26: Electrical safety certification | C26: £ | D26: =IF(F$6>0,F26,0)+IF(H$6>0,H26,0)+IF(J$6>0,J26,0) -> 0 | E26: £ | G26: £ | I26: £ | M26: 0 | O26: 0 | Q26: 0
B27: Other certifications | C27: £ | D27: =IF(F$6>0,F27,0)+IF(H$6>0,H27,0)+IF(J$6>0,J27,0) -> 0 | E27: £ | G27: £ | I27: £ | M27: 0 | O27: 0 | Q27: 0
B28: Other certifications | C28: £ | D28: 0 | E28: £ | G28: £ | I28: £ | M28: 0 | O28: 0 | Q28: 0
B29: Project team (from staff team page) | C29: £ | D29: =Salaries!H27 -> 0 | E29: £ | F29: =IF($D$6<>0,$D29*F$6/$D$6,0) -> 0 | G29: £ | H29: =IF($D$6<>0,$D29*H$6/$D$6,0) -> 0 | I29: £ | J29: =IF($D$6<>0,$D29*J$6/$D$6,0) -> 0 | M29: 0 | O29: 0 | Q29: 0
B31: Basic property management
B32: Central / area teams
B33: Rent accounting / arrears control | C33: £ | D33: =IF(F$6>0,F33,0)+IF(H$6>0,H33,0)+IF(J$6>0,J33,0) -> 0 | E33: £ | G33: £ | I33: £ | M33: =IF(F$6>0,ROUND(F33/F$6/52*IF(F$7-F$8=0,1,100/(F$7-F$8)),M$1),0) -> 0 | O33: =IF(H$6>0,ROUND(H33/H$6/52*IF(H$7-H$8=0,1,100/(H$7-H$8)),O$1),0) -> 0 | Q33: =IF(J$6>0,ROUND(J33/J$6/52*IF(J$7-J$8=0,1,100/(J$7-J$8)),Q$1),0) -> 0
B34: Other core management functions | C34: £ | D34: =IF(F$6>0,F34,0)+IF(H$6>0,H34,0)+IF(J$6>0,J34,0) -> 0 | E34: £ | G34: £ | I34: £ | M34: 0 | O34: 0 | Q34: 0
B35: Project team (from staff team page) | C35: £ | D35: =Salaries!H26 -> 0 | E35: £ | F35: =IF($D$6<>0,$D35*F$6/$D$6,0) -> 0 | G35: £ | H35: =IF($D$6<>0,$D35*H$6/$D$6,0) -> 0 | I35: £ | J35: =IF($D$6<>0,$D35*J$6/$D$6,0) -> 0 | M35: 0 | O35: 0 | Q35: 0
B37: Overheads charged to core rent
B38: HR | C38: £ | E38: £ | F38: =IF($D$6<>0,$D38*F$6/$D$6,0) -> 0 | G38: £ | H38: =IF($D$6<>0,$D38*H$6/$D$6,0) -> 0 | I38: £ | J38: =IF($D$6<>0,$D38*J$6/$D$6,0) -> 0 | M38: =IF(F$6>0,ROUND(F38/F$6/52*IF(F$7-F$8=0,1,100/(F$7-F$8)),M$1),0) -> 0 | O38: =IF(H$6>0,ROUND(H38/H$6/52*IF(H$7-H$8=0,1,100/(H$7-H$8)),O$1),0) -> 0 | Q38: =IF(J$6>0,ROUND(J38/J$6/52*IF(J$7-J$8=0,1,100/(J$7-J$8)),Q$1),0) -> 0
B39: Finance | C39: £ | E39: £ | F39: =IF($D$6<>0,$D39*F$6/$D$6,0) -> 0 | G39: £ | H39: 0 | I39: £ | J39: 0 | M39: 0 | O39: 0 | Q39: 0
B40: Directorate | C40: £ | E40: £ | F40: 0 | G40: £ | H40: 0 | I40: £ | J40: 0 | M40: 0 | O40: 0 | Q40: 0
B41: IT | C41: £ | E41: £ | F41: 0 | G41: £ | H41: 0 | I41: £ | J41: 0 | M41: 0 | O41: 0 | Q41: 0
B42: Central office admin | C42: £ | E42: £ | F42: 0 | G42: £ | H42: 0 | I42: £ | J42: 0 | M42: 0 | O42: 0 | Q42: 0
B43: Total / cost rent | E43: £ | F43: =IF(F6>0,SUM(F12:F17,F19:F29,F33:F35,F38:F42),0) -> 0 | G43: £ | H43: =IF(H6>0,SUM(H12:H17,H19:H29,H33:H35,H38:H42),0) -> 0 | I43: £ | J43: =IF(J6>0,SUM(J12:J17,J19:J29,J33:J35,J38:J42),0) -> 0 | M43: =SUM(M12:M17,M19:M29,M33:M35,M38:M42) -> 0 | O43: =SUM(O12:O17,O19:O29,O33:O35,O38:O42) -> 0 | Q43: =SUM(Q12:Q17,Q19:Q29,Q33:Q35,Q38:Q42) -> 0
B47: Income
B48: Cost rent receivable | F48: =F6*M43*52 -> 0 | H48: =H6*O43*52 -> 0 | J48: =J6*Q43*52 -> 0
B49: Less voids | F49: =-F48*(100-F7)/100 -> 0 | H49: =-H48*(100-H7)/100 -> 0 | J49: =-J48*(100-J7)/100 -> 0
F50: =SUM(F48:F49) -> 0 | H50: =SUM(H48:H49) -> 0 | J50: =SUM(J48:J49) -> 0
B51: Expenditure
B52: Bad debts | F52: =F48*F8/100 -> 0 | H52: =H48*H8/100 -> 0 | J52: =J48*J8/100 -> 0
B53: Property costs | D53: Charge rounding | F53: =F43 -> 0 | H53: =H43 -> 0 | J53: =J43 -> 0
B54: Rounding (dec points) | D54: 6 | F54: =ROUND(F50-SUM(F52:F53),2) -> 0 | H54: =ROUND(H50-SUM(H52:H53),2) -> 0 | J54: =ROUND(J50-SUM(J52:J53),2) -> 0
F55: =SUM(F52:F54) -> 0 | H55: =SUM(H52:H54) -> 0 | J55: =SUM(J52:J54) -> 0
F57: =ROUND(F50-F55,2) -> 0 | H57: =ROUND(H50-H55,2) -> 0 | J57: =ROUND(J50-J55,2) -> 0

Sheet EHM (hidden)
B2: =IF(Menu!B3<>"",Menu!B3,"") -> 
F3: Unit | H3: Unit | J3: Unit
B4: ENHANCED HOUSING MANAGEMENT | F4: type 1 | H4: type 2 | J4: type 3
D5: Total | F5: ='M1'!C12 -> Bedsit/room | H5: ='M1'!F12 -> 1-bed | J5: ='M1'!I12 -> 1-bed
B6: Number of units | D6: =SUM(F6:J6) -> 0 | F6: ='M1'!C8 -> 0 | H6: ='M1'!F8 -> 0 | J6: ='M1'!I8 -> 0
B7: Budgeted occupancy (see units page) | F7: =IF(F6>0,'M1'!C10,0) -> 0 | G7: % | H7: =IF(H6>0,'M1'!F10,0) -> 0 | I7: % | J7: =IF(J6>0,'M1'!I10,0) -> 0 | K7: %
B8: Budgeted bad debts (HB-eligible) - see services page | F8: =Services!F9 -> 2 | G8: % | H8: =Services!H9 -> 2 | I8: % | J8: =Services!J9 -> 2 | K8: %
B10: Weekly hours per resident
B11: Adjust weekly hours between units +/- ( %) | G11: =IF(F11<>0,"%","") ->  | I11: =IF(H11<>0,"%","") ->  | K11: =IF(J11<>0,"%","") -> 
B12: Staff-time - weekly hours | D12: =Salaries!I28 -> 0 | F12: =IF($D$51<>0,$D12*F51/$D$51,0) -> 0 | H12: =IF($D$51<>0,$D12*H51/$D$51,0) -> 0 | J12: =IF($D$51<>0,$D12*J51/$D$51,0) -> 0
B13: Weekly hours per resident | D13: =IF(D6<>0,D12/D6,0) -> 0 | F13: =IF(F6<>0,F12/F6,0) -> 0 | H13: =IF(H6<>0,H12/H6,0) -> 0 | J13: =IF(J6<>0,J12/J6,0) -> 0
B15: Care support and supervision budget
B16: Salaries - enhanced management | D16: =Salaries!H28 -> 0 | F16: =IF($D$12<>0,$D16*F$12/$D$12,0) -> 0 | H16: =IF($D$12<>0,$D16*H$12/$D$12,0) -> 0 | J16: =IF($D$12<>0,$D16*J$12/$D$12,0) -> 0
B17: Salaries - out of hours cover | D17: =Salaries!H29 -> 0 | F17: =IF($D$12<>0,$D17*F$12/$D$12,0) -> 0 | H17: =IF($D$12<>0,$D17*H$12/$D$12,0) -> 0 | J17: =IF($D$12<>0,$D17*J$12/$D$12,0) -> 0
B18: On-call / sleep in - from out of hours cover page | D18: ='Out of hrs'!D9+'Out of hrs'!D14 -> 0 | F18: =IF($D$12<>0,$D18*F$12/$D$12,0) -> 0 | H18: =IF($D$12<>0,$D18*H$12/$D$12,0) -> 0 | J18: =IF($D$12<>0,$D18*J$12/$D$12,0) -> 0
B19: Other enhanced management | D19: 0 | F19: =IF($D$12<>0,$D19*F$12/$D$12,0) -> 0 | H19: =IF($D$12<>0,$D19*H$12/$D$12,0) -> 0 | J19: =IF($D$12<>0,$D19*J$12/$D$12,0) -> 0
B20: Other enhanced management | D20: 0 | F20: 0 | H20: 0 | J20: 0
B21: Central / area team costs | D21: 0 | F21: 0 | H21: 0 | J21: 0
B22: Central overhead charge | D22: 0 | F22: 0 | H22: 0 | J22: 0
B23: Total expenditure | D23: =SUM(D16:D22) -> 0 | F23: =SUM(F16:F22) -> 0 | H23: =SUM(H16:H22) -> 0 | J23: =SUM(J16:J22) -> 0
B26: ENHANCED MANAGEMENT CHARGES
B28: Charges to residents (ineligible for HB) - if any | F28: =F4 -> type 1 | H28: =H4 -> type 2 | J28: =J4 -> type 3
B29: Weekly charge | E29: =IF(F29>0,"£","") ->  | F29: =IF(AND(F6<>0,F23<>0),F23/F6/52*100/(F7-F8),0) -> 0 | G29: =IF(H29>0,"£","") ->  | H29: =IF(AND(H6<>0,H23<>0),H23/H6/52*100/(H7-H8),0) -> 0 | I29: =IF(J29>0,"£","") ->  | J29: =IF(AND(J6<>0,J23<>0),J23/J6/52*100/(J7-J8),0) -> 0
B30: Enhanced management charges receivable | D30: =SUM(F30,H30,J30) -> 0 | F30: =F29*F6*52 -> 0 | H30: =H29*H6*52 -> 0 | J30: =J29*J6*52 -> 0
B31: Less:
B32: Voids | D32: =SUM(F32,H32,J32) -> 0 | F32: =-F30*(100-F7)/100 -> 0 | H32: =-H30*(100-H7)/100 -> 0 | J32: =-J30*(100-J7)/100 -> 0
B33: Bad debts | D33: 0 | F33: =-F30*F8/100 -> 0 | H33: =-H30*H8/100 -> 0 | J33: =-J30*J8/100 -> 0
B34: Net income from charges | D34: =SUM(D30,D32:D33) -> 0 | F34: =SUM(F30,F32:F33) -> 0 | H34: =SUM(H30,H32:H33) -> 0 | J34: =SUM(J30,J32:J33) -> 0
B36: =IF(D36>=0,"Surplus",IF(D36<0,"Deficit","")) -> Surplus | D36: =ROUND(D34-D23,2) -> 0
B38: Security contracts / staff are included in HB-eligible services
D51: =SUM(F51:J51) -> 0 | F51: =F6*(100+F11)/100 -> 0 | H51: =H6*(100+H11)/100 -> 0 | J51: =J6*(100+J11)/100 -> 0

Sheet Salaries (hidden)
B2: =IF(Menu!B3<>"",Menu!B3,"") -> 
B3: Project Team | K3: Percentage allocation of hours and costs (enter as number without % sign)
D4: Details for EACH post | H4: Project team cost & hours | K4: Housing management | P4: Services | V4: Care, | Y4: Housing management | AD4: Services | AJ4: Care, | AM4: Housing management | AR4: Services | AX4: Care,
C5: Number | D5: Salary | E5: Total | F5: Percentage | H5: Salaries, | I5: Total | L5: Property | N5: Out | V5: support & | Z5: Property | AB5: Out | AJ5: support & | AN5: Property | AP5: Out | AX5: support &
C6: of | D6: employer NI | E6: Weekly | F6: allocated to | H6: NI & | I6: Weekly | K6: Core | L6: maint- | N6: of hours | P6: Communal | Q6: Care- | R6: Security | S6: Catering | T6: HB | V6: Super- | Y6: Core | Z6: maint- | AB6: of hours | AD6: Communal | AE6: Care- | AF6: Security | AG6: Catering | AH6: HB | AJ6: Super- | AM6: Core | AN6: maint- | AP6: of hours | AR6: Communal | AS6: Care- | AT6: Security | AU6: Catering | AV6: HB | AX6: Super-
B7: Post | C7: posts | D7: & pension | E7: hours | F7: this project | H7: pensions | I7: hours | K7: (basic) | L7: enance | M7: Enhanced | N7: cover * | P7: cleaning | Q7: taking | T7: ineligible | V7: vision * | Y7: (basic*) | Z7: enance | AA7: Enhanced | AB7: cover * | AD7: cleaning | AE7: taking | AH7: ineligible | AJ7: vision | AM7: (basic*) | AN7: enance | AO7: Enhanced | AP7: cover * | AR7: cleaning | AS7: taking | AV7: ineligible | AX7: vision
C8: No. | D8: £ | E8: Hrs | F8: % | H8: £ | I8: Hrs | K8: % | L8: % | M8: % | N8: % | P8: % | Q8: % | R8: % | S8: % | T8: % | V8: %
B9: Service Manager | E9: 0 | F9: 100 | G9: =IF(AND(C9>0,D9>0,E9>0),"%","") ->  | H9: =D9*C9*F9/100 -> 0 | I9: =C9*E9*F9/100 -> 0 | J9: =IF(AND(OR(H9>0,I9>0),V9<0),"Check →","") ->  | K9: 0 | L9: 0 | M9: 0 | N9: 0 | P9: 0 | Q9: 0 | R9: 0 | S9: 0 | T9: 0 | V9: =100-SUM(K9:N9,P9:T9) -> 100 | Y9: =IF($G9="%",$H9*K9/100,0) -> 0 | Z9: =IF($G9="%",$H9*L9/100,0) -> 0 | AA9: =IF($G9="%",$H9*M9/100,0) -> 0 | AB9: =IF($G9="%",$H9*N9/100,0) -> 0 | AD9: =IF($G9="%",$H9*P9/100,0) -> 0 | AE9: =IF($G9="%",$H9*Q9/100,0) -> 0 | AF9: =IF($G9="%",$H9*R9/100,0) -> 0 | AG9: =IF($G9="%",$H9*S9/100,0) -> 0 | AH9: =IF($G9="%",$H9*T9/100,0) -> 0 | AJ9: =IF(G9="%",H9-SUM(Y9:AB9,AD9:AH9),0) -> 0 | AM9: =IF($G9="%",$I9*K9/100,0) -> 0 | AN9: =IF($G9="%",$I9*L9/100,0) -> 0 | AO9: =IF($G9="%",$I9*M9/100,0) -> 0 | AP9: =IF($G9="%",$I9*N9/100,0) -> 0 | AR9: =IF($G9="%",$I9*P9/100,0) -> 0 | AS9: =IF($G9="%",$I9*Q9/100,0) -> 0 | AT9: =IF($G9="%",$I9*R9/100,0) -> 0 | AU9: =IF($G9="%",$I9*S9/100,0) -> 0 | AV9: =IF($G9="%",$I9*T9/100,0) -> 0 | AX9: =IF(G9="%",I9-SUM(AM9:AP9,AR9:AV9),0) -> 0
B10: Team leader | E10: 0 | F10: 100 | G10: =IF(AND(C10>0,D10>0,E10>0),"%","") ->  | H10: =D10*C10*F10/100 -> 0 | I10: =C10*E10*F10/100 -> 0 | J10: =IF(AND(OR(H10>0,I10>0),V10<0),"Check →","") ->  | K10: 0 | L10: 0 | M10: 0 | P10: 0 | Q10: 0 | R10: 0 | S10: 0 | T10: 0 | V10: =100-SUM(K10:N10,P10:T10) -> 100 | Y10: =IF($G10="%",$H10*K10/100,0) -> 0 | Z10: =IF($G10="%",$H10*L10/100,0) -> 0 | AA10: =IF($G10="%",$H10*M10/100,0) -> 0 | AB10: 0 | AD10: =IF($G10="%",$H10*P10/100,0) -> 0 | AE10: 0 | AF10: 0 | AG10: =IF($G10="%",$H10*S10/100,0) -> 0 | AH10: =IF($G10="%",$H10*T10/100,0) -> 0 | AJ10: =IF(G10="%",H10-SUM(Y10:AB10,AD10:AH10),0) -> 0 | AM10: =IF($G10="%",$I10*K10/100,0) -> 0 | AN10: =IF($G10="%",$I10*L10/100,0) -> 0 | AO10: =IF($G10="%",$I10*M10/100,0) -> 0 | AP10: 0 | AR10: =IF($G10="%",$I10*P10/100,0) -> 0 | AS10: 0 | AT10: 0 | AU10: =IF($G10="%",$I10*S10/100,0) -> 0 | AV10: =IF($G10="%",$I10*T10/100,0) -> 0 | AX10: =IF(G10="%",I10-SUM(AM10:AP10,AR10:AV10),0) -> 0
B11: Project Worker | E11: 0 | F11: 100 | H11: 0 | I11: 0 | K11: 0 | L11: 0 | M11: 0 | P11: 0 | Q11: 0 | R11: 0 | S11: 0 | T11: 0 | V11: 100 | Y11: 0 | Z11: 0 | AA11: 0 | AB11: 0 | AD11: 0 | AE11: 0 | AF11: 0 | AG11: 0 | AH11: 0 | AJ11: 0 | AM11: 0 | AN11: 0 | AO11: 0 | AP11: 0 | AR11: 0 | AS11: 0 | AT11: 0 | AU11: 0 | AV11: 0 | AX11: 0
B12: Cleaner | E12: 0 | F12: 100 | H12: 0 | I12: 0 | K12: 0 | L12: 0 | M12: 0 | P12: 0 | Q12: 0 | R12: 0 | S12: 0 | T12: 0 | V12: 100 | Y12: 0 | Z12: 0 | AA12: 0 | AB12: 0 | AD12: 0 | AE12: 0 | AF12: 0 | AG12: 0 | AH12: 0 | AJ12: 0 | AM12: 0 | AN12: 0 | AO12: 0 | AP12: 0 | AR12: 0 | AS12: 0 | AT12: 0 | AU12: 0 | AV12: 0 | AX12: 0
B13: Cook | E13: 0 | F13: 100 | H13: 0 | I13: 0 | K13: 0 | L13: 0 | M13: 0 | P13: 0 | Q13: 0 | R13: 0 | S13: 0 | T13: 0 | V13: 100 | Y13: 0 | Z13: 0 | AA13: 0 | AB13: 0 | AD13: 0 | AE13: 0 | AF13: 0 | AG13: 0 | AH13: 0 | AJ13: 0 | AM13: 0 | AN13: 0 | AO13: 0 | AP13: 0 | AR13: 0 | AS13: 0 | AT13: 0 | AU13: 0 | AV13: 0 | AX13: 0
F14: 100 | H14: 0 | I14: 0 | K14: 0 | L14: 100 | M14: 0 | P14: 0 | Q14: 0 | S14: 0 | T14: 0 | V14: 0 | Y14: 0 | Z14: 0 | AA14: 0 | AB14: 0 | AD14: 0 | AE14: 0 | AF14: 0 | AG14: 0 | AH14: 0 | AJ14: 0 | AM14: 0 | AN14: 0 | AO14: 0 | AP14: 0 | AR14: 0 | AS14: 0 | AT14: 0 | AU14: 0 | AV14: 0 | AX14: 0
F15: 100 | H15: 0 | I15: 0 | K15: 0 | L15: 0 | M15: 0 | P15: 0 | Q15: 0 | S15: 0 | T15: 0 | V15: 100 | Y15: 0 | Z15: 0 | AA15: 0 | AB15: 0 | AD15: 0 | AE15: 0 | AF15: 0 | AG15: 0 | AH15: 0 | AJ15: 0 | AM15: 0 | AN15: 0 | AO15: 0 | AP15: 0 | AR15: 0 | AS15: 0 | AT15: 0 | AU15: 0 | AV15: 0 | AX15: 0
F16: 100 | H16: 0 | I16: 0 | K16: 0 | L16: 0 | M16: 0 | P16: 0 | Q16: 0 | S16: 0 | T16: 0 | V16: 100 | Y16: 0 | Z16: 0 | AA16: 0 | AB16: 0 | AD16: 0 | AE16: 0 | AF16: 0 | AG16: 0 | AH16: 0 | AJ16: 0 | AM16: 0 | AN16: 0 | AO16: 0 | AP16: 0 | AR16: 0 | AS16: 0 | AT16: 0 | AU16: 0 | AV16: 0 | AX16: 0
F17: 100 | H17: 0 | I17: 0 | K17: 0 | L17: 0 | M17: 0 | P17: 0 | Q17: 0 | S17: 0 | T17: 0 | V17: 100 | Y17: 0 | Z17: 0 | AA17: 0 | AB17: 0 | AD17: 0 | AE17: 0 | AF17: 0 | AG17: 0 | AH17: 0 | AJ17: 0 | AM17: 0 | AN17: 0 | AO17: 0 | AP17: 0 | AR17: 0 | AS17: 0 | AT17: 0 | AU17: 0 | AV17: 0 | AX17: 0
F18: 100 | H18: 0 | I18: 0 | K18: 0 | L18: 0 | M18: 0 | P18: 0 | Q18: 0 | S18: 0 | T18: 0 | V18: 100 | Y18: 0 | Z18: 0 | AA18: 0 | AB18: 0 | AD18: 0 | AE18: 0 | AF18: 0 | AG18: 0 | AH18: 0 | AJ18: 0 | AM18: 0 | AN18: 0 | AO18: 0 | AP18: 0 | AR18: 0 | AS18: 0 | AT18: 0 | AU18: 0 | AV18: 0 | AX18: 0
F19: 100 | H19: 0 | I19: 0 | K19: 0 | L19: 0 | M19: 0 | P19: 0 | Q19: 0 | S19: 0 | T19: 0 | V19: 100 | Y19: 0 | Z19: 0 | AA19: 0 | AB19: 0 | AD19: 0 | AE19: 0 | AF19: 0 | AG19: 0 | AH19: 0 | AJ19: 0 | AM19: 0 | AN19: 0 | AO19: 0 | AP19: 0 | AR19: 0 | AS19: 0 | AT19: 0 | AU19: 0 | AV19: 0 | AX19: 0
F20: 100 | H20: 0 | I20: 0 | K20: 0 | L20: 0 | M20: 0 | P20: 0 | Q20: 0 | S20: 0 | T20: 0 | V20: 100 | Y20: 0 | Z20: 0 | AA20: 0 | AB20: 0 | AD20: 0 | AE20: 0 | AF20: 0 | AG20: 0 | AH20: 0 | AJ20: 0 | AM20: 0 | AN20: 0 | AO20: 0 | AP20: 0 | AR20: 0 | AS20: 0 | AT20: 0 | AU20: 0 | AV20: 0 | AX20: 0
F21: 100 | H21: 0 | I21: 0 | K21: 0 | L21: 0 | M21: 0 | P21: 0 | Q21: 0 | S21: 0 | T21: 0 | V21: 100 | Y21: 0 | Z21: 0 | AA21: 0 | AB21: 0 | AD21: 0 | AE21: 0 | AF21: 0 | AG21: 0 | AH21: 0 | AJ21: 0 | AM21: 0 | AN21: 0 | AO21: 0 | AP21: 0 | AR21: 0 | AS21: 0 | AT21: 0 | AU21: 0 | AV21: 0 | AX21: 0
F22: 100 | H22: 0 | I22: 0 | K22: 0 | L22: 0 | M22: 0 | P22: 0 | Q22: 0 | S22: 0 | T22: 0 | V22: 100 | Y22: 0 | Z22: 0 | AA22: 0 | AB22: 0 | AD22: 0 | AE22: 0 | AF22: 0 | AG22: 0 | AH22: 0 | AJ22: 0 | AM22: 0 | AN22: 0 | AO22: 0 | AP22: 0 | AR22: 0 | AS22: 0 | AT22: 0 | AU22: 0 | AV22: 0 | AX22: 0
F23: 100 | H23: 0 | I23: 0 | K23: 0 | L23: 0 | M23: 0 | P23: 0 | Q23: 0 | S23: 0 | T23: 0 | V23: 100 | Y23: 0 | Z23: 0 | AA23: 0 | AB23: 0 | AD23: 0 | AE23: 0 | AF23: 0 | AG23: 0 | AH23: 0 | AJ23: 0 | AM23: 0 | AN23: 0 | AO23: 0 | AP23: 0 | AR23: 0 | AS23: 0 | AT23: 0 | AU23: 0 | AV23: 0 | AX23: 0
H24: =SUM(H9:H23) -> 0 | I24: =SUM(I9:I23) -> 0 | Y24: =SUM(Y9:Y23) -> 0 | Z24: =SUM(Z9:Z23) -> 0 | AA24: =SUM(AA9:AA23) -> 0 | AB24: 0 | AD24: =SUM(AD9:AD23) -> 0 | AE24: 0 | AF24: =SUM(AF9:AF23) -> 0 | AG24: 0 | AH24: 0 | AJ24: =SUM(AJ9:AJ23) -> 0 | AM24: =SUM(AM9:AM23) -> 0 | AN24: =SUM(AN9:AN23) -> 0 | AO24: =SUM(AO9:AO23) -> 0 | AP24: 0 | AR24: =SUM(AR9:AR23) -> 0 | AS24: =SUM(AS9:AS23) -> 0 | AT24: 0 | AU24: =SUM(AU9:AU23) -> 0 | AV24: =SUM(AV9:AV23) -> 0 | AX24: =SUM(AX9:AX23) -> 0
B25: Allocated hours and costs
B26: Core housing management | H26: =Y24 -> 0 | I26: =AM24 -> 0 | N26: * staff time charged to out of | T26: * Can include out-of-hours
B27: Property maintenance | H27: =Z24 -> 0 | I27: =AN24 -> 0 | N27: hours cover. | T27: cover if paid for from care,
B28: Enhanced management | H28: =AA24 -> 0 | I28: =AO24 -> 0 | N28: Assumed to be HB-eligible | T28: support & supervision funding
B29: Out of hours cover | H29: =AB24 -> 0 | I29: =AP24 -> 0 | N29: Sleep-in / on call can be added | T29: Sleep-in / on call can be added
B30: Communal service | H30: =AD24+AE24+AF24 -> 0 | I30: =AR24+AS24+AT24 -> 0 | N30: on the out of hours page | T30: on the out-of hours page
B31: Catering | H31: =AG24 -> 0 | I31: =AU24 -> 0
B32: HB-ineligible services | H32: =AH24 -> 0 | I32: =AV24 -> 0
B33: Care support and supervision | H33: =AJ24 -> 0 | I33: =AX24 -> 0
H34: =SUM(H26:H33) -> 0 | I34: =SUM(I26:I33) -> 0
H35: =Budget1!D44 -> 0

Sheet Rents (hidden)
B5: SHEDULE OF RENTS AND CHARGES
D6: ='M1'!C12 -> Bedsit/room | F6: ='M1'!F12 -> 1-bed | H6: ='M1'!I12 -> 1-bed
D7: ='M1'!C13 -> Supported | F7: ='M1'!F13 -> Supported | H7: ='M1'!I13 -> Supported
D8: ='M1'!C14 -> Cost rent* | F8: ='M1'!F14 -> Cost rent* | H8: ='M1'!I14 -> Cost rent*
B9: =IF(Menu!B3<>"",Menu!B3,"") ->  | D9: £ | F9: £ | H9: £ | K9: 1
B10: Core rent | D10: ='M1'!C38 -> 0 | F10: ='M1'!F38 -> 0 | H10: ='M1'!I38 -> 0 | K10: 1
B11: Council tax charge | D11: =IF(CT!F6>0,CT!F12,0) -> 0 | F11: =IF(CT!H6>0,CT!H12,0) -> 0 | H11: =IF(CT!J6>0,CT!J12,0) -> 0 | K11: =IF(OR(D11<>0,F11<>0,H11<>0),1,0) -> 0
K12: 1
B13: Enhanced management charge | D13: =EHM!F29 -> 0 | F13: =EHM!H29 -> 0 | H13: =EHM!J29 -> 0 | K13: =IF(OR(D13<>0,F13<>0,H13<>0),1,0) -> 0
K14: =IF(OR(D13<>0,F13<>0,H13<>0),1,0) -> 0
B15: Service charges (HB eligible) | K15: 1
B16: =Services!B14 -> Heat and light (common parts only) | D16: =Services!M14 -> 0 | F16: =Services!O14 -> 0 | H16: =Services!Q14 -> 0 | K16: =IF(OR(D16<>0,F16<>0,H16<>0),1,0) -> 0
B17: =Services!B16 -> Water charges (common parts only) | D17: =Services!M16 -> 0 | F17: =Services!O16 -> 0 | H17: =Services!Q16 -> 0 | K17: 0
B18: =Services!B18 -> Phone line rental (for use by residents) | D18: =Services!M18 -> 0 | F18: =Services!O18 -> 0 | H18: =Services!Q18 -> 0 | K18: 0
B19: =Services!B21 -> Cleaning materials | D19: =Services!M21 -> 0 | F19: =Services!O21 -> 0 | H19: =Services!Q21 -> 0 | K19: 0
B20: Cleaning contracts | D20: =Services!M22 -> 0 | F20: =Services!O22 -> 0 | H20: =Services!Q22 -> 0 | K20: 0
B21: Cleaning staff | D21: =Services!M23 -> 0 | F21: =Services!O23 -> 0 | H21: =Services!Q23 -> 0 | K21: 0
B22: Caretaking | D22: =Services!M24 -> 0 | F22: =Services!O24 -> 0 | H22: =Services!Q24 -> 0 | K22: 0
B23: =Services!B26 -> Window cleaning | D23: =Services!M26 -> 0 | F23: =Services!O26 -> 0 | H23: =Services!Q26 -> 0 | K23: 0
B24: =Services!B27 -> Deep cleaning | D24: =Services!M27 -> 0 | F24: =Services!O27 -> 0 | H24: =Services!Q27 -> 0 | K24: 0
B25: =Services!B28 -> Gardening (communal) | D25: =Services!M28 -> 0 | F25: =Services!O28 -> 0 | H25: =Services!Q28 -> 0 | K25: 0
B26: =Services!B29 -> Grounds maintenance | D26: =Services!M29 -> 0 | F26: =Services!O29 -> 0 | H26: =Services!Q29 -> 0 | K26: 0
B27: =Services!B30 -> Caretaking | D27: =Services!M30 -> 0 | F27: =Services!O30 -> 0 | H27: =Services!Q30 -> 0 | K27: 0
B28: =Services!B31 -> Rubbish clearance / removal | D28: =Services!M31 -> 0 | F28: =Services!O31 -> 0 | H28: =Services!Q31 -> 0 | K28: 0
B29: =Services!B32 -> Bulk waste disposal | D29: =Services!M32 -> 0 | F29: =Services!O32 -> 0 | H29: =Services!Q32 -> 0 | K29: 0
B30: =Services!B33 -> Sanitary waste removal | D30: =Services!M33 -> 0 | F30: =Services!O33 -> 0 | H30: =Services!Q33 -> 0 | K30: 0
B31: =Services!B34 -> Pest control | D31: =Services!M34 -> 0 | F31: =Services!O34 -> 0 | H31: =Services!Q34 -> 0 | K31: 0
B32: =Services!B36 -> Legionella testing & treatment | D32: =Services!M36 -> 0 | F32: =Services!O36 -> 0 | H32: =Services!Q36 -> 0 | K32: 0
B33: =Services!B37 -> Portable appliance testing | D33: =Services!M37 -> 0 | F33: =Services!O37 -> 0 | H33: =Services!Q37 -> 0 | K33: 0
B34: =Services!B38 -> Fixed appliance testing | D34: =Services!M38 -> 0 | F34: =Services!O38 -> 0 | H34: =Services!Q38 -> 0 | K34: 0
B35: =Services!B39 -> Smoke alarms | D35: =Services!M39 -> 0 | F35: =Services!O39 -> 0 | H35: =Services!Q39 -> 0 | K35: 0
B36: =Services!B40 -> Fire detection equipment | D36: =Services!M41+Services!M42 -> 0 | F36: =Services!O41+Services!O42 -> 0 | H36: =Services!Q41+Services!Q42 -> 0 | K36: 0
B37: =Services!B43 -> Fire fighting equipment | D37: =Services!M44+Services!M45 -> 0 | F37: =Services!O44+Services!O45 -> 0 | H37: =Services!Q44+Services!Q45 -> 0 | K37: 0
B38: =Services!B46 -> Other health & safety | D38: =Services!M46 -> 0 | F38: =Services!O46 -> 0 | H38: =Services!Q46 -> 0 | K38: 0
B39: =Services!B48 -> Furniture & equipment (common parts) | D39: =Services!M48 -> 0 | F39: =Services!O48 -> 0 | H39: =Services!Q48 -> 0 | K39: 0
B40: Furn & equipmt (landlord owned for use in residents' accomm) | D40: =Services!M49 -> 0 | F40: =Services!O49 -> 0 | H40: =Services!Q49 -> 0 | K40: 0
B41: =Services!B50 -> Kitchen equipment / white goods | D41: =Services!M50 -> 0 | F41: =Services!O50 -> 0 | H41: =Services!Q50 -> 0 | K41: 0
B42: =Services!B51 -> Laundry equipment | D42: =Services!M51 -> 0 | F42: =Services!O51 -> 0 | H42: =Services!Q51 -> 0 | K42: 0
B43: =Services!B52 -> Lift replacement | D43: =Services!M52 -> 0 | F43: =Services!O52 -> 0 | H43: =Services!Q52 -> 0 | K43: 0
B44: =Services!B53 -> Lift servicing / maintenance | D44: =Services!M53 -> 0 | F44: =Services!O53 -> 0 | H44: =Services!Q53 -> 0 | K44: 0
B45: =Services!B54 -> Aerials | D45: =Services!M54 -> 0 | F45: =Services!O54 -> 0 | H45: =Services!Q54 -> 0 | K45: 0
B46: =Services!B55 -> Carpets and curtains | D46: =Services!M55 -> 0 | F46: =Services!O55 -> 0 | H46: =Services!Q55 -> 0 | K46: 0
B47: =Services!B56 -> Renewals and replacements | D47: =Services!M56 -> 0 | F47: =Services!O56 -> 0 | H47: =Services!Q56 -> 0 | K47: 0
B48: =Services!B57 -> Contents insurance | D48: =Services!M57 -> 0 | F48: =Services!O57 -> 0 | H48: =Services!Q57 -> 0 | K48: 0
B49: =Services!B59 -> Security contracts | D49: =Services!M59 -> 0 | F49: =Services!O59 -> 0 | H49: =Services!Q59 -> 0 | K49: 0
B50: Security staff | D50: =Services!M60 -> 0 | F50: =Services!O60 -> 0 | H50: =Services!Q60 -> 0 | K50: 0
B51: =Services!B61 -> Door entry system | D51: =Services!M61 -> 0 | F51: =Services!O61 -> 0 | H51: =Services!Q61 -> 0 | K51: 0
B52: =Services!B62 -> CCTV | D52: =Services!M62 -> 0 | F52: =Services!O62 -> 0 | H52: =Services!Q62 -> 0 | K52: 0
B53: =Services!B63 -> Other security | D53: =Services!M63 -> 0 | F53: =Services!O63 -> 0 | H53: =Services!Q63 -> 0 | K53: 0
B54: =Services!B65 -> Redecoration of communal facilities | D54: =Services!M65 -> 0 | F54: =Services!O65 -> 0 | H54: =Services!Q65 -> 0 | K54: 0
B55: =Services!B66 -> Repairs & maint (communal facilities) | D55: =Services!M66 -> 0 | F55: =Services!O66 -> 0 | H55: =Services!Q66 -> 0 | K55: 0
B56: Oher repais & maintenance expenses | D56: =Services!M67 -> 0 | F56: =Services!O67 -> 0 | H56: =Services!Q67 -> 0 | K56: 0
B57: Food / catering - excludes HB-ineligible charegs | D57: =Services!M69 -> 0 | F57: =Services!O69 -> 0 | H57: =Services!Q69 -> 0 | K57: 0
B58: Sub-total -direct costs of HB-eligible servces | D58: =SUM(D16:D57) -> 0 | F58: =SUM(F16:F57) -> 0 | H58: =SUM(H16:H57) -> 0 | K58: 1
B59: Admin charge (HB-eligible services) | D59: =Services!M78 -> 0 | F59: =Services!O78 -> 0 | H59: =Services!Q78 -> 0 | K59: 1
B60: Total: HB eligible services | D60: =SUM(D58:D59) -> 0 | F60: =SUM(F58:F59) -> 0 | H60: =SUM(H58:H59) -> 0 | K60: 1
K61: 1
B62: Service charges (HB INeligible) | K62: 1
B63: =Services!B15 -> Heat and light (rooms / flats) | D63: =Services!M15 -> 0 | F63: =Services!O15 -> 0 | H63: =Services!Q15 -> 0 | K63: =IF(OR(D63<>0,F63<>0,H63<>0),1,0) -> 0
B64: =Services!B17 -> Water charges (rooms/flats) | D64: =Services!M17 -> 0 | F64: =Services!O17 -> 0 | H64: =Services!Q17 -> 0 | K64: 0
B65: =Services!B18 -> Phone line rental (for use by residents) | D65: =Services!M18 -> 0 | F65: =Services!O18 -> 0 | H65: =Services!Q18 -> 0 | K65: 0
B66: =Services!B19 -> Broadband charges | D66: =Services!M19 -> 0 | F66: =Services!O19 -> 0 | H66: =Services!Q19 -> 0 | K66: 0
B67: =Services!B25 -> Salaries - inelig services (exc catering) | D67: =Services!M25 -> 0 | F67: =Services!O25 -> 0 | H67: =Services!Q25 -> 0 | K67: 0
B68: Meals | D68: =Services!M70 -> 0 | F68: =Services!O70 -> 0 | H68: =Services!Q70 -> 0 | K68: 0
B69: Sub-total -direct costs of HB-ineligible servces | D69: =SUM(D63:D68) -> 0 | F69: =SUM(F63:F68) -> 0 | H69: =SUM(H63:H68) -> 0 | K69: 1
B70: Admin charge (HB-ineligible services) | D70: =Services!M79 -> 0 | F70: =Services!O79 -> 0 | H70: =Services!Q79 -> 0 | K70: 0
B71: Total: HB ineligible services | D71: =SUM(D69:D70) -> 0 | F71: =SUM(F69:F70) -> 0 | H71: =SUM(H69:H70) -> 0 | K71: 1
K72: 1
B73: Charge for care, support & supervision (HB-ineligible) | D73: =IF(CSS!F6<>0,CSS!F37,0) -> 0 | F73: =IF(CSS!H6<>0,CSS!H37,0) -> 0 | H73: =IF(CSS!J6<>0,CSS!J37,0) -> 0 | K73: =IF(OR(D73<>0,F73<>0,H73<>0),1,0) -> 0
K74: =IF(OR(D73<>0,F73<>0,H73<>0),1,0) -> 0
B75: TOTAL PAYABLE | D75: =SUM(D73,D71,D60,D13,D11,D10) -> 0 | F75: =SUM(F73,F71,F60,F13,F11,F10) -> 0 | H75: =SUM(H73,H71,H60,H13,H11,H10) -> 0 | K75: 1
B76: =IF(OR(D8="Cost rent*",F8="Cost rent*",H8="Cost rent*"),"* cost rents are set to match core property costs","") -> * cost rents are set to match core property costs | K76: 1
D77: =ROUND(D60-D79,2) -> 0 | F77: =ROUND(F60-F79,2) -> 0 | H77: =ROUND(H60-H79,2) -> 0 | K77: =IF(OR(D77<>0,F77<>0,H77<>0),1,0) -> 0
D78: =ROUND(D71-D80,2) -> 0 | F78: =ROUND(F71-F80,2) -> 0 | H78: =ROUND(H71-H80,2) -> 0 | K78: 0
D79: =Services!M82 -> 0 | F79: =Services!O82 -> 0 | H79: =Services!Q82 -> 0
D80: =Services!M83 -> 0 | F80: =Services!O83 -> 0 | H80: =Services!Q83 -> 0
B117: =Services!B75 -> SUB-TOTAL DIRECT COSTS: HB INELIGIBLE | D117: =Services!M75 -> 0 | F117: =Services!O75 -> 0 | H117: =Services!Q75 -> 0 | K117: 1

Sheet EHMplus (hidden)
C4: ENHANCED HOUSING MANAGEMENT
C6: =IF(Menu!B3<>"",Menu!B3,"") -> 
C8: Total number of hours charged to enhanced management | G8: =EHM!D12 -> 0 | H8: hrs
C9: Total annual cost | F9: £ | G9: =EHM!D23 -> 0
F11: Weekly | G11: Annual | H11: Balance of duties
F12: hours | G12: cost £ | H12: Actual | I12: Suggested
H13: % | I13: %
C14: Managing anti-social behaviour * | F14: =IF(SUM($H$15:$H$24)=0,$G$8*$I14/100,$G$8*$H14/100) -> 0 | G14: =IF(SUM($H$15:$H$24)=0,$G$9*$I14/100,$G$9*$H14/100) -> 0 | H14: =IF(SUM(H15:H24)>0,100-SUM(H15:H24),0) -> 0 | I14: =100-SUM(I15:I24) -> 10
C15: Responding to complaints * | F15: =IF(SUM($H$15:$H$24)=0,$G$8*$I15/100,$G$8*$H15/100) -> 0 | G15: =IF(SUM($H$15:$H$24)=0,$G$9*I15/100,$G$9*H15/100) -> 0 | I15: 10
C16: Managing access to shared facilities ** | F16: 0 | G16: 0 | I16: 15
C17: Concierge / managing access to the building, dealing with disruptive visitors * | F17: 0 | G17: 0 | I17: 25
C18: Monitoring CCTV | F18: 0 | G18: 0 | I18: 15
C19: Additional input re lettings, enforcing tenancy conditions, rent collection and arrears control * | F19: 0 | G19: 0 | I19: 10
C20: Managing extensive / exceptional property maintenance ** | F20: 0 | G20: 0 | I20: 10
C21: Report writing, handover session, breaks, staff meetings, training, etc. | F21: 0 | G21: 0 | I21: 5
C22: Other | F22: 0 | G22: 0 | I22: 0
C23: Other | F23: 0 | G23: 0 | I23: 0
C24: Other | F24: 0 | G24: 0 | I24: 0
F25: =SUM(F14:F24) -> 0 | G25: =SUM(G14:G24) -> 0
C27: * Additional input required by the staff team, over and above that normally needed for general needs or low
C28: support services.
C30: ** Enhanced management does not constitute the provision of a support service. It arises out of the needs of
C31: supported housing residents but does not address those support needs.

Sheet CT (hidden)
B2: =IF(Menu!B3<>"",Menu!B3,"") -> 
F3: Unit | H3: Unit | J3: Unit
B4: COUNCIL TAX | F4: type 1 | H4: type 2 | J4: type 3
D5: Total | F5: ='M1'!C12 -> Bedsit/room | H5: ='M1'!F12 -> 1-bed | J5: ='M1'!I12 -> 1-bed
B6: Number of units | D6: =SUM(F6:J6) -> 0 | F6: ='M1'!C8 -> 0 | H6: ='M1'!F8 -> 0 | J6: ='M1'!I8 -> 0
B7: Budgeted occupancy (see units page) | F7: =IF(F6>0,'M1'!C10,0) -> 0 | G7: % | H7: =IF(H6>0,'M1'!F10,0) -> 0 | I7: % | J7: =IF(J6>0,'M1'!I10,0) -> 0 | K7: %
B8: Budgeted bad debts (core rents) - see the property page | F8: =Prop!F8 -> 2 | G8: % | H8: =Prop!H8 -> 2 | I8: % | J8: =Prop!J8 -> 2 | K8: %
B10: Council tax per unit per annum | C10: £ | D10: =SUM(F10,H10,J10) -> 0 | E10: £ | F10: 0 | G10: £ | H10: 0 | I10: £ | J10: 0
B11: Annual council tax | C11: £ | D11: =SUM(F11,H11,J11) -> 0 | E11: £ | F11: =F10*F6 -> 0 | G11: £ | H11: =H10*H6 -> 0 | I11: £ | J11: =J10*J6 -> 0
B12: Weekly council tax per unit | E12: £ | F12: =F10/52 -> 0 | G12: £ | H12: =H10/52 -> 0 | I12: £ | J12: =J10/52 -> 0
B14: Gross CT charges receivable | C14: £ | D14: =SUM(F14,H14,J14) -> 0 | E14: £ | F14: =F12*F6*52 -> 0 | G14: £ | H14: =H12*H6*52 -> 0 | I14: £ | J14: =J12*J6*52 -> 0
B15: Less voids | C15: £ | D15: =SUM(F15,H15,J15) -> 0 | E15: £ | F15: =-F14*(100-F7)/100 -> 0 | G15: £ | H15: =-H14*(100-H7)/100 -> 0 | I15: £ | J15: =-J14*(100-J7)/100 -> 0
B16: Less bad debts | C16: £ | D16: 0 | E16: £ | F16: =-F14*F8/100 -> 0 | G16: £ | H16: =-H14*H8/100 -> 0 | I16: £ | J16: =-J14*J8/100 -> 0
B17: Net CT charges receivable | C17: £ | D17: =SUM(D14:D16) -> 0 | E17: £ | F17: =SUM(F14:F16) -> 0 | G17: £ | H17: =SUM(H14:H16) -> 0 | I17: £ | J17: =SUM(J14:J16) -> 0
B18: Council tax voids | C18: £ | D18: 0 | E18: £ | F18: =F11-F17 -> 0 | G18: £ | H18: =H11-H17 -> 0 | I18: £ | J18: =J11-J17 -> 0
C19: £ | D19: =SUM(D17:D18) -> 0 | E19: £ | F19: =SUM(F17:F18) -> 0 | G19: £ | H19: =SUM(H17:H18) -> 0 | I19: £ | J19: =SUM(J17:J18) -> 0
B43: Weekl hours per resident
B44: Adjust weekly hours between units +/- ( %) | G44: =IF(F44<>0,"%","") ->  | I44: =IF(H44<>0,"%","") ->  | K44: =IF(J44<>0,"%","") -> 
B45: Staff-time - weekly hours | D45: =Salaries!I28 -> 0 | F45: =IF($D$84<>0,$D45*F84/$D$84,0) -> 0 | H45: =IF($D$84<>0,$D45*H84/$D$84,0) -> 0 | J45: =IF($D$84<>0,$D45*J84/$D$84,0) -> 0
B46: Weekly hours per resident | D46: =IF(D6<>0,D45/D6,0) -> 0 | F46: =IF(F6<>0,F45/F6,0) -> 0 | H46: =IF(H6<>0,H45/H6,0) -> 0 | J46: =IF(J6<>0,J45/J6,0) -> 0
B48: Care support and supervision budget
B49: Salaries - enhanced management | D49: =Salaries!H28 -> 0 | F49: =IF($D$45<>0,$D49*F$45/$D$45,0) -> 0 | H49: =IF($D$45<>0,$D49*H$45/$D$45,0) -> 0 | J49: =IF($D$45<>0,$D49*J$45/$D$45,0) -> 0
B50: Salaries - out of hours cover | D50: =Salaries!H29 -> 0 | F50: =IF($D$45<>0,$D50*F$45/$D$45,0) -> 0 | H50: =IF($D$45<>0,$D50*H$45/$D$45,0) -> 0 | J50: =IF($D$45<>0,$D50*J$45/$D$45,0) -> 0
B51: On-call / sleep in - from out of hours cover page | D51: ='Out of hrs'!D9+'Out of hrs'!D14 -> 0 | F51: =IF($D$45<>0,$D51*F$45/$D$45,0) -> 0 | H51: =IF($D$45<>0,$D51*H$45/$D$45,0) -> 0 | J51: =IF($D$45<>0,$D51*J$45/$D$45,0) -> 0
B52: Other enhanced management | D52: 0 | F52: =IF($D$45<>0,$D52*F$45/$D$45,0) -> 0 | H52: =IF($D$45<>0,$D52*H$45/$D$45,0) -> 0 | J52: =IF($D$45<>0,$D52*J$45/$D$45,0) -> 0
B53: Other enhanced management | D53: 0 | F53: 0 | H53: 0 | J53: 0
B54: Central / area team costs | D54: 0 | F54: 0 | H54: 0 | J54: 0
B55: Central overhead charge | D55: 0 | F55: 0 | H55: 0 | J55: 0
B56: Total expenditure | D56: =SUM(D49:D55) -> 0 | F56: =SUM(F49:F55) -> 0 | H56: =SUM(H49:H55) -> 0 | J56: =SUM(J49:J55) -> 0
B59: ENHANCED MANAGEMENT CHARGES
B61: Charges to residents (ineligible for HB) - if any | F61: =F4 -> type 1 | H61: =H4 -> type 2 | J61: =J4 -> type 3
B62: Weekly charge | E62: =IF(F62>0,"£","") ->  | F62: =IF(AND(F6<>0,F56<>0),F56/F6/52*100/(F7-#REF!),0) -> 0 | G62: =IF(H62>0,"£","") ->  | H62: =IF(AND(H6<>0,H56<>0),H56/H6/52*100/(H7-#REF!),0) -> 0 | I62: =IF(J62>0,"£","") ->  | J62: =IF(AND(J6<>0,J56<>0),J56/J6/52*100/(J7-#REF!),0) -> 0
B63: Enhanced manageemnt charges receivable | D63: =SUM(F63,H63,J63) -> 0 | F63: =F62*F6*52 -> 0 | H63: =H62*H6*52 -> 0 | J63: =J62*J6*52 -> 0
B64: Less:
B65: Voids | D65: =SUM(F65,H65,J65) -> 0 | F65: =-F63*(100-F7)/100 -> 0 | H65: =-H63*(100-H7)/100 -> 0 | J65: =-J63*(100-J7)/100 -> 0
B66: Bad debts | F66: =-F63*#REF!/100 ->  | H66: =-H63*#REF!/100 ->  | J66: =-J63*#REF!/100 -> 
B67: Net income from charges | D67: =SUM(D63,D65:D66) ->  | F67: =SUM(F63,F65:F66) ->  | H67: =SUM(H63,H65:H66) ->  | J67: =SUM(J63,J65:J66) -> 
B69: =IF(D69>=0,"Surplus",IF(D69<0,"Deficit","")) ->  | D69: =ROUND(D67-D56,2) -> 
B71: Securuty contracts / staff are included in HB-eligible services
D84: =SUM(F84:J84) -> 0 | F84: =F6*(100+F44)/100 -> 0 | H84: =H6*(100+H44)/100 -> 0 | J84: =J6*(100+J44)/100 -> 0

Sheet CSSplus (hidden)
B4: Care / support & supervision
B6: =IF(Menu!B3<>"",Menu!B3,"") -> 
B8: Description of client group
B11: All residents have support plans? | C11: Yes | D11: Notes
B12: Daily log maintained for all residents? | C12: Yes
B14: Software used to record support activity (if any)
B17: Total number of hours charged to care support and supervision | F17: =CSS!D12 -> 0 | G17: hrs
B18: Total annual cost | E18: £ | F18: =CSS!D22 -> 0
E20: Weekly | F20: Annual | G20: Balance of duties
E21: hours | F21: cost £ | G21: Actual | H21: Suggested
G22: % | H22: %
B23: One-to-one sessions | E23: =IF(SUM($G$24:$G$30)=0,$F$17*$H23/100,$F$17*$G23/100) -> 0 | F23: =IF(SUM($G$24:$G$30)=0,$F$18*$H23/100,$F$18*$G23/100) -> 0 | G23: =IF(SUM(G24:G30)>0,100-SUM(G24:G30),0) -> 0 | H23: =100-SUM(H24:H30) -> 50
B24: Group sessions | E24: =IF(SUM($G$24:$G$30)=0,$F$17*$H24/100,$F$17*$G24/100) -> 0 | F24: =IF(SUM($G$24:$G$30)=0,$F$18*$H24/100,$F$18*$G24/100) -> 0 | H24: 20
B25: Liaison with other agencies | E25: 0 | F25: 0 | H25: 10
B26: Off-site support for visits/ appointments, etc. | E26: 0 | F26: 0 | H26: 5
B27: Report writing, handover session, breaks, staff meetings, training, etc. | E27: 0 | F27: 0 | H27: 15
B28: Other | E28: 0 | F28: 0 | H28: 0
B29: Other | E29: 0 | F29: 0 | H29: 0
B30: Other | E30: 0 | F30: 0 | H30: 0
E31: =SUM(E23:E30) -> 0 | F31: =SUM(F23:F30) -> 0

Sheet Budget2 (hidden)
J3: Care
J4: support &
E5: Core | F5: Council | G5: Enhanced | H5: Communal | I5: HB | J5: Super-
D6: TOTAL | E6: Property | F6: tax | G6: mngmnt | H6: services | I6: ineligible | J6: vision *
B8: INCOME
B9: Core rents receivable | D9: =SUM(E9:J9) -> 0 | E9: =('M1'!C38*'M1'!C8+'M1'!F38*'M1'!F8+'M1'!I38*'M1'!I8)*52 -> 0 | F9: =CT!D14 -> 0
B10: less voids | D10: =SUM(E10:J10) -> 0 | E10: =-'M1'!C8*'M1'!C38*52*(100-'M1'!C10)/100-'M1'!F8*'M1'!F38*52*(100-'M1'!F10)/100-'M1'!I8*'M1'!I38*52*(100-'M1'!I10)/100 -> 0 | F10: =CT!D15 -> 0
D11: =SUM(D9:D10) -> 0 | E11: =SUM(E9:E10) -> 0 | F11: =SUM(F9:F10) -> 0
B13: Service charges receivable | D13: =SUM(E13:J13) -> 0 | G13: =EHM!D30 -> 0 | H13: =Services!D87 -> 0 | I13: =Services!D93 -> 0 | J13: =CSS!D38 -> 0
B14: less voids | D14: =SUM(E14:J14) -> 0 | G14: =EHM!D32 -> 0 | H14: =Services!D89 -> 0 | I14: =Services!D95 -> 0 | J14: =CSS!D40 -> 0
D15: =SUM(D13:D14) -> 0 | G15: =SUM(G13:G14) -> 0 | H15: =SUM(H13:H14) -> 0 | I15: 0 | J15: =SUM(J13:J14) -> 0
B17: Contract income | D17: =SUM(E17:J17) -> 0 | J17: =CSS!D30 -> 0
B18: Charitable income | D18: 0 | J18: =CSS!D35 -> 0
B19: Cross-subsidy | D19: 0 | J19: =CSS!D47 -> 0
B20: Total income | D20: =SUM(D15:D19,D11) -> 0 | E20: =SUM(E15:E19,E11) -> 0 | F20: 0 | G20: 0 | H20: 0 | I20: 0 | J20: 0
B22: EXPENDITURE
B24: Bad debts | D24: =SUM(E24:J24) -> 0 | E24: ='M1'!C8*'M1'!C38*52*(Prop!F8)/100+'M1'!F8*'M1'!F38*52*(Prop!H8)/100+'M1'!I8*'M1'!I38*52*(Prop!J8)/100 -> 0 | F24: =-CT!D16 -> 0 | G24: =-EHM!D33 -> 0 | H24: =-Services!D90 -> 0 | I24: =-Services!D96 -> 0 | J24: =-CSS!D41 -> 0
B25: Services | D25: 0 | H25: =Services!D82 -> 0 | I25: =Services!D83 -> 0
B26: Enhanced management | D26: 0 | G26: =EHM!D23 -> 0
B27: Care and support | D27: 0 | J27: =CSS!D22 -> 0
B28: Council tax | D28: 0 | E28: =CT!D18 -> 0 | F28: =CT!D17 -> 0
B29: Property costs | D29: 0 | E29: =Prop!F43+Prop!H43+Prop!J43-E28 -> 0
B31: Total expenditure | D31: =SUM(D24:D30) -> 0 | E31: =SUM(E24:E30) -> 0 | F31: =SUM(F24:F30) -> 0 | G31: =SUM(G24:G30) -> 0 | H31: =SUM(H24:H30) -> 0 | I31: 0 | J31: 0
B33: Total expenditure | D33: =ROUND(D20-D31,0) -> 0 | E33: =ROUND(E20-E31,0) -> 0 | F33: 0 | G33: 0 | H33: 0 | I33: 0 | J33: 0

Sheet F1 (hidden)
A1: 1 | B1: FORMULA RENT CALCULATOR
A2: =IF('M1'!C14='M1'!E129,"F","") ->  | B2: x
B3: INPUTS FOR FORMULA RENT CALCULATION
B4: Unit size | D4: =IF(A$2="F",'M1'!C12,"") ->  | F4: x
B5: Unit type | D5: =IF(A$2="F",'M1'!C13,"") ->  | F5: x
B7: 1999 valuation method | D7: =IF(A$2="F",IF('M1'!C19="DRC*","DRC",'M1'!C19),"") ->  | F7: =IF(D7="Manual entry","Enter the 1990 valuation for each unit in the cell below",IF(D7="DRC","The 1999 valuation will be calculated from details entered below","")) -> 
B8: 1999 valuation £ | D8: =IF(A$2="F",'M1'!C21,"") ->  | E8: x | F8: =IF(AND(D7="DRC",D8=0),"DRC method selected - no valuation entry needed",IF(AND(D7="DRC",D8<>0),"DRC method has been selected, so the valuation entered will not be used",IF(AND(D7="Manual entry",D8=0),"Enter the 1999 valuation",""))) -> 
B10: Apply "flexibility" | D10: =IF(A$2="F",'M1'!C22,"") ->  | E10: x | F10: =IF(AND($D10="Yes",$D5<>""),VLOOKUP(D5,$B$128:$C$130,COLUMNS($B$128:$C$128),FALSE),"") -> 
B11: =IF(D10="Yes","Optional flexibility","") ->  | E11: =IF(AND(D10="Yes",OR(D11=0,D11=F10)),"Maximum flexibility will be applied",IF(AND(D10="Yes",D11<F10),"The lower flexibility entered will be applied",IF(AND(D10="Yes",D11>F10),"Flexiility will be limited to the maximum",""))) -> 
I12: Select
B13: Local area for formula rent calculation | I13: date
B14: =IF(A2="F",'M1'!C24,"") ->  | G14: FORMULA RENT | I14: =IF(A2="F",Menu!C5,"") ->  | J14: £ | K14: =IF(I14<>"",VLOOKUP(I14,N35:Q38,COLUMNS(N35:Q35),FALSE),"") -> 
B16: INPUTS FOR DEPRECIATED REPLACEMENT COST (DRC) VALUATION (optional)
B17: Local area for DRC calculation
B18: =IF(AND(A2="F",D7="DRC"),'M1'!C34,"") -> 
B20: Floor area of unit | D20: =IF(D$7="DRC",'M1'!C26,0) -> 0 | E20: x
B21: Plot area | D21: =IF(D$7="DRC",'M1'!C27,0) -> 0 | E21: x
B22: No. of units on the plot | D22: =IF(D$7="DRC",'M1'!C28,0) -> 0 | E22: x | F22: =IF(AND($D21>0,$D22>=0),"The 'land area' for this unit is:","") ->  | I22: =IF(AND(D21>0,D22=0),D21,IF(AND($D21>0,$D22>0),D21/D22,0)) -> 0 | J22: =IF(AND($D21>0,$D22>=0),"m²","") -> 
B23: New lift? | D23: =IF(D$7="DRC",'M1'!C29,0) -> 0 | E23: x
B24: Wheelchair access? | D24: =IF(D$7="DRC",'M1'!C30,0) -> 0 | E24: x | F24: Requiring specialised equipment
B25: Kitchen >10 yrs old? | D25: =IF(D$7="DRC",'M1'!C31,0) -> 0 | E25: x
B26: Bathroom >15 yrs old? | D26: =IF(D$7="DRC",'M1'!C32,0) -> 0 | E26: x
B28: FORMULA RENT CALCULATIONS | J28: Infl- | K28: Addition | L28: Formula | O28: Infl- | P28: Addition | Q28: Formula
J29: ation | L29: rent £ | O29: ation | Q29: rent £
B30: Average social rent 2000/01 | F30: £ | G30: 54.62 | I30: 2000/01 | L30: =G48 -> 0 | N30: 2019/20 | O30: =IF(D$5=B$128,0,IF(D$5=B$129,0,IF(D$5=B$130,2.4,0))) -> 0 | P30: =IF(D$5=B$130,1,-1) -> -1 | Q30: =ROUND(L48*SUM(100,O30,P30)/100,2) -> 0
B31: Average valuation 2000/01 | F31: £ | G31: 49750 | I31: 2001/02 | J31: 3.3 | K31: 1 | L31: =ROUND(L30*SUM(100,J31,K31)/100,2) -> 0 | N31: 2020/21 | O31: 1.7 | P31: 1 | Q31: =ROUND(Q30*SUM(O31,P31,100)/100,2) -> 0
B32: Average manual earnings 2000/01 | F32: £ | G32: 316.4 | I32: 2002/03 | J32: 1.7 | K32: 0.5 | L32: =ROUND(L31*SUM(100,J32,K32)/100,2) -> 0 | N32: 2021/22 | O32: 0.5 | P32: 1 | Q32: =ROUND(Q31*SUM(O32,P32,100)/100,2) -> 0
B33: Manual earnings for selected area 2000/01 | F33: £ | G33: =IF(B14=0,0,IF(B14<>"",VLOOKUP(B14,$B$73:$C$118,COLUMNS($B$73:$C$73),FALSE),0)) -> 0 | I33: 2003/04 | J33: 1.7 | K33: 0.5 | L33: 0 | N33: 2022/23 | O33: 3.1 | P33: 1 | Q33: =ROUND(Q32*SUM(O33,P33,100)/100,2) -> 0
B34: Unit size multiplier | G34: =IF(D4=0,0,IF(D4<>"",VLOOKUP(D4,$B$120:$C$126,COLUMNS(B120:C120),FALSE),0)) -> 0 | I34: 2004/05 | J34: 2.8 | K34: 0.5 | L34: 0 | N34: 2023/24 | O34: =IF(D5=B128,0,10.1) -> 10.1 | P34: =IF(D5=B128,7,1) -> 1 | Q34: 0
I35: 2005/06 | J35: 3.1 | K35: 0.5 | L35: 0 | N35: 2024/25 | O35: 6.7 | P35: 1 | Q35: 0
B36: Adjusted for local earnings and unit size | I36: 2006/07 | J36: 2.7 | K36: 0.5 | L36: 0 | N36: 2025/26 | O36: =Ass!D9 -> 2.2 | P36: =Ass!D15 -> 1 | Q36: 0
B37: 70% of social rent 2000/01 | F37: £ | G37: =ROUND(G30*0.7,2) -> 38.23 | I37: 2007/08 | J37: 3.6 | K37: 0.5 | L37: 0 | N37: 2026/27 | O37: =Ass!D10 -> 2 | P37: =Ass!D16 -> 1 | Q37: 0
B38: Adjusted for local earnings & unit size | F38: £ | G38: =IF(B14=0,0,ROUND(G37*G33/G32*G34,2)) -> 0 | I38: 2008/09 | J38: 3.9 | K38: 0.5 | L38: 0 | N38: 2027/28 | O38: =Ass!D11 -> 2 | P38: =Ass!D17 -> 1 | Q38: 0
I39: 2009/10 | J39: 5 | K39: 0.5 | L39: 0
B40: Adjusted for 2000/01 valuation | I40: 2010/11 | J40: -1.4 | K40: 0.5 | L40: 0
B41: 30% of social rent 2000/01 | F41: £ | G41: =G30-G37 -> 16.39 | I41: 2011/12 | J41: 4.6 | K41: 0.5 | L41: 0
B42: Valuation | F42: £ | G42: =IF(D7="DRC",J57,D8) ->  | I42: 2012/13 | J42: 5.6 | K42: 0.5 | L42: 0
B43: Adjusted for valuation | F43: £ | G43: =IF(A2="F",ROUND(G41*G42/G31,2),0) -> 0 | I43: 2013/14 | J43: 2.6 | K43: 0.5 | L43: 0
I44: 2014/15 | J44: 3.2 | K44: 0.5 | L44: 0
B45: Total formula rent 2000/02 | I45: 2015/16 | J45: 1.2 | K45: 1 | L45: 0
B46: Before flexibility | F46: £ | G46: =SUM(G43,G38) -> 0 | I46: 2016/17 | J46: =IF(D$5=B$128,0,IF(OR(D$5=B$129,$D5=B$130),-0.1,0)) -> 0 | K46: =IF(D$5=B$128,-1,IF(OR(D$5=B$129,$D5=B$130),1,0)) -> 0 | L46: 0
B47: Flexibility | G47: =IF(D5=0,0,IF(D10="No",0,MIN(F10,D11))) -> 0 | I47: 2017/18 | J47: =IF(D$5=B$128,0,IF(D$5=B$129,0,IF(D$5=B$130,1,0))) -> 0 | K47: =IF(D$5=B$130,1,-1) -> -1 | L47: 0
B48: Including flexibility | F48: £ | G48: =ROUND(G46*(100+G47)/100,2) -> 0 | I48: 2018/19 | J48: =IF(D$5=B$128,0,IF(D$5=B$129,0,IF(D$5=B$130,3,0))) -> 0 | K48: =IF(D$5=B$130,1,-1) -> -1 | L48: 0
B50: DRC CALCULATION
B51: TCI region | D51: =IF(B18=0,"",IF(B18<>"",VLOOKUP(B18,$B$132:$C$485,COLUMNS(B132:C132),FALSE),"")) ->  | G51: Plot | J51: =IF(I52<2,"small","large") -> small | K51: =IF(J51="small","< 2 hectares",">2 haecares") -> < 2 hectares
B52: Build cost | D52: =IF(D51<>"",VLOOKUP(D51,$B$487:$C$491,COLUMNS($B$487:$C$487),FALSE),0) -> 0 | E52: per m² | G52: Plot size | I52: =D21/10000 -> 0 | K52: hectares
B53: Adjustment for lift | D53: =IF(D23="Yes",D$52*0.12,0) -> 0 | E53: per m² | G53: Plot area per unit | I53: =I22/10000 -> 0 | K53: hectares per unit
B54: Adjust for wheelchair | D54: =IF(D24="Yes",D$52*0.12,0) -> 0 | E54: per m² | G54: Land cost | I54: £k | J54: =IF(B18=0,"",IF(B18="",0,IF(J51="small",VLOOKUP(B18,$B$132:$E$485,COLUMNS($B$132:$D$132),FALSE),VLOOKUP(B18,$B$132:$E$485,COLUMNS($B$132:$E$132),FALSE)))) -> 0 | K54: per hectare
B55: Adjust for kitch/bthrm | D55: =IF(OR(D25="Yes",D26="Yes"),-D$52*0.1,0) -> 0 | E55: per m² | G55: Land value per unit | I55: £ | J55: =ROUND(SUM(J54)*I53*1000,0) -> 0
B56: Adjusted build cost | D56: =ROUND(SUM(D52:D55),0) -> 0 | E56: per m² | G56: Build cost | I56: £ | J56: =D57 -> 0
B57: Build cost | D57: =ROUND(D56*D20,0) -> 0 | G57: Valuation | I57: £ | J57: =SUM(J55:J56) -> 0
B72: Manual earnings
B73: Avon | C73: 321.2 | I73: =I30 -> 2000/01 | J73: =L30 -> 0
B74: Bedfordshire | C74: 343.7 | I74: 2001/02 | J74: =L31 -> 0
B75: Berkshire | C75: 345.4 | I75: 2002/03 | J75: 0
B76: Buckinghamshire | C76: 328.3 | I76: 2003/04 | J76: 0
B77: Cambridgeshire | C77: 330.1 | I77: 2004/05 | J77: 0
B78: Cheshire | C78: 322 | I78: 2005/06 | J78: 0
B79: Cleveland | C79: 338.4 | I79: 2006/07 | J79: 0
B80: Cornwall | C80: 255.5 | I80: 2007/08 | J80: 0
B81: Cumbria | C81: 323.7 | I81: 2008/09 | J81: 0
B82: Derbyshire | C82: 321.1 | I82: 2009/10 | J82: 0
B83: Devon | C83: 278 | I83: 2010/11 | J83: 0
B84: Dorset | C84: 293.9 | I84: 2011/12 | J84: 0
B85: Durham | C85: 289.7 | I85: 2012/13 | J85: 0
B86: East Sussex | C86: 281.5 | I86: 2013/14 | J86: 0
B87: Essex | C87: 325.9 | I87: 2014/15 | J87: 0
B88: Gloucestershire | C88: 308 | I88: 2015/16 | J88: 0
B89: Greater London | C89: 354.1 | I89: 2016/17 | J89: 0
B90: Greater Manchester | C90: 307.3 | I90: 2017/18 | J90: 0
B91: Hampshire | C91: 328.7 | I91: 2018/19 | J91: 0
B92: Hereford & Worcs | C92: 289.6 | I92: =N30 -> 2019/20 | J92: =Q30 -> 0
B93: Hertfordshire | C93: 343.7 | I93: =N31 -> 2020/21 | J93: =Q31 -> 0
B94: Humberside | C94: 318.4 | I94: 2021/22 | J94: 0
B95: Isle of Wight | C95: 288.5 | I95: 2022/23 | J95: 0
B96: Kent | C96: 316.4 | I96: 2023/24 | J96: 0
B97: Lancashire | C97: 302.7 | I97: 2024/25 | J97: 0
B98: Leicestershire | C98: 303.1 | I98: 2025/26 | J98: 0
B99: Lincolnshire | C99: 286.7 | I99: 2026/27 | J99: 0
B100: Merseyside | C100: 324.9
B101: Norfolk | C101: 302.5
B102: North Yorkshire | C102: 299.6
B103: Northamptonshire | C103: 328.5
B104: Northumberland | C104: 276.1
B105: Nottinghamshire | C105: 298
B106: Oxfordshire | C106: 323.8
B107: Shropshire | C107: 295.4
B108: Somerset | C108: 299.7
B109: South Yorkshire | C109: 299.1
B110: Staffordshire | C110: 296.2
B111: Suffolk | C111: 304.3
B112: Surrey | C112: 333.2
B113: Tyne & Wear | C113: 307.9
B114: Warwickshire | C114: 326.1
B115: West Midlands | C115: 320.6
B116: West Sussex | C116: 332.5
B117: West Yorkshire | C117: 302.7
B118: Wiltshire | C118: 313.9
B120: Bedsit/room | C120: 0.8
B121: 1-bed | C121: 0.9
B122: 2-bed | C122: 1
B123: 3-bed | C123: 1.1
B124: 4-bed | C124: 1.2
B125: 5-bed | C125: 1.3
B126: 6-bed | C126: 1.4
B128: General needs | C128: 5
B129: Supported | C129: 10
B130: Refuge or almshouse | C130: 10
B132: Adur | C132: C | D132: 800 | E132: 750
B133: Allerdale | C133: D | D133: 250 | E133: 197
B134: Alnwick | C134: D | D134: 430 | E134: 310
B135: Amber Valley | C135: E | D135: 520 | E135: 450
B136: Arun | C136: C | D136: 1125 | E136: 1110
B137: Ashfield | C137: E | D137: 350 | E137: 300
B138: Ashford | C138: C | D138: 1020 | E138: 925
B139: Aylesbury Vale | C139: C | D139: 1600 | E139: 1600
B140: Babergh | C140: D | D140: 350 | E140: 335
B141: Barking and Dagenham | C141: B | D141: 1385 | E141: 1600
B142: Barnet | C142: A | D142: 3800 | E142: 3500
B143: Barnsley | C143: D | D143: 550 | E143: 375
B144: Barrow-in-Furness | C144: C | D144: 425 | E144: 375
B145: Basildon | C145: C | D145: 1025 | E145: 988
B146: Basingstoke and Deane | C146: B | D146: 1720 | E146: 1720
B147: Bassetlaw | C147: D | D147: 400 | E147: 300
B148: Bath and North East Somerset | C148: C | D148: 1500 | E148: 1400
B149: Berwick-upon-Tweed | C149: D | D149: 370 | E149: 245
B150: Bexley | C150: B | D150: 2000 | E150: 1600
B151: Birmingham | C151: C | D151: 890 | E151: 890
B152: Blaby | C152: D | D152: 750 | E152: 700
B153: Blackburn | C153: D | D153: 470 | E153: 325
B154: Blackpool | C154: D | D154: 750 | E154: 675
B155: Blyth Valley | C155: D | D155: 245 | E155: 200
B156: Bolsover | C156: E | D156: 325 | E156: 250
B157: Bolton | C157: D | D157: 550 | E157: 500
B158: Boston | C158: E | D158: 270 | E158: 185
B159: Bournemouth | C159: C | D159: 1600 | E159: 1500
B160: Bracknell Forest | C160: B | D160: 2000 | E160: 2000
B161: Bradford | C161: D | D161: 600 | E161: 525
B162: Braintree | C162: D | D162: 800 | E162: 750
B163: Breckland | C163: E | D163: 325 | E163: 275
B164: Brent | C164: A | D164: 2300 | E164: 3000
B165: Brentwood | C165: B | D165: 1555 | E165: 1400
B166: Bridgnorth | C166: D | D166: 750 | E166: 715
B167: Brighton and Hove | C167: C | D167: 1200 | E167: 1000
B168: Bristol | C168: C | D168: 1350 | E168: 1350
B169: Broadland | C169: D | D169: 325 | E169: 275
B170: Bromley | C170: B | D170: 2000 | E170: 2470
B171: Bromsgrove | C171: C | D171: 1235 | E171: 1350
B172: Broxbourne | C172: B | D172: 2200 | E172: 2000
B173: Broxtowe | C173: D | D173: 680 | E173: 625
B174: Burnley | C174: D | D174: 470 | E174: 310
B175: Bury | C175: D | D175: 550 | E175: 500
B176: Calderdale | C176: D | D176: 550 | E176: 450
B177: Cambridge | C177: B | D177: 1480 | E177: 2200
B178: Camden | C178: A | D178: 9000 | E178: 5500
B179: Cannock Chase | C179: D | D179: 900 | E179: 950
B180: Canterbury | C180: C | D180: 1850 | E180: 1350
B181: Caradon | C181: D | D181: 200 | E181: 220
B182: Carlisle | C182: D | D182: 360 | E182: 270
B183: Carrick | C183: D | D183: 400 | E183: 350
B184: Castle Morpeth | C184: D | D184: 450 | E184: 370
B185: Castle Point | C185: C | D185: 1200 | E185: 1300
B186: Charnwood | C186: D | D186: 800 | E186: 800
B187: Chelmsford | C187: C | D187: 1280 | E187: 1225
B188: Cheltenham | C188: C | D188: 1500 | E188: 1500
B189: Cherwell | C189: C | D189: 1000 | E189: 900
B190: Chester | C190: C | D190: 645 | E190: 825
B191: Chesterfield | C191: D | D191: 495 | E191: 325
B192: Chester-le-Street | C192: D | D192: 494 | E192: 494
B193: Chichester | C193: C | D193: 1850 | E193: 1750
B194: Chiltern | C194: B | D194: 2500 | E194: 2500
B195: Chorley | C195: D | D195: 775 | E195: 625
B196: Christchurch | C196: C | D196: 1600 | E196: 1500
B197: City of London | C197: A | D197: 20500 | E197: 20500
B198: City of Westminster | C198: A | D198: 20500 | E198: 20500
B199: Colchester | C199: C | D199: 900 | E199: 900
B200: Congleton | C200: D | D200: 540 | E200: 500
B201: Copeland | C201: D | D201: 200 | E201: 150
B202: Corby | C202: D | D202: 350 | E202: 350
B203: Cotswold | C203: C | D203: 1350 | E203: 1350
B204: Coventry | C204: D | D204: 950 | E204: 850
B205: Craven | C205: D | D205: 525 | E205: 500
B206: Crawley | C206: B | D206: 1200 | E206: 1200
B207: Crewe and Nantwich | C207: D | D207: 350 | E207: 300
B208: Croydon | C208: B | D208: 2000 | E208: 2000
B209: Dacorum | C209: B | D209: 1900 | E209: 2250
B210: Darlington | C210: D | D210: 500 | E210: 500
B211: Dartford | C211: C | D211: 1100 | E211: 1100
B212: Daventry | C212: D | D212: 740 | E212: 740
B213: Derby | C213: E | D213: 600 | E213: 550
B214: Derbyshire Dales | C214: D | D214: 550 | E214: 490
B215: Derwentside | C215: D | D215: 315 | E215: 275
B216: Doncaster | C216: D | D216: 625 | E216: 425
B217: Dover | C217: C | D217: 700 | E217: 450
B218: Dudley | C218: D | D218: 950 | E218: 1000
B219: Durham | C219: C | D219: 650 | E219: 600
B220: Ealing | C220: A | D220: 3100 | E220: 3200
B221: Easington | C221: D | D221: 350 | E221: 215
B222: East Cambridgeshire | C222: D | D222: 615 | E222: 565
B223: East Devon | C223: C | D223: 893 | E223: 819
... 267 more rows

Sheet F2 (hidden)
A1: 1 | B1: FORMULA RENT CALCULATOR
A2: =IF('M1'!F14='M1'!E129,"F","") ->  | B2: x
B3: INPUTS FOR FORMULA RENT CALCULATION
B4: Unit size | D4: =IF(A$2="F",'M1'!F12,"") ->  | F4: x
B5: Unit type | D5: =IF(A$2="F",'M1'!F13,"") ->  | F5: x
B7: 1999 valuation method | D7: =IF(A$2="F",IF('M1'!F19="DRC*","DRC",'M1'!F19),"") ->  | F7: x
B8: 1999 valuation £ | D8: =IF(A$2="F",'M1'!F21,"") ->  | E8: x | F8: =IF(AND(D7="DRC",D8=0),"DRC method selected - no valuation entry needed",IF(AND(D7="DRC",D8<>0),"DRC method has been selected, so the valuation entered will not be used",IF(AND(D7="Manual entry",D8=0),"Enter the 1999 valuation",""))) -> 
B10: Apply "flexibility" | D10: =IF(A$2="F",'M1'!F22,"") ->  | E10: x | F10: =IF(AND($D10="Yes",$D5<>""),VLOOKUP(D5,$B$128:$C$130,COLUMNS($B$128:$C$128),FALSE),"") -> 
B11: =IF(D10="Yes","Optional flexibility","") ->  | E11: =IF(AND(D10="Yes",OR(D11=0,D11=F10)),"Maximum flexibility will be applied",IF(AND(D10="Yes",D11<F10),"The lower flexibility entered will be applied",IF(AND(D10="Yes",D11>F10),"Flexiility will be limited to the maximum",""))) -> 
I12: Select
B13: Local area for formula rent calculation | I13: date
B14: =IF(A2="F",'M1'!C24,"") ->  | G14: FORMULA RENT | I14: =IF(A2="F",Menu!C5,"") ->  | J14: £ | K14: =IF(I14<>"",VLOOKUP(I14,N35:Q38,COLUMNS(N35:Q35),FALSE),"") -> 
B16: INPUTS FOR DEPRECIATED REPLACEMENT COST (DRC) VALUATION (optional)
B17: Local area for DRC calculation
B18: =IF(AND(A2="F",D7="DRC"),'M1'!C34,"") -> 
B20: Floor area of unit | D20: =IF(D$7="DRC",'M1'!F26,0) -> 0 | E20: x
B21: Plot area | D21: =IF(D$7="DRC",'M1'!F27,0) -> 0 | E21: x
B22: No. of units on the plot | D22: =IF(D$7="DRC",'M1'!F28,0) -> 0 | E22: x | F22: =IF(AND($D21>0,$D22>=0),"The 'land area' for this unit is:","") ->  | I22: =IF(AND(D21>0,D22=0),D21,IF(AND($D21>0,$D22>0),D21/D22,0)) -> 0 | J22: =IF(AND($D21>0,$D22>=0),"m²","") -> 
B23: New lift? | D23: =IF(D$7="DRC",'M1'!F29,0) -> 0 | E23: x
B24: Wheelchair access? | D24: =IF(D$7="DRC",'M1'!F30,0) -> 0 | E24: x | F24: Requiring specialised equipment
B25: Kitchen >10 yrs old? | D25: =IF(D$7="DRC",'M1'!F31,0) -> 0 | E25: x
B26: Bathroom >15 yrs old? | D26: =IF(D$7="DRC",'M1'!F32,0) -> 0 | E26: x
B28: FORMULA RENT CALCULATIONS | J28: Infl- | K28: Addition | L28: Formula | O28: Infl- | P28: Addition | Q28: Formula
J29: ation | L29: rent £ | O29: ation | Q29: rent £
B30: Average social rent 2000/01 | F30: £ | G30: 54.62 | I30: 2000/01 | L30: =G48 -> 0 | N30: 2019/20 | O30: =IF(D$5=B$128,0,IF(D$5=B$129,0,IF(D$5=B$130,2.4,0))) -> 0 | P30: =IF(D$5=B$130,1,-1) -> -1 | Q30: =ROUND(L48*SUM(100,O30,P30)/100,2) -> 0
B31: Average valuation 2000/01 | F31: £ | G31: 49750 | I31: 2001/02 | J31: 3.3 | K31: 1 | L31: =ROUND(L30*SUM(100,J31,K31)/100,2) -> 0 | N31: 2020/21 | O31: 1.7 | P31: 1 | Q31: =ROUND(Q30*SUM(O31,P31,100)/100,2) -> 0
B32: Average manual earnings 2000/01 | F32: £ | G32: 316.4 | I32: 2002/03 | J32: 1.7 | K32: 0.5 | L32: =ROUND(L31*SUM(100,J32,K32)/100,2) -> 0 | N32: 2021/22 | O32: 0.5 | P32: 1 | Q32: =ROUND(Q31*SUM(O32,P32,100)/100,2) -> 0
B33: Manual earnings for selected area 2000/01 | F33: £ | G33: =IF(B14=0,0,IF(B14<>"",VLOOKUP(B14,$B$73:$C$118,COLUMNS($B$73:$C$73),FALSE),0)) -> 0 | I33: 2003/04 | J33: 1.7 | K33: 0.5 | L33: 0 | N33: 2022/23 | O33: 3.1 | P33: 1 | Q33: =ROUND(Q32*SUM(O33,P33,100)/100,2) -> 0
B34: Unit size multiplier | G34: =IF(D4=0,0,IF(D4<>"",VLOOKUP(D4,$B$120:$C$126,COLUMNS(B120:C120),FALSE),0)) -> 0 | I34: 2004/05 | J34: 2.8 | K34: 0.5 | L34: 0 | N34: 2023/24 | O34: =IF(D5=B128,0,10.1) -> 10.1 | P34: =IF(D5=B128,7,1) -> 1 | Q34: 0
I35: 2005/06 | J35: 3.1 | K35: 0.5 | L35: 0 | N35: 2024/25 | O35: 6.7 | P35: 1 | Q35: 0
B36: Adjusted for local earnings and unit size | I36: 2006/07 | J36: 2.7 | K36: 0.5 | L36: 0 | N36: 2025/26 | O36: =Ass!D9 -> 2.2 | P36: =Ass!D15 -> 1 | Q36: 0
B37: 70% of social rent 2000/01 | F37: £ | G37: =ROUND(G30*0.7,2) -> 38.23 | I37: 2007/08 | J37: 3.6 | K37: 0.5 | L37: 0 | N37: 2026/27 | O37: =Ass!D10 -> 2 | P37: =Ass!D16 -> 1 | Q37: 0
B38: Adjusted for local earnings & unit size | F38: £ | G38: =IF(B14=0,0,ROUND(G37*G33/G32*G34,2)) -> 0 | I38: 2008/09 | J38: 3.9 | K38: 0.5 | L38: 0 | N38: 2027/28 | O38: =Ass!D11 -> 2 | P38: =Ass!D17 -> 1 | Q38: 0
I39: 2009/10 | J39: 5 | K39: 0.5 | L39: 0
B40: Adjusted for 2000/01 valuation | I40: 2010/11 | J40: -1.4 | K40: 0.5 | L40: 0
B41: 30% of social rent 2000/01 | F41: £ | G41: =G30-G37 -> 16.39 | I41: 2011/12 | J41: 4.6 | K41: 0.5 | L41: 0
B42: Valuation | F42: £ | G42: =IF(D7="DRC",J57,D8) ->  | I42: 2012/13 | J42: 5.6 | K42: 0.5 | L42: 0
B43: Adjusted for valuation | F43: £ | G43: =IF(A2="F",ROUND(G41*G42/G31,2),0) -> 0 | I43: 2013/14 | J43: 2.6 | K43: 0.5 | L43: 0
I44: 2014/15 | J44: 3.2 | K44: 0.5 | L44: 0
B45: Total formula rent 2000/02 | I45: 2015/16 | J45: 1.2 | K45: 1 | L45: 0
B46: Before flexibility | F46: £ | G46: =SUM(G43,G38) -> 0 | I46: 2016/17 | J46: =IF(D$5=B$128,0,IF(OR(D$5=B$129,$D5=B$130),-0.1,0)) -> 0 | K46: =IF(D$5=B$128,-1,IF(OR(D$5=B$129,$D5=B$130),1,0)) -> 0 | L46: 0
B47: Flexibility | G47: =IF(D5=0,0,IF(D10="No",0,MIN(F10,D11))) -> 0 | I47: 2017/18 | J47: =IF(D$5=B$128,0,IF(D$5=B$129,0,IF(D$5=B$130,1,0))) -> 0 | K47: =IF(D$5=B$130,1,-1) -> -1 | L47: 0
B48: Including flexibility | F48: £ | G48: =ROUND(G46*(100+G47)/100,2) -> 0 | I48: 2018/19 | J48: =IF(D$5=B$128,0,IF(D$5=B$129,0,IF(D$5=B$130,3,0))) -> 0 | K48: =IF(D$5=B$130,1,-1) -> -1 | L48: 0
B50: DRC CALCULATION
B51: TCI region | D51: =IF(B18=0,"",IF(B18<>"",VLOOKUP(B18,$B$132:$C$485,COLUMNS(B132:C132),FALSE),"")) ->  | G51: Plot | J51: =IF(I52<2,"small","large") -> small | K51: =IF(J51="small","< 2 hectares",">2 haecares") -> < 2 hectares
B52: Build cost | D52: =IF(D51<>"",VLOOKUP(D51,$B$487:$C$491,COLUMNS($B$487:$C$487),FALSE),0) -> 0 | E52: per m² | G52: Plot size | I52: =D21/10000 -> 0 | K52: hectares
B53: Adjustment for lift | D53: =IF(D23="Yes",D$52*0.12,0) -> 0 | E53: per m² | G53: Plot area per unit | I53: =I22/10000 -> 0 | K53: hectares per unit
B54: Adjust for wheelchair | D54: =IF(D24="Yes",D$52*0.12,0) -> 0 | E54: per m² | G54: Land cost | I54: £k | J54: =IF(B18=0,"",IF(B18="",0,IF(J51="small",VLOOKUP(B18,$B$132:$E$485,COLUMNS($B$132:$D$132),FALSE),VLOOKUP(B18,$B$132:$E$485,COLUMNS($B$132:$E$132),FALSE)))) -> 0 | K54: per hectare
B55: Adjust for kitch/bthrm | D55: =IF(OR(D25="Yes",D26="Yes"),-D$52*0.1,0) -> 0 | E55: per m² | G55: Land value per unit | I55: £ | J55: =ROUND(SUM(J54)*I53*1000,0) -> 0
B56: Adjusted build cost | D56: =ROUND(SUM(D52:D55),0) -> 0 | E56: per m² | G56: Build cost | I56: £ | J56: =D57 -> 0
B57: Build cost | D57: =ROUND(D56*D20,0) -> 0 | G57: Valuation | I57: £ | J57: =SUM(J55:J56) -> 0
B72: Manual earnings
B73: Avon | C73: 321.2 | I73: =I30 -> 2000/01 | J73: =L30 -> 0
B74: Bedfordshire | C74: 343.7 | I74: 2001/02 | J74: =L31 -> 0
B75: Berkshire | C75: 345.4 | I75: 2002/03 | J75: 0
B76: Buckinghamshire | C76: 328.3 | I76: 2003/04 | J76: 0
B77: Cambridgeshire | C77: 330.1 | I77: 2004/05 | J77: 0
B78: Cheshire | C78: 322 | I78: 2005/06 | J78: 0
B79: Cleveland | C79: 338.4 | I79: 2006/07 | J79: 0
B80: Cornwall | C80: 255.5 | I80: 2007/08 | J80: 0
B81: Cumbria | C81: 323.7 | I81: 2008/09 | J81: 0
B82: Derbyshire | C82: 321.1 | I82: 2009/10 | J82: 0
B83: Devon | C83: 278 | I83: 2010/11 | J83: 0
B84: Dorset | C84: 293.9 | I84: 2011/12 | J84: 0
B85: Durham | C85: 289.7 | I85: 2012/13 | J85: 0
B86: East Sussex | C86: 281.5 | I86: 2013/14 | J86: 0
B87: Essex | C87: 325.9 | I87: 2014/15 | J87: 0
B88: Gloucestershire | C88: 308 | I88: 2015/16 | J88: 0
B89: Greater London | C89: 354.1 | I89: 2016/17 | J89: 0
B90: Greater Manchester | C90: 307.3 | I90: 2017/18 | J90: 0
B91: Hampshire | C91: 328.7 | I91: 2018/19 | J91: 0
B92: Hereford & Worcs | C92: 289.6 | I92: =N30 -> 2019/20 | J92: =Q30 -> 0
B93: Hertfordshire | C93: 343.7 | I93: =N31 -> 2020/21 | J93: =Q31 -> 0
B94: Humberside | C94: 318.4 | I94: 2021/22 | J94: 0
B95: Isle of Wight | C95: 288.5 | I95: 2022/23 | J95: 0
B96: Kent | C96: 316.4 | I96: 2023/24 | J96: 0
B97: Lancashire | C97: 302.7 | I97: 2024/25 | J97: 0
B98: Leicestershire | C98: 303.1 | I98: 2025/26 | J98: 0
B99: Lincolnshire | C99: 286.7 | I99: 2026/27 | J99: 0
B100: Merseyside | C100: 324.9
B101: Norfolk | C101: 302.5
B102: North Yorkshire | C102: 299.6
B103: Northamptonshire | C103: 328.5
B104: Northumberland | C104: 276.1
B105: Nottinghamshire | C105: 298
B106: Oxfordshire | C106: 323.8
B107: Shropshire | C107: 295.4
B108: Somerset | C108: 299.7
B109: South Yorkshire | C109: 299.1
B110: Staffordshire | C110: 296.2
B111: Suffolk | C111: 304.3
B112: Surrey | C112: 333.2
B113: Tyne & Wear | C113: 307.9
B114: Warwickshire | C114: 326.1
B115: West Midlands | C115: 320.6
B116: West Sussex | C116: 332.5
B117: West Yorkshire | C117: 302.7
B118: Wiltshire | C118: 313.9
B120: Bedsit/room | C120: 0.8
B121: 1-bed | C121: 0.9
B122: 2-bed | C122: 1
B123: 3-bed | C123: 1.1
B124: 4-bed | C124: 1.2
B125: 5-bed | C125: 1.3
B126: 6-bed | C126: 1.4
B128: General needs | C128: 5
B129: Supported | C129: 10
B130: Refuge or almshouse | C130: 10
B132: Adur | C132: C | D132: 800 | E132: 750
B133: Allerdale | C133: D | D133: 250 | E133: 197
B134: Alnwick | C134: D | D134: 430 | E134: 310
B135: Amber Valley | C135: E | D135: 520 | E135: 450
B136: Arun | C136: C | D136: 1125 | E136: 1110
B137: Ashfield | C137: E | D137: 350 | E137: 300
B138: Ashford | C138: C | D138: 1020 | E138: 925
B139: Aylesbury Vale | C139: C | D139: 1600 | E139: 1600
B140: Babergh | C140: D | D140: 350 | E140: 335
B141: Barking and Dagenham | C141: B | D141: 1385 | E141: 1600
B142: Barnet | C142: A | D142: 3800 | E142: 3500
B143: Barnsley | C143: D | D143: 550 | E143: 375
B144: Barrow-in-Furness | C144: C | D144: 425 | E144: 375
B145: Basildon | C145: C | D145: 1025 | E145: 988
B146: Basingstoke and Deane | C146: B | D146: 1720 | E146: 1720
B147: Bassetlaw | C147: D | D147: 400 | E147: 300
B148: Bath and North East Somerset | C148: C | D148: 1500 | E148: 1400
B149: Berwick-upon-Tweed | C149: D | D149: 370 | E149: 245
B150: Bexley | C150: B | D150: 2000 | E150: 1600
B151: Birmingham | C151: C | D151: 890 | E151: 890
B152: Blaby | C152: D | D152: 750 | E152: 700
B153: Blackburn | C153: D | D153: 470 | E153: 325
B154: Blackpool | C154: D | D154: 750 | E154: 675
B155: Blyth Valley | C155: D | D155: 245 | E155: 200
B156: Bolsover | C156: E | D156: 325 | E156: 250
B157: Bolton | C157: D | D157: 550 | E157: 500
B158: Boston | C158: E | D158: 270 | E158: 185
B159: Bournemouth | C159: C | D159: 1600 | E159: 1500
B160: Bracknell Forest | C160: B | D160: 2000 | E160: 2000
B161: Bradford | C161: D | D161: 600 | E161: 525
B162: Braintree | C162: D | D162: 800 | E162: 750
B163: Breckland | C163: E | D163: 325 | E163: 275
B164: Brent | C164: A | D164: 2300 | E164: 3000
B165: Brentwood | C165: B | D165: 1555 | E165: 1400
B166: Bridgnorth | C166: D | D166: 750 | E166: 715
B167: Brighton and Hove | C167: C | D167: 1200 | E167: 1000
B168: Bristol | C168: C | D168: 1350 | E168: 1350
B169: Broadland | C169: D | D169: 325 | E169: 275
B170: Bromley | C170: B | D170: 2000 | E170: 2470
B171: Bromsgrove | C171: C | D171: 1235 | E171: 1350
B172: Broxbourne | C172: B | D172: 2200 | E172: 2000
B173: Broxtowe | C173: D | D173: 680 | E173: 625
B174: Burnley | C174: D | D174: 470 | E174: 310
B175: Bury | C175: D | D175: 550 | E175: 500
B176: Calderdale | C176: D | D176: 550 | E176: 450
B177: Cambridge | C177: B | D177: 1480 | E177: 2200
B178: Camden | C178: A | D178: 9000 | E178: 5500
B179: Cannock Chase | C179: D | D179: 900 | E179: 950
B180: Canterbury | C180: C | D180: 1850 | E180: 1350
B181: Caradon | C181: D | D181: 200 | E181: 220
B182: Carlisle | C182: D | D182: 360 | E182: 270
B183: Carrick | C183: D | D183: 400 | E183: 350
B184: Castle Morpeth | C184: D | D184: 450 | E184: 370
B185: Castle Point | C185: C | D185: 1200 | E185: 1300
B186: Charnwood | C186: D | D186: 800 | E186: 800
B187: Chelmsford | C187: C | D187: 1280 | E187: 1225
B188: Cheltenham | C188: C | D188: 1500 | E188: 1500
B189: Cherwell | C189: C | D189: 1000 | E189: 900
B190: Chester | C190: C | D190: 645 | E190: 825
B191: Chesterfield | C191: D | D191: 495 | E191: 325
B192: Chester-le-Street | C192: D | D192: 494 | E192: 494
B193: Chichester | C193: C | D193: 1850 | E193: 1750
B194: Chiltern | C194: B | D194: 2500 | E194: 2500
B195: Chorley | C195: D | D195: 775 | E195: 625
B196: Christchurch | C196: C | D196: 1600 | E196: 1500
B197: City of London | C197: A | D197: 20500 | E197: 20500
B198: City of Westminster | C198: A | D198: 20500 | E198: 20500
B199: Colchester | C199: C | D199: 900 | E199: 900
B200: Congleton | C200: D | D200: 540 | E200: 500
B201: Copeland | C201: D | D201: 200 | E201: 150
B202: Corby | C202: D | D202: 350 | E202: 350
B203: Cotswold | C203: C | D203: 1350 | E203: 1350
B204: Coventry | C204: D | D204: 950 | E204: 850
B205: Craven | C205: D | D205: 525 | E205: 500
B206: Crawley | C206: B | D206: 1200 | E206: 1200
B207: Crewe and Nantwich | C207: D | D207: 350 | E207: 300
B208: Croydon | C208: B | D208: 2000 | E208: 2000
B209: Dacorum | C209: B | D209: 1900 | E209: 2250
B210: Darlington | C210: D | D210: 500 | E210: 500
B211: Dartford | C211: C | D211: 1100 | E211: 1100
B212: Daventry | C212: D | D212: 740 | E212: 740
B213: Derby | C213: E | D213: 600 | E213: 550
B214: Derbyshire Dales | C214: D | D214: 550 | E214: 490
B215: Derwentside | C215: D | D215: 315 | E215: 275
B216: Doncaster | C216: D | D216: 625 | E216: 425
B217: Dover | C217: C | D217: 700 | E217: 450
B218: Dudley | C218: D | D218: 950 | E218: 1000
B219: Durham | C219: C | D219: 650 | E219: 600
B220: Ealing | C220: A | D220: 3100 | E220: 3200
B221: Easington | C221: D | D221: 350 | E221: 215
B222: East Cambridgeshire | C222: D | D222: 615 | E222: 565
B223: East Devon | C223: C | D223: 893 | E223: 819
... 267 more rows

Sheet F3 (hidden)
A1: 1 | B1: FORMULA RENT CALCULATOR
A2: =IF('M1'!I14='M1'!E129,"F","") ->  | B2: x
B3: INPUTS FOR FORMULA RENT CALCULATION
B4: Unit size | D4: =IF(A$2="F",'M1'!I12,"") ->  | F4: x
B5: Unit type | D5: =IF(A$2="F",'M1'!I13,"") ->  | F5: x
B7: 1999 valuation method | D7: =IF(A$2="F",IF('M1'!I19="DRC*","DRC",'M1'!I19),"") ->  | F7: =IF(D7="Manual entry","Enter the 1990 valuation for each unit in the cell below",IF(D7="DRC","The 1999 valuation will be calculated from details entered below","")) -> 
B8: 1999 valuation £ | D8: =IF(A$2="F",'M1'!I21,"") ->  | E8: x | F8: =IF(AND(D7="DRC",D8=0),"DRC method selected - no valuation entry needed",IF(AND(D7="DRC",D8<>0),"DRC method has been selected, so the valuation entered will not be used",IF(AND(D7="Manual entry",D8=0),"Enter the 1999 valuation",""))) -> 
B10: Apply "flexibility" | D10: =IF(A$2="F",'M1'!I22,"") ->  | E10: x | F10: =IF(AND($D10="Yes",$D5<>""),VLOOKUP(D5,$B$128:$C$130,COLUMNS($B$128:$C$128),FALSE),"") -> 
B11: =IF(D10="Yes","Optional flexibility","") ->  | E11: =IF(AND(D10="Yes",OR(D11=0,D11=F10)),"Maximum flexibility will be applied",IF(AND(D10="Yes",D11<F10),"The lower flexibility entered will be applied",IF(AND(D10="Yes",D11>F10),"Flexiility will be limited to the maximum",""))) -> 
I12: Select
B13: Local area for formula rent calculation | I13: date
B14: =IF(A2="F",'M1'!C24,"") ->  | G14: FORMULA RENT | I14: =IF(A2="F",Menu!C5,"") ->  | J14: £ | K14: =IF(I14<>"",VLOOKUP(I14,N35:Q38,COLUMNS(N35:Q35),FALSE),"") -> 
B16: INPUTS FOR DEPRECIATED REPLACEMENT COST (DRC) VALUATION (optional)
B17: Local area for DRC calculation
B18: =IF(AND(A2="F",D7="DRC"),'M1'!C34,"") -> 
B20: Floor area of unit | D20: =IF(D$7="DRC",'M1'!I26,0) -> 0 | E20: x
B21: Plot area | D21: =IF(D$7="DRC",'M1'!I27,0) -> 0 | E21: x
B22: No. of units on the plot | D22: =IF(D$7="DRC",'M1'!I28,0) -> 0 | E22: x | F22: =IF(AND($D21>0,$D22>=0),"The 'land area' for this unit is:","") ->  | I22: =IF(AND(D21>0,D22=0),D21,IF(AND($D21>0,$D22>0),D21/D22,0)) -> 0 | J22: =IF(AND($D21>0,$D22>=0),"m²","") -> 
B23: New lift? | D23: =IF(D$7="DRC",'M1'!I29,0) -> 0 | E23: x
B24: Wheelchair access? | D24: =IF(D$7="DRC",'M1'!I30,0) -> 0 | E24: x | F24: Requiring specialised equipment
B25: Kitchen >10 yrs old? | D25: =IF(D$7="DRC",'M1'!I31,0) -> 0 | E25: x
B26: Bathroom >15 yrs old? | D26: =IF(D$7="DRC",'M1'!I32,0) -> 0 | E26: x
B28: FORMULA RENT CALCULATIONS | J28: Infl- | K28: Addition | L28: Formula | O28: Infl- | P28: Addition | Q28: Formula
J29: ation | L29: rent £ | O29: ation | Q29: rent £
B30: Average social rent 2000/01 | F30: £ | G30: 54.62 | I30: 2000/01 | L30: =G48 -> 0 | N30: 2019/20 | O30: =IF(D$5=B$128,0,IF(D$5=B$129,0,IF(D$5=B$130,2.4,0))) -> 0 | P30: =IF(D$5=B$130,1,-1) -> -1 | Q30: =ROUND(L48*SUM(100,O30,P30)/100,2) -> 0
B31: Average valuation 2000/01 | F31: £ | G31: 49750 | I31: 2001/02 | J31: 3.3 | K31: 1 | L31: =ROUND(L30*SUM(100,J31,K31)/100,2) -> 0 | N31: 2020/21 | O31: 1.7 | P31: 1 | Q31: =ROUND(Q30*SUM(O31,P31,100)/100,2) -> 0
B32: Average manual earnings 2000/01 | F32: £ | G32: 316.4 | I32: 2002/03 | J32: 1.7 | K32: 0.5 | L32: =ROUND(L31*SUM(100,J32,K32)/100,2) -> 0 | N32: 2021/22 | O32: 0.5 | P32: 1 | Q32: =ROUND(Q31*SUM(O32,P32,100)/100,2) -> 0
B33: Manual earnings for selected area 2000/01 | F33: £ | G33: =IF(B14=0,0,IF(B14<>"",VLOOKUP(B14,$B$73:$C$118,COLUMNS($B$73:$C$73),FALSE),0)) -> 0 | I33: 2003/04 | J33: 1.7 | K33: 0.5 | L33: 0 | N33: 2022/23 | O33: 3.1 | P33: 1 | Q33: =ROUND(Q32*SUM(O33,P33,100)/100,2) -> 0
B34: Unit size multiplier | G34: =IF(D4=0,0,IF(D4<>"",VLOOKUP(D4,$B$120:$C$126,COLUMNS(B120:C120),FALSE),0)) -> 0 | I34: 2004/05 | J34: 2.8 | K34: 0.5 | L34: 0 | N34: 2023/24 | O34: =IF(D5=B128,0,10.1) -> 10.1 | P34: =IF(D5=B128,7,1) -> 1 | Q34: 0
I35: 2005/06 | J35: 3.1 | K35: 0.5 | L35: 0 | N35: 2024/25 | O35: 6.7 | P35: 1 | Q35: 0
B36: Adjusted for local earnings and unit size | I36: 2006/07 | J36: 2.7 | K36: 0.5 | L36: 0 | N36: 2025/26 | O36: =Ass!D9 -> 2.2 | P36: =Ass!D15 -> 1 | Q36: 0
B37: 70% of social rent 2000/01 | F37: £ | G37: =ROUND(G30*0.7,2) -> 38.23 | I37: 2007/08 | J37: 3.6 | K37: 0.5 | L37: 0 | N37: 2026/27 | O37: =Ass!D10 -> 2 | P37: =Ass!D16 -> 1 | Q37: 0
B38: Adjusted for local earnings & unit size | F38: £ | G38: =IF(B14=0,0,ROUND(G37*G33/G32*G34,2)) -> 0 | I38: 2008/09 | J38: 3.9 | K38: 0.5 | L38: 0 | N38: 2027/28 | O38: =Ass!D11 -> 2 | P38: =Ass!D17 -> 1 | Q38: 0
I39: 2009/10 | J39: 5 | K39: 0.5 | L39: 0
B40: Adjusted for 2000/01 valuation | I40: 2010/11 | J40: -1.4 | K40: 0.5 | L40: 0
B41: 30% of social rent 2000/01 | F41: £ | G41: =G30-G37 -> 16.39 | I41: 2011/12 | J41: 4.6 | K41: 0.5 | L41: 0
B42: Valuation | F42: £ | G42: =IF(D7="DRC",J57,D8) ->  | I42: 2012/13 | J42: 5.6 | K42: 0.5 | L42: 0
B43: Adjusted for valuation | F43: £ | G43: =IF(A2="F",ROUND(G41*G42/G31,2),0) -> 0 | I43: 2013/14 | J43: 2.6 | K43: 0.5 | L43: 0
I44: 2014/15 | J44: 3.2 | K44: 0.5 | L44: 0
B45: Total formula rent 2000/02 | I45: 2015/16 | J45: 1.2 | K45: 1 | L45: 0
B46: Before flexibility | F46: £ | G46: =SUM(G43,G38) -> 0 | I46: 2016/17 | J46: =IF(D$5=B$128,0,IF(OR(D$5=B$129,$D5=B$130),-0.1,0)) -> 0 | K46: =IF(D$5=B$128,-1,IF(OR(D$5=B$129,$D5=B$130),1,0)) -> 0 | L46: 0
B47: Flexibility | G47: =IF(D5=0,0,IF(D10="No",0,MIN(F10,D11))) -> 0 | I47: 2017/18 | J47: =IF(D$5=B$128,0,IF(D$5=B$129,0,IF(D$5=B$130,1,0))) -> 0 | K47: =IF(D$5=B$130,1,-1) -> -1 | L47: 0
B48: Including flexibility | F48: £ | G48: =ROUND(G46*(100+G47)/100,2) -> 0 | I48: 2018/19 | J48: =IF(D$5=B$128,0,IF(D$5=B$129,0,IF(D$5=B$130,3,0))) -> 0 | K48: =IF(D$5=B$130,1,-1) -> -1 | L48: 0
B50: DRC CALCULATION
B51: TCI region | D51: =IF(B18=0,"",IF(B18<>"",VLOOKUP(B18,$B$132:$C$485,COLUMNS(B132:C132),FALSE),"")) ->  | G51: Plot | J51: =IF(I52<2,"small","large") -> small | K51: =IF(J51="small","< 2 hectares",">2 haecares") -> < 2 hectares
B52: Build cost | D52: =IF(D51<>"",VLOOKUP(D51,$B$487:$C$491,COLUMNS($B$487:$C$487),FALSE),0) -> 0 | E52: per m² | G52: Plot size | I52: =D21/10000 -> 0 | K52: hectares
B53: Adjustment for lift | D53: =IF(D23="Yes",D$52*0.12,0) -> 0 | E53: per m² | G53: Plot area per unit | I53: =I22/10000 -> 0 | K53: hectares per unit
B54: Adjust for wheelchair | D54: =IF(D24="Yes",D$52*0.12,0) -> 0 | E54: per m² | G54: Land cost | I54: £k | J54: =IF(B18=0,"",IF(B18="",0,IF(J51="small",VLOOKUP(B18,$B$132:$E$485,COLUMNS($B$132:$D$132),FALSE),VLOOKUP(B18,$B$132:$E$485,COLUMNS($B$132:$E$132),FALSE)))) -> 0 | K54: per hectare
B55: Adjust for kitch/bthrm | D55: =IF(OR(D25="Yes",D26="Yes"),-D$52*0.1,0) -> 0 | E55: per m² | G55: Land value per unit | I55: £ | J55: =ROUND(SUM(J54)*I53*1000,0) -> 0
B56: Adjusted build cost | D56: =ROUND(SUM(D52:D55),0) -> 0 | E56: per m² | G56: Build cost | I56: £ | J56: =D57 -> 0
B57: Build cost | D57: =ROUND(D56*D20,0) -> 0 | G57: Valuation | I57: £ | J57: =SUM(J55:J56) -> 0
B72: Manual earnings
B73: Avon | C73: 321.2 | I73: =I30 -> 2000/01 | J73: =L30 -> 0
B74: Bedfordshire | C74: 343.7 | I74: 2001/02 | J74: =L31 -> 0
B75: Berkshire | C75: 345.4 | I75: 2002/03 | J75: 0
B76: Buckinghamshire | C76: 328.3 | I76: 2003/04 | J76: 0
B77: Cambridgeshire | C77: 330.1 | I77: 2004/05 | J77: 0
B78: Cheshire | C78: 322 | I78: 2005/06 | J78: 0
B79: Cleveland | C79: 338.4 | I79: 2006/07 | J79: 0
B80: Cornwall | C80: 255.5 | I80: 2007/08 | J80: 0
B81: Cumbria | C81: 323.7 | I81: 2008/09 | J81: 0
B82: Derbyshire | C82: 321.1 | I82: 2009/10 | J82: 0
B83: Devon | C83: 278 | I83: 2010/11 | J83: 0
B84: Dorset | C84: 293.9 | I84: 2011/12 | J84: 0
B85: Durham | C85: 289.7 | I85: 2012/13 | J85: 0
B86: East Sussex | C86: 281.5 | I86: 2013/14 | J86: 0
B87: Essex | C87: 325.9 | I87: 2014/15 | J87: 0
B88: Gloucestershire | C88: 308 | I88: 2015/16 | J88: 0
B89: Greater London | C89: 354.1 | I89: 2016/17 | J89: 0
B90: Greater Manchester | C90: 307.3 | I90: 2017/18 | J90: 0
B91: Hampshire | C91: 328.7 | I91: 2018/19 | J91: 0
B92: Hereford & Worcs | C92: 289.6 | I92: =N30 -> 2019/20 | J92: =Q30 -> 0
B93: Hertfordshire | C93: 343.7 | I93: =N31 -> 2020/21 | J93: =Q31 -> 0
B94: Humberside | C94: 318.4 | I94: 2021/22 | J94: 0
B95: Isle of Wight | C95: 288.5 | I95: 2022/23 | J95: 0
B96: Kent | C96: 316.4 | I96: 2023/24 | J96: 0
B97: Lancashire | C97: 302.7 | I97: 2024/25 | J97: 0
B98: Leicestershire | C98: 303.1 | I98: 2025/26 | J98: 0
B99: Lincolnshire | C99: 286.7 | I99: 2026/27 | J99: 0
B100: Merseyside | C100: 324.9
B101: Norfolk | C101: 302.5
B102: North Yorkshire | C102: 299.6
B103: Northamptonshire | C103: 328.5
B104: Northumberland | C104: 276.1
B105: Nottinghamshire | C105: 298
B106: Oxfordshire | C106: 323.8
B107: Shropshire | C107: 295.4
B108: Somerset | C108: 299.7
B109: South Yorkshire | C109: 299.1
B110: Staffordshire | C110: 296.2
B111: Suffolk | C111: 304.3
B112: Surrey | C112: 333.2
B113: Tyne & Wear | C113: 307.9
B114: Warwickshire | C114: 326.1
B115: West Midlands | C115: 320.6
B116: West Sussex | C116: 332.5
B117: West Yorkshire | C117: 302.7
B118: Wiltshire | C118: 313.9
B120: Bedsit/room | C120: 0.8
B121: 1-bed | C121: 0.9
B122: 2-bed | C122: 1
B123: 3-bed | C123: 1.1
B124: 4-bed | C124: 1.2
B125: 5-bed | C125: 1.3
B126: 6-bed | C126: 1.4
B128: General needs | C128: 5
B129: Supported | C129: 10
B130: Refuge or almshouse | C130: 10
B132: Adur | C132: C | D132: 800 | E132: 750
B133: Allerdale | C133: D | D133: 250 | E133: 197
B134: Alnwick | C134: D | D134: 430 | E134: 310
B135: Amber Valley | C135: E | D135: 520 | E135: 450
B136: Arun | C136: C | D136: 1125 | E136: 1110
B137: Ashfield | C137: E | D137: 350 | E137: 300
B138: Ashford | C138: C | D138: 1020 | E138: 925
B139: Aylesbury Vale | C139: C | D139: 1600 | E139: 1600
B140: Babergh | C140: D | D140: 350 | E140: 335
B141: Barking and Dagenham | C141: B | D141: 1385 | E141: 1600
B142: Barnet | C142: A | D142: 3800 | E142: 3500
B143: Barnsley | C143: D | D143: 550 | E143: 375
B144: Barrow-in-Furness | C144: C | D144: 425 | E144: 375
B145: Basildon | C145: C | D145: 1025 | E145: 988
B146: Basingstoke and Deane | C146: B | D146: 1720 | E146: 1720
B147: Bassetlaw | C147: D | D147: 400 | E147: 300
B148: Bath and North East Somerset | C148: C | D148: 1500 | E148: 1400
B149: Berwick-upon-Tweed | C149: D | D149: 370 | E149: 245
B150: Bexley | C150: B | D150: 2000 | E150: 1600
B151: Birmingham | C151: C | D151: 890 | E151: 890
B152: Blaby | C152: D | D152: 750 | E152: 700
B153: Blackburn | C153: D | D153: 470 | E153: 325
B154: Blackpool | C154: D | D154: 750 | E154: 675
B155: Blyth Valley | C155: D | D155: 245 | E155: 200
B156: Bolsover | C156: E | D156: 325 | E156: 250
B157: Bolton | C157: D | D157: 550 | E157: 500
B158: Boston | C158: E | D158: 270 | E158: 185
B159: Bournemouth | C159: C | D159: 1600 | E159: 1500
B160: Bracknell Forest | C160: B | D160: 2000 | E160: 2000
B161: Bradford | C161: D | D161: 600 | E161: 525
B162: Braintree | C162: D | D162: 800 | E162: 750
B163: Breckland | C163: E | D163: 325 | E163: 275
B164: Brent | C164: A | D164: 2300 | E164: 3000
B165: Brentwood | C165: B | D165: 1555 | E165: 1400
B166: Bridgnorth | C166: D | D166: 750 | E166: 715
B167: Brighton and Hove | C167: C | D167: 1200 | E167: 1000
B168: Bristol | C168: C | D168: 1350 | E168: 1350
B169: Broadland | C169: D | D169: 325 | E169: 275
B170: Bromley | C170: B | D170: 2000 | E170: 2470
B171: Bromsgrove | C171: C | D171: 1235 | E171: 1350
B172: Broxbourne | C172: B | D172: 2200 | E172: 2000
B173: Broxtowe | C173: D | D173: 680 | E173: 625
B174: Burnley | C174: D | D174: 470 | E174: 310
B175: Bury | C175: D | D175: 550 | E175: 500
B176: Calderdale | C176: D | D176: 550 | E176: 450
B177: Cambridge | C177: B | D177: 1480 | E177: 2200
B178: Camden | C178: A | D178: 9000 | E178: 5500
B179: Cannock Chase | C179: D | D179: 900 | E179: 950
B180: Canterbury | C180: C | D180: 1850 | E180: 1350
B181: Caradon | C181: D | D181: 200 | E181: 220
B182: Carlisle | C182: D | D182: 360 | E182: 270
B183: Carrick | C183: D | D183: 400 | E183: 350
B184: Castle Morpeth | C184: D | D184: 450 | E184: 370
B185: Castle Point | C185: C | D185: 1200 | E185: 1300
B186: Charnwood | C186: D | D186: 800 | E186: 800
B187: Chelmsford | C187: C | D187: 1280 | E187: 1225
B188: Cheltenham | C188: C | D188: 1500 | E188: 1500
B189: Cherwell | C189: C | D189: 1000 | E189: 900
B190: Chester | C190: C | D190: 645 | E190: 825
B191: Chesterfield | C191: D | D191: 495 | E191: 325
B192: Chester-le-Street | C192: D | D192: 494 | E192: 494
B193: Chichester | C193: C | D193: 1850 | E193: 1750
B194: Chiltern | C194: B | D194: 2500 | E194: 2500
B195: Chorley | C195: D | D195: 775 | E195: 625
B196: Christchurch | C196: C | D196: 1600 | E196: 1500
B197: City of London | C197: A | D197: 20500 | E197: 20500
B198: City of Westminster | C198: A | D198: 20500 | E198: 20500
B199: Colchester | C199: C | D199: 900 | E199: 900
B200: Congleton | C200: D | D200: 540 | E200: 500
B201: Copeland | C201: D | D201: 200 | E201: 150
B202: Corby | C202: D | D202: 350 | E202: 350
B203: Cotswold | C203: C | D203: 1350 | E203: 1350
B204: Coventry | C204: D | D204: 950 | E204: 850
B205: Craven | C205: D | D205: 525 | E205: 500
B206: Crawley | C206: B | D206: 1200 | E206: 1200
B207: Crewe and Nantwich | C207: D | D207: 350 | E207: 300
B208: Croydon | C208: B | D208: 2000 | E208: 2000
B209: Dacorum | C209: B | D209: 1900 | E209: 2250
B210: Darlington | C210: D | D210: 500 | E210: 500
B211: Dartford | C211: C | D211: 1100 | E211: 1100
B212: Daventry | C212: D | D212: 740 | E212: 740
B213: Derby | C213: E | D213: 600 | E213: 550
B214: Derbyshire Dales | C214: D | D214: 550 | E214: 490
B215: Derwentside | C215: D | D215: 315 | E215: 275
B216: Doncaster | C216: D | D216: 625 | E216: 425
B217: Dover | C217: C | D217: 700 | E217: 450
B218: Dudley | C218: D | D218: 950 | E218: 1000
B219: Durham | C219: C | D219: 650 | E219: 600
B220: Ealing | C220: A | D220: 3100 | E220: 3200
B221: Easington | C221: D | D221: 350 | E221: 215
B222: East Cambridgeshire | C222: D | D222: 615 | E222: 565
B223: East Devon | C223: C | D223: 893 | E223: 819
... 267 more rows

Sheet Spare with auto-condense (hidden)
